Workbook

Sheet INPUT
A1: Use of this tool is subject to a disclaimer (https://www.nrel.gov/disclaimer.html)
A2: Overall process/design framework for this TEA tool is based on NREL's Algae Farm Design Report - for details refer to: https://www.nrel.gov/docs/fy16osti/64772.pdf
A3: Biomass cost results differ from Design Report due to different cost-year dollars (more recent work updates parameters further to 2016$ and 21% tax rates)
A6: INPUT DATA
A9: Main Process Inputs | G9: = Input Required
A10: Facility size (based on cultivation area) | B10: 5000 | C10: acres | G10: = Calculated Cells
A11: Module size (based on cultivation area) | B11: 100 | C11: acres | D11: Recommend leaving default at 100 acres, may be varied from 1-500 | G11: = No Input Required
A12: Individual pond size | B12: 10-acre | G12: =Aditional Notes
A13: Pond liner coverage | B13: Minimally Lined
A14: Pond depth | B14: 20 | C14: cm
A15: Pond harvest concentration | B15: 0.5 | C15: g/L | D15: Values allowed from 0.0001 to 0.9999 g/L. Above 1 will cause unsolveable dewatering steps.
A16: Fresh or saline water cultivation | B16: Freshwater
A17: Total pond volume | B17: =B14/100*4046.86*B10 -> 4046860 | C17: m^3
A18: CO2 uptake efficiency in ponds | B18: 0.9
A19: CO2 uptake efficiency in PBRs | B19: 0.99
A20: Excess NH3 to ponds | B20: 0.2 | D20: Values allowed from 0% to 99.99%
A21: Excess DAP to ponds | B21: 0.1 | D21: Values allowed from 0% to 99.99%
A22: Production ponds initial concentration at inoculation | B22: 0.1 | C22: g/L
A23: Outlet concentration of 1st-stage inoculum (tubular PBR) | B23: 1.5 | C23: g/L | H23: MINIMUM BIOMASS SELLING PRICE
A24: Outlet concentration of 2nd-stage inoculum (closed ponds) | B24: 0.5 | C24: g/L | H24: ="$"&ROUND(DCFROR!B31,0)&"/U.S. Ton" -> $494/U.S. Ton | I24: $/ton AFDW
A25: Outlet concentration of 3rd-stage inoculum (lined open ponds) | B25: 0.5 | C25: g/L | G25: NPV | H25: =DCFROR!B33 -> 0 | I25: If NPV does not equal zero, press Solve Product Cost button.
A26: Pond up-time between re-inoculation | B26: 20 | C26: days | G26: Mass Balance | H26: =SUM(ABS('Mass Balance'!AR155),ABS('Mass Balance'!AR134),ABS('Mass Balance'!AR112),ABS('Mass Balance'!AR91)) -> 0.02106667692 | I26: If Mass Balance does not equal zero, press Solve Product Cost button. This will re-run the mass balance and the NPV calculation.
A27: Primary dewatering outlet concentration | B27: 10 | C27: g/L
A28: Primary dewatering harvest efficiency | B28: 0.9
A29: Residence time for settling tank (primary dewatering) | B29: 4 | C29: hr
A30: Secondary dewatering outlet concentration | B30: 130 | C30: g/L
A31: Secondary dewatering harvest efficiency | B31: 0.995
A32: Tertiary dewatering outlet concentration | B32: 200 | C32: g/L
A33: Tertiary dewatering harvest efficiency | B33: 0.97
A34: Biomass loss during short-term product storage | B34: 0.01
A35: Blowdown disposal set manually (user defined) or calculated based on salt tolerance of algae? | B35: User defined | D35: Only applies if saline cultivation is selected (B16)
A38: Salt content in makeup water | B38: 250 | C38: mg/L | D38: Recommend a saline case of 7,000 mg/L (typical saline groundwater), 250 may be shown as default for freshwater
A39: Salt tolerance of algae strain | B39: 4000 | C39: mg/L | D39: Recommend a saline case up to 40,000 mg/L, 4000 may be shown as default for freshwater
A40: Specifed percent below the salininty tolerance | B40: 0 | D40: Recommend a saline case of 10% below salinity tolerance. 0% may be shown as default for freshwater
A43: Season Specific Process Inputs
B44: SUMMER | C44: FALL | D44: WINTER | E44: SPRING | F44: Yearly Average | G44: Unit | H44: Season that CAPEX is Sized From (season with largest productivity)
B45: (JUN, JUL, AUG) | C45: (SEP, OCT, NOV) | D45: (DEC, JAN, FEB) | E45: (MAR, APRL, MAY) | H45: =INDEX(B44:E44,MATCH(MAX(B46:E46),B46:E46,0)) -> SUMMER
A46: Productivity | B46: 35 | C46: 24.9 | D46: 11.7 | E46: 28.5 | F46: =AVERAGE(B46:E46) -> 25.025 | G46: g/m2/day | H46: =MAX(B46:E46) -> 35 | I46: g/m2/day
A47: Evaporation | B47: 0.09 | C47: 0.035 | D47: 0.035 | E47: 0.189 | F47: =AVERAGE(B47:E47) -> 0.08725 | G47: cm/day
A48: Blowdown For Facility | B48: 304135 | C48: 116817 | D48: 111986 | E48: 514894 | F48: =AVERAGE(B48:E48) -> 261958 | G48: kg/hr
A49: Is there enough blowdown to accommodate cell salt tolerance? | B49: =IF(SUM('Mass Balance'!C79:V79)>0,"NO, PLEASE INCREASE BLOWDOWN AMOUNT","Yes") -> Yes | C49: =IF(SUM('Mass Balance'!C100:V100)>0,"NO, PLEASE INCREASE BLOWDOWN AMOUNT","Yes") -> Yes | D49: =IF(SUM('Mass Balance'!C121:V121)>0,"NO, PLEASE INCREASE BLOWDOWN AMOUNT","Yes") -> Yes | E49: =IF(SUM('Mass Balance'!C142:V142)>0,"NO, PLEASE INCREASE BLOWDOWN AMOUNT","Yes") -> Yes
A52: Strain Specific Inputs
A53: Algal composition specified based on wt% or elemental formula (molar): | B53: Elemental Formula
B55: Wt% Composition (dry basis and ash free basis) | C55: Elemental Formula (ash free dry weight) | D55: Molecular Weight of Components | E55: Adjusted to Close Mass Balance - wt% composition (dry and ash free basis) | F55: Elemental Fomula
A56: Carbon | B56: 0.3 | C56: 620 | D56: 12.0107 | E56: =B56/$B$62 -> 0.3951527924 | F56: =IF($B$53="Mass Percent",B56/D56/($B$61/$D$61),C56) -> 620
A57: Hydrogen | B57: 0.082 | C57: 1117 | D57: 1.00794 | E57: =B57/$B$62 -> 0.1080084299 | F57: =IF($B$53="Mass Percent",B57/D57/($B$61/$D$61),C57) -> 1117
A58: Oxygen | B58: 0.355 | C58: 306 | D58: 15.9994 | E58: 0.467597471 | F58: 306
A59: Nitrogen | B59: 0.018 | C59: 18 | D59: 14.0067 | E59: 0.02370916754 | F59: 18
A60: Sulfur | B60: 0.002 | C60: 0 | D60: 32.065 | E60: 0.002634351949 | F60: 0
A61: Phosphourous | B61: 0.0022 | C61: 1 | D61: 30.97376 | E61: 0.002897787144 | F61: 1
A62: Total | B62: =SUM(B56:B61) -> 0.7592 | E62: =SUM(E56:E61) -> 1
A64: Ash Content% (Dry Weight Basis) | B64: 0.024
A66: Algae Molecular Weight | B66: =F56*D56+F57*D57+F58*D58+F59*D59+F60*D60+F61*D61 -> 13751.41374
A69: Financial Assumption Inputs
A70: Cost Year | B70: 2014
A71: Operating Hours Per Year | B71: 7920
A72: Internal Rate of Return (IRR) | B72: 0.1
A73: Tax Rate | B73: 0.35
A74: Equity Financing (Remainder = Debt Financing) | B74: 0.4
A75: Loan Interest | B75: 0.08
A76: Loan Term, years | B76: 10
A77: CO2 Price ($/metric ton) | B77: 45

Sheet Results Summary
A1: Algal Biomass Production Process Engineering Analysis
A4: ="All Values in "&INPUT!B70&"$" -> All Values in 2014$
C5: MBSP (Minimum Biomass Selling Price): | D5: =DCFROR!B31 -> 494.0318824 | E5: /US Dry Ton (AFDW)
B6: Contributions: | C6: CO2 and Nutrients | D6: =ROUND(SUM(F18:F20),0) -> 120 | E6: ="/US Dry Ton" -> /US Dry Ton
C7: Cultivation | D7: ='Cost Breakdown'!G4+'Cost Breakdown'!G5 -> 273.9920113 | E7: ="/US Dry Ton" -> /US Dry Ton
C8: Other Production | D8: ='Cost Breakdown'!G6+'Cost Breakdown'!G7+'Cost Breakdown'!G8+'Cost Breakdown'!G9 -> 99.91085445 | E8: ="/US Dry Ton" -> /US Dry Ton
C9: Total Biomass Production (AFDW Basis) | D9: =OPEX!B3 -> 0.1874779196 | E9: ="MM US Ton/yr" -> MM US Ton/yr
C10: Total Biomass Yield (AFDW Basis) | D10: =D9*1000000/INPUT!B10 -> 37.49558392 | E10: ="US Ton/acre/yr" -> US Ton/acre/yr
D11: =D9*1000000*0.9072/(INPUT!B10*0.4047) -> 84.052369 | E11: ="Metric tonne/ha/yr" -> Metric tonne/ha/yr
C13: Internal Rate of Return (After-Tax) | D13: =INPUT!B72 -> 0.1
C14: Equity Percent of Total Investment | D14: =INPUT!B74 -> 0.4
A17: Capital Costs | D17: Cost Breakdowns ($/US Ton AFDW Biomass product)
A18: ="Production ponds" -> Production ponds | B18: =CAPEX100 -> 155908879.7 | D18: CO2 | F18: =OPEX!M16 -> 97.06457532
A19: Inoculum Ponds | B19: =CAPEX200 -> 15567153.96 | D19: Ammonia | F19: =OPEX!M22 -> 16.54490728
A20: CO2 Delivery | B20: =CAPEX300 -> 6571607.175 | D20: Diammonium Phosphate | F20: =OPEX!M28 -> 6.534627856
A21: Makeup Water Delivery + On-Site Circulation | B21: =CAPEX400 -> 7098111.764 | D21: Power | F21: =OPEX!M40 -> 28.0896788
A22: Dewatering | B22: =CAPEX500 -> 42964817.96 | D22: Chilled Water Utility | F22: =OPEX!M46 -> 3.848060616
A23: Storage | B23: =CAPEX600 -> 5444624.404 | D23: Fixed Costs | F23: =OPEX!M82 -> 61.96512634
D24: Capital Depreciation | F24: =ROUND(F36/(D9*1000000),0) -> 61
A25: Total Installed Equipment Cost | B25: =SUM(B18:B24) -> 233555195 | D25: Average Income Tax | F25: =ROUND(D5*DCFROR!B78/DCFROR!B79,0) -> 40
D26: Average Return on Investment | F26: =ROUND(D5-SUM(F18:F25),0) -> 179
A27: Added Direct + Indirect Costs | B27: =B30-B25 -> 150444805
A28: (% of TCI) | B28: =B27/B30 -> 0.3917833464
D29: Cost Breakdowns ($/yr)
A30: Total Capital Investment (TCI) | B30: =ROUND(DCFROR!O27,-6) -> 384000000 | D30: CO2 | F30: =ROUND(OPEX!L16*1000000,-5) -> 18200000
D31: Ammonia | F31: =ROUND(OPEX!L22*1000000,-5) -> 3100000
A32: Installed Equipment Cost/Annual US dry ton biomass | B32: =ROUND(B25/(D9*1000000),0) -> 1246 | D32: Diammonium Phosphate | F32: =ROUND(OPEX!L28*1000000,-5) -> 1200000
A33: Total Capital Investment/Annual US dry ton biomass | B33: =ROUND(B30/(D9*1000000),0) -> 2048 | D33: Power | F33: =ROUND(OPEX!L40*1000000,-5) -> 5300000
D34: Chilled Water Utility | F34: =ROUND(OPEX!L46*1000000,-5) -> 700000
A35: Loan Rate | B35: =INPUT!B75 -> 0.08 | D35: Fixed Costs | F35: =ROUND(OPEX!L82*1000000,-5) -> 11600000
A36: Term (years) | B36: =INPUT!B76 -> 10 | D36: Capital Depreciation | F36: =ROUND(DCFROR!B4/30,-5) -> 11500000
A37: Capital Charge Factor (Computed) | B37: =(F36+F37+F38)/B30 -> 0.1369791667 | D37: Average Income Tax | F37: =ROUND(F25*(D9*1000000),-5) -> 7500000
D38: Average Return on Investment | F38: =ROUND(F26*(D9*1000000),-5) -> 33600000
D41: Specific Operating Conditions
D42: Algal Productivity (g/m^2/day) | F42: =INPUT!F46 -> 25.025
D43: Maximum seasonal variability (productivity) | F43: =ROUND((MAX(INPUT!B46:E46)/MIN(INPUT!B46:E46)),0)&":1" -> 3:1
D44: CO2 Price ($/US ton) | F44: =OPEX!I16 -> 43.58349068
D45: Facility size (acres, cultivation pond only) | F45: =INPUT!B10 -> 5000
D46: Total footprint (acres; includes processing, storage, etc.) | F46: =DCFROR!D4 -> 7615

Sheet DCFROR
D1: 1 | G1: Total Capital Investment | L1: Installed cost
G2: Process Area | J2: Purchased Cost | L2: Cultivation | M2: Dewatering | N2: OSBL | O2: Installed Cost
A3: Assumptions | B3: Value | D3: Land Requirement | G3: ="Area 100: Production" -> Area 100: Production | J3: =CAPEX!L11 -> 155908879.7 | L3: =CAPEX!M11 -> 155908879.7 | O3: =SUM(L3:N3) -> 155908879.7
A4: Fixed Capital Investment | B4: =O24*D1 -> 344018850 | D4: =INPUT!B10/5000*7615 -> 7615 | E4: Acres | G4: Area 200: Inoculum Ponds | J4: =CAPEX!L19 -> 15567153.96 | L4: =CAPEX!M19 -> 15567153.96 | O4: 15567153.96
A5: General Plant | B5: =B4-B6 -> 344018850 | D5: 3000 | E5: /acre | G5: Area 300: CO2 Delivery | J5: =CAPEX!L28 -> 6174286.882 | N5: =CAPEX!M28 -> 6571607.175 | O5: 6571607.175
A6: Steam/Power Plant | B6: 0 | G6: Area 400: Makeup Water Delivery + On-Site Circulation | J6: =CAPEX!L47 -> 5343186.173 | N6: =CAPEX!M47 -> 7098111.764 | O6: 7098111.764
G7: Area 500: Dewatering | J7: =CAPEX!L57 -> 40910049.28 | M7: =CAPEX!M57 -> 42964817.96 | O7: 42964817.96
A8: Equity | B8: =INPUT!B74 -> 0.4 | G8: Area 600: Storage | J8: =CAPEX!L64 -> 4089312.967 | N8: =CAPEX!M64 -> 5444624.404 | O8: 5444624.404
A9: Loan Interest | B9: =INPUT!B75 -> 0.08
A10: Loan Term, years | B10: =INPUT!B76 -> 10
A11: Annual Loan Payment | B11: =-PMT(B9,B10,FCI*(1-B8)) -> 30761371.99
A12: Working Capital (% of FCI) | B12: 0.05 | G12: Totals (Excl. Area 100) | J12: =SUM(J3:J11) -> 227992869 | L12: =SUM(L3:L11) -> 171476033.7 | M12: =SUM(M3:M11) -> 42964817.96 | N12: =SUM(N3:N11) -> 19114343.34 | O12: =SUM(L12:N12) -> 233555195
A13: Salvage Value | I13: Standard factors | J13: Cultivation Factors | K13: OSBL Factors | O13: =SUM(L13:N13) -> 0
A14: General Plant | B14: 0 | C14: Not permitted since 2002 | G14: Warehouse | I14: 0.04 | J14: 0.0122 | K14: 0 | L14: =J14*L12 -> 2092007.611 | M14: =I14*M12 -> 1718592.718 | N14: =K14*$N$12 -> 0 | O14: 3810600.329
A15: Steam Plant | B15: 0 | C15: Not permitted since 2002 | G15: Site Development | I15: 0.09 | J15: Included in pond cost | K15: $1534/acre | M15: =I15*M12 -> 3866833.616 | N15: =1534*D4 -> 11681410 | O15: 15548243.62
A16: Depreciation Period (Years) | B16: MACR (IRS publication 946, Table A1, Page 76. http://www.irs.gov/pub/irs-pdf/p946.pdf ) | G16: Additional Piping | I16: 0.045 | J16: Included in pond cost | K16: 0 | M16: =I16*M12 -> 1933416.808 | N16: =K16*$N$12 -> 0 | O16: 1933416.808
A17: General Plant | B17: 7 | C17: IRS Pub 946 | G17: Total Direct Costs (TDC) | L17: =SUM(L12:L16) -> 173568041.3 | M17: =SUM(M12:M16) -> 50483661.1 | N17: =SUM(N12:N16) -> 30795753.34 | O17: 254847455.7
A18: Steam/Electricity System | B18: 20 | C18: IRS Pub 946 | G18: Prorateable Expenses | I18: 0.1 | J18: 0.04 | K18: 0.01 | L18: =J18*$L$17 -> 6942721.652 | M18: =I18*$M$17 -> 5048366.11 | N18: =K18*$N$17 -> 307957.5334 | O18: 12299045.3
A19: Construction Period (Years) | B19: 3 | G19: Field Expenses | I19: 0.1 | J19: 0.0446 | K19: 0.01 | L19: =J19*$L$17 -> 7741134.642 | M19: =I19*$M$17 -> 5048366.11 | N19: =K19*$N$17 -> 307957.5334 | O19: 13097458.29
A20: % Spent in Year -2 | B20: 0.08 | G20: Home Office & Construction Fee | I20: 0.2 | J20: 0.1034 | K20: 0.01 | L20: =J20*$L$17 -> 17946935.47 | M20: =I20*$M$17 -> 10096732.22 | N20: =K20*$N$17 -> 307957.5334 | O20: 28351625.22
A21: % Spent in Year -1 | B21: 0.6 | G21: Project Contingency | I21: 0.1 | J21: 0.1 | K21: 0.1 | L21: =J21*$L$17 -> 17356804.13 | M21: =I21*$M$17 -> 5048366.11 | N21: =K21*$N$17 -> 3079575.334 | O21: 25484745.57
A22: % Spent in Year 0 | B22: =1-SUM(B20:B21) -> 0.32 | G22: Other Costs (Start-Up, Permits, etc.) | I22: 0.1 | J22: 0.0264 | K22: 0.01 | L22: =J22*$L$17 -> 4582196.29 | M22: =I22*$M$17 -> 5048366.11 | N22: =K22*$N$17 -> 307957.5334 | O22: 9938519.934
A23: Start-up Time (Years) | B23: 0.5 | G23: Total Indirect Costs | L23: =SUM(L18:L22) -> 54569792.18 | M23: =SUM(M18:M22) -> 30290196.66 | N23: =SUM(N18:N22) -> 4311405.468 | O23: 89171394.31
A24: Algal Production/Dewatering (% of Normal) | B24: 0.5 | G24: Fixed Capital Investment (FCI) | L24: =L17+L23 -> 228137833.5 | M24: =M17+M23 -> 80773857.76 | N24: =N17+N23 -> 35107158.81 | O24: 344018850
A25: Variable Costs (% of Normal) | B25: 0.75 | G25: Land | O25: =D4*D5 -> 22845000
A26: Fixed Cost (% of Normal) | B26: 1 | G26: Working Capital | I26: =B12 -> 0.05 | J26: of FCI | O26: =I26*O24 -> 17200942.5
A27: Discount Rate (Internal Rate of Return [IRR]) | B27: =INPUT!B72 -> 0.1 | C27: Short et. al | G27: Total Capital Investment (TCI) | O27: =FCI+O26+O25 -> 384064792.6
A28: Income Tax Rate | B28: =INPUT!B73 -> 0.35
A29: Biomass Production Rate (MM US Dry Ton/yr) | B29: =OPEX!B3 -> 0.1874779196 | C29: Mass balances | G29: Lang Factor (FCI/Purchased Equip Cost) | O29: =O24/J12 -> 1.508901798
A30: Cost Year for Analysis | B30: =INPUT!B70 -> 2014
A31: Minimum Biomass Selling Price ($/US Dry Ton) | B31: 494.0318824 | C31: Manipulated Value
A32: Minimum Biomass Selling Price ($/kg) | B32: =B31*2.205/2000 -> 0.5446701504 | G32: =DCFROR!$B$30&" Dollars" -> 2014 Dollars
A33: Net Present Value | B33: =E70 -> 0 | C33: Targeted Value
A39: DCFROR Worksheet
A40: Year | C40: -2 | D40: -1 | E40: 0 | F40: 1 | G40: 2 | H40: 3 | I40: 4 | J40: 5 | K40: 6 | L40: 7 | M40: 8 | N40: 9 | O40: 10 | P40: 11 | Q40: 12 | R40: 13 | S40: 14 | T40: 15 | U40: 16 | V40: 17 | W40: 18 | X40: 19 | Y40: 20 | Z40: 21 | AA40: 22 | AB40: 23 | AC40: 24 | AD40: 25 | AE40: 26 | AF40: 27 | AG40: 28 | AH40: 29 | AI40: 30
A41: Fixed Capital Investment | C41: =FCI*B20*B8 -> 11008603.2 | D41: =FCI*B21*B8 -> 82564524.01 | E41: =FCI*B22*B8 -> 44034412.81
A42: Land | C42: =O25 -> 22845000 | AI42: =-C42 -> -22845000
A43: Working Capital | E43: =B12*B4 -> 17200942.5 | AI43: =-E43 -> -17200942.5
A44: Loan Payment | F44: =B11 -> 30761371.99 | G44: =IF($B$10>1,$B$11,0) -> 30761371.99 | H44: =IF($B$10>2,$B$11,0) -> 30761371.99 | I44: =IF($B$10>3,$B$11,0) -> 30761371.99 | J44: =IF($B$10>4,$B$11,0) -> 30761371.99 | K44: =IF($B$10>5,$B$11,0) -> 30761371.99 | L44: =IF($B$10>6,$B$11,0) -> 30761371.99 | M44: =IF($B$10>7,$B$11,0) -> 30761371.99 | N44: =IF($B$10>8,$B$11,0) -> 30761371.99 | O44: =IF($B$10>9,$B$11,0) -> 30761371.99 | P44: =IF($B$10>10,$B$11,0) -> 0 | Q44: =IF($B$10>11,$B$11,0) -> 0 | R44: =IF($B$10>12,$B$11,0) -> 0 | S44: =IF($B$10>13,$B$11,0) -> 0 | T44: =IF($B$10>14,$B$11,0) -> 0 | U44: =IF($B$10>15,$B$11,0) -> 0 | V44: =IF($B$10>16,$B$11,0) -> 0 | W44: =IF($B$10>17,$B$11,0) -> 0 | X44: =IF($B$10>18,$B$11,0) -> 0 | Y44: 0 | Z44: 0 | AA44: 0 | AB44: 0 | AC44: 0 | AD44: 0 | AE44: 0 | AF44: 0 | AG44: 0 | AH44: 0 | AI44: =IF($B$10>19,$B$11,0) -> 0
A45: Loan Interest Payment | C45: =$B$9*C46 -> 1321032.384 | D45: =$B$9*D46 -> 11228775.27 | E45: =$B$9*E46 -> 16512904.8 | F45: =B4*(1-B8)*B9 -> 16512904.8 | G45: =$B$9*F46 -> 15373027.43 | H45: 14141959.86 | I45: 12812406.89 | J45: 11376489.68 | K45: 9825699.097 | L45: 8150845.266 | M45: 6342003.127 | N45: 4388453.618 | O45: 2278620.148 | P45: 3.799796104e-09 | Q45: 4.103779793e-09 | R45: 4.432082176e-09 | S45: 4.78664875e-09 | T45: 5.16958065e-09 | U45: 5.583147102e-09 | V45: 6.029798871e-09 | W45: 6.51218278e-09 | X45: 7.033157403e-09 | Y45: 7.595809995e-09 | Z45: 8.203474794e-09 | AA45: 8.859752778e-09 | AB45: 9.568533e-09 | AC45: 1.033401564e-08 | AD45: 1.116073689e-08 | AE45: 1.205359584e-08 | AF45: 1.301788351e-08 | AG45: 1.405931419e-08 | AH45: 1.518405933e-08 | AI45: =$B$9*X46 -> 7.595809995e-09
A46: Loan Principal | C46: =FCI*(1-B8)*B20 -> 16512904.8 | D46: =FCI*(1-B8)*B21+C46 -> 140359690.8 | E46: =FCI*(1-B8)*B22+D46 -> 206411310 | F46: =FCI*(1-B8)-F44+F45 -> 192162842.8 | G46: =F46-G44+G45 -> 176774498.3 | H46: =G46-H44+H45 -> 160155086.1 | I46: 142206121 | J46: 122821238.7 | K46: 101885565.8 | L46: 79275039.09 | M46: 54855670.22 | N46: 28482751.85 | O46: 4.749745131e-08 | P46: 5.129724741e-08 | Q46: 5.54010272e-08 | R46: 5.983310938e-08 | S46: 6.461975813e-08 | T46: 6.978933878e-08 | U46: 7.537248588e-08 | V46: 8.140228475e-08 | W46: 8.791446753e-08 | X46: 9.494762494e-08 | Y46: 1.025434349e-07 | Z46: 1.107469097e-07 | AA46: 1.196066625e-07 | AB46: 1.291751955e-07 | AC46: 1.395092111e-07 | AD46: 1.50669948e-07 | AE46: 1.627235439e-07 | AF46: 1.757414274e-07 | AG46: 1.898007416e-07 | AH46: 2.049848009e-07 | AI46: =X46-AI44+AI45 -> 1.025434349e-07
A47: Algal Biomass Sales | F47: =($B$29*$B$31*1000000)*(1-B23)+($B$29*$B$31*1000000)*B23*B24 -> 69465052.15 | G47: =$B$29*$B$31*1000000 -> 92620069.53 | H47: 92620069.53 | I47: 92620069.53 | J47: 92620069.53 | K47: 92620069.53 | L47: 92620069.53 | M47: 92620069.53 | N47: 92620069.53 | O47: 92620069.53 | P47: 92620069.53 | Q47: 92620069.53 | R47: 92620069.53 | S47: 92620069.53 | T47: 92620069.53 | U47: 92620069.53 | V47: 92620069.53 | W47: 92620069.53 | X47: 92620069.53 | Y47: 92620069.53 | Z47: 92620069.53 | AA47: 92620069.53 | AB47: 92620069.53 | AC47: 92620069.53 | AD47: 92620069.53 | AE47: 92620069.53 | AF47: 92620069.53 | AG47: 92620069.53 | AH47: 92620069.53 | AI47: 92620069.53
A48: By-Product Credit | F48: =(OPEX!L58*1000000)*(1-B23)+(OPEX!L58*1000000)*B23*B24 -> 0 | G48: =OPEX!$L$58*1000000 -> 0 | H48: =OPEX!$L$58*1000000 -> 0 | I48: =OPEX!$L$58*1000000 -> 0 | J48: =OPEX!$L$58*1000000 -> 0 | K48: =OPEX!$L$58*1000000 -> 0 | L48: =OPEX!$L$58*1000000 -> 0 | M48: =OPEX!$L$58*1000000 -> 0 | N48: =OPEX!$L$58*1000000 -> 0 | O48: =OPEX!$L$58*1000000 -> 0 | P48: =OPEX!$L$58*1000000 -> 0 | Q48: =OPEX!$L$58*1000000 -> 0 | R48: =OPEX!$L$58*1000000 -> 0 | S48: =OPEX!$L$58*1000000 -> 0 | T48: =OPEX!$L$58*1000000 -> 0 | U48: =OPEX!$L$58*1000000 -> 0 | V48: =OPEX!$L$58*1000000 -> 0 | W48: =OPEX!$L$58*1000000 -> 0 | X48: =OPEX!$L$58*1000000 -> 0 | Y48: =OPEX!$L$58*1000000 -> 0 | Z48: =OPEX!$L$58*1000000 -> 0 | AA48: =OPEX!$L$58*1000000 -> 0 | AB48: =OPEX!$L$58*1000000 -> 0 | AC48: =OPEX!$L$58*1000000 -> 0 | AD48: =OPEX!$L$58*1000000 -> 0 | AE48: =OPEX!$L$58*1000000 -> 0 | AF48: =OPEX!$L$58*1000000 -> 0 | AG48: =OPEX!$L$58*1000000 -> 0 | AH48: =OPEX!$L$58*1000000 -> 0 | AI48: =OPEX!$L$58*1000000 -> 0
A49: Total Annual Sales | F49: =F47+F48 -> 69465052.15 | G49: =G47+G48 -> 92620069.53 | H49: 92620069.53 | I49: 92620069.53 | J49: 92620069.53 | K49: 92620069.53 | L49: 92620069.53 | M49: 92620069.53 | N49: 92620069.53 | O49: 92620069.53 | P49: 92620069.53 | Q49: 92620069.53 | R49: 92620069.53 | S49: 92620069.53 | T49: 92620069.53 | U49: 92620069.53 | V49: 92620069.53 | W49: 92620069.53 | X49: 92620069.53 | Y49: 92620069.53 | Z49: 92620069.53 | AA49: 92620069.53 | AB49: 92620069.53 | AC49: 92620069.53 | AD49: 92620069.53 | AE49: 92620069.53 | AF49: 92620069.53 | AG49: 92620069.53 | AH49: 92620069.53 | AI49: 92620069.53
A50: Annual Manufacturing Cost
A51: CO2 Cost | F51: =(OPEX!L16*1000000)*(1-B23)+(OPEX!L16*1000000)*(B23)*B24 -> 13648098.49 | G51: =OPEX!$L$16*1000000 -> 18197464.65 | H51: =OPEX!$L$16*1000000 -> 18197464.65 | I51: =OPEX!$L$16*1000000 -> 18197464.65 | J51: =OPEX!$L$16*1000000 -> 18197464.65 | K51: =OPEX!$L$16*1000000 -> 18197464.65 | L51: =OPEX!$L$16*1000000 -> 18197464.65 | M51: =OPEX!$L$16*1000000 -> 18197464.65 | N51: =OPEX!$L$16*1000000 -> 18197464.65 | O51: =OPEX!$L$16*1000000 -> 18197464.65 | P51: =OPEX!$L$16*1000000 -> 18197464.65 | Q51: =OPEX!$L$16*1000000 -> 18197464.65 | R51: =OPEX!$L$16*1000000 -> 18197464.65 | S51: =OPEX!$L$16*1000000 -> 18197464.65 | T51: =OPEX!$L$16*1000000 -> 18197464.65 | U51: =OPEX!$L$16*1000000 -> 18197464.65 | V51: =OPEX!$L$16*1000000 -> 18197464.65 | W51: =OPEX!$L$16*1000000 -> 18197464.65 | X51: =OPEX!$L$16*1000000 -> 18197464.65 | Y51: =OPEX!$L$16*1000000 -> 18197464.65 | Z51: =OPEX!$L$16*1000000 -> 18197464.65 | AA51: =OPEX!$L$16*1000000 -> 18197464.65 | AB51: =OPEX!$L$16*1000000 -> 18197464.65 | AC51: =OPEX!$L$16*1000000 -> 18197464.65 | AD51: =OPEX!$L$16*1000000 -> 18197464.65 | AE51: =OPEX!$L$16*1000000 -> 18197464.65 | AF51: =OPEX!$L$16*1000000 -> 18197464.65 | AG51: =OPEX!$L$16*1000000 -> 18197464.65 | AH51: =OPEX!$L$16*1000000 -> 18197464.65 | AI51: =OPEX!$L$16*1000000 -> 18197464.65
A52: Other Variable Costs | F52: =(((OPEX!L59-OPEX!L16)*1000000)*(1-B23))+((OPEX!L59-OPEX!L16)*1000000)*B23*B25 -> 9025208.653 | G52: =(OPEX!$L$59-OPEX!$L$16)*1000000 -> 10314524.18 | H52: =(OPEX!$L$59-OPEX!$L$16)*1000000 -> 10314524.18 | I52: =(OPEX!$L$59-OPEX!$L$16)*1000000 -> 10314524.18 | J52: =(OPEX!$L$59-OPEX!$L$16)*1000000 -> 10314524.18 | K52: =(OPEX!$L$59-OPEX!$L$16)*1000000 -> 10314524.18 | L52: =(OPEX!$L$59-OPEX!$L$16)*1000000 -> 10314524.18 | M52: =(OPEX!$L$59-OPEX!$L$16)*1000000 -> 10314524.18 | N52: =(OPEX!$L$59-OPEX!$L$16)*1000000 -> 10314524.18 | O52: =(OPEX!$L$59-OPEX!$L$16)*1000000 -> 10314524.18 | P52: =(OPEX!$L$59-OPEX!$L$16)*1000000 -> 10314524.18 | Q52: =(OPEX!$L$59-OPEX!$L$16)*1000000 -> 10314524.18 | R52: =(OPEX!$L$59-OPEX!$L$16)*1000000 -> 10314524.18 | S52: =(OPEX!$L$59-OPEX!$L$16)*1000000 -> 10314524.18 | T52: =(OPEX!$L$59-OPEX!$L$16)*1000000 -> 10314524.18 | U52: =(OPEX!$L$59-OPEX!$L$16)*1000000 -> 10314524.18 | V52: =(OPEX!$L$59-OPEX!$L$16)*1000000 -> 10314524.18 | W52: =(OPEX!$L$59-OPEX!$L$16)*1000000 -> 10314524.18 | X52: =(OPEX!$L$59-OPEX!$L$16)*1000000 -> 10314524.18 | Y52: =(OPEX!$L$59-OPEX!$L$16)*1000000 -> 10314524.18 | Z52: =(OPEX!$L$59-OPEX!$L$16)*1000000 -> 10314524.18 | AA52: =(OPEX!$L$59-OPEX!$L$16)*1000000 -> 10314524.18 | AB52: =(OPEX!$L$59-OPEX!$L$16)*1000000 -> 10314524.18 | AC52: =(OPEX!$L$59-OPEX!$L$16)*1000000 -> 10314524.18 | AD52: =(OPEX!$L$59-OPEX!$L$16)*1000000 -> 10314524.18 | AE52: =(OPEX!$L$59-OPEX!$L$16)*1000000 -> 10314524.18 | AF52: =(OPEX!$L$59-OPEX!$L$16)*1000000 -> 10314524.18 | AG52: =(OPEX!$L$59-OPEX!$L$16)*1000000 -> 10314524.18 | AH52: =(OPEX!$L$59-OPEX!$L$16)*1000000 -> 10314524.18 | AI52: =(OPEX!$L$59-OPEX!$L$16)*1000000 -> 10314524.18
A53: Fixed Operating Costs | F53: =(OPEX!L82*1000000)*(1-B23)+(OPEX!L82*1000000)*B23*B26 -> 11617092.97 | G53: =OPEX!$L$82*1000000 -> 11617092.97 | H53: =OPEX!$L$82*1000000 -> 11617092.97 | I53: =OPEX!$L$82*1000000 -> 11617092.97 | J53: =OPEX!$L$82*1000000 -> 11617092.97 | K53: =OPEX!$L$82*1000000 -> 11617092.97 | L53: =OPEX!$L$82*1000000 -> 11617092.97 | M53: =OPEX!$L$82*1000000 -> 11617092.97 | N53: =OPEX!$L$82*1000000 -> 11617092.97 | O53: =OPEX!$L$82*1000000 -> 11617092.97 | P53: =OPEX!$L$82*1000000 -> 11617092.97 | Q53: =OPEX!$L$82*1000000 -> 11617092.97 | R53: =OPEX!$L$82*1000000 -> 11617092.97 | S53: =OPEX!$L$82*1000000 -> 11617092.97 | T53: =OPEX!$L$82*1000000 -> 11617092.97 | U53: =OPEX!$L$82*1000000 -> 11617092.97 | V53: =OPEX!$L$82*1000000 -> 11617092.97 | W53: =OPEX!$L$82*1000000 -> 11617092.97 | X53: =OPEX!$L$82*1000000 -> 11617092.97 | Y53: =OPEX!$L$82*1000000 -> 11617092.97 | Z53: =OPEX!$L$82*1000000 -> 11617092.97 | AA53: =OPEX!$L$82*1000000 -> 11617092.97 | AB53: =OPEX!$L$82*1000000 -> 11617092.97 | AC53: =OPEX!$L$82*1000000 -> 11617092.97 | AD53: =OPEX!$L$82*1000000 -> 11617092.97 | AE53: =OPEX!$L$82*1000000 -> 11617092.97 | AF53: =OPEX!$L$82*1000000 -> 11617092.97 | AG53: =OPEX!$L$82*1000000 -> 11617092.97 | AH53: =OPEX!$L$82*1000000 -> 11617092.97 | AI53: =OPEX!$L$82*1000000 -> 11617092.97
A54: Total Product Cost | F54: =SUM(F51:F53) -> 34290400.11 | G54: 40129081.8 | H54: 40129081.8 | I54: 40129081.8 | J54: 40129081.8 | K54: 40129081.8 | L54: 40129081.8 | M54: 40129081.8 | N54: 40129081.8 | O54: 40129081.8 | P54: 40129081.8 | Q54: 40129081.8 | R54: 40129081.8 | S54: 40129081.8 | T54: 40129081.8 | U54: 40129081.8 | V54: 40129081.8 | W54: 40129081.8 | X54: 40129081.8 | Y54: 40129081.8 | Z54: 40129081.8 | AA54: 40129081.8 | AB54: 40129081.8 | AC54: 40129081.8 | AD54: 40129081.8 | AE54: 40129081.8 | AF54: 40129081.8 | AG54: 40129081.8 | AH54: 40129081.8 | AI54: 40129081.8
A55: Annual Depreciation
A56: General Plant Writedown | F56: 0.1429 | G56: 0.2449 | H56: 0.1749 | I56: 0.1249 | J56: 0.0893 | K56: 0.0892 | L56: 0.0893 | M56: 0.0446
A57: Depreciation Charge | F57: =$B$5*F56 -> 49160293.67 | G57: =$B$5*G56 -> 84250216.38 | H57: 60168896.87 | I57: 42967954.37 | J57: 30720883.31 | K57: 30686481.42 | L57: 30720883.31 | M57: 15343240.71
A58: Remaining Value | F58: =$B$5-$B$14-F57 -> 294858556.4 | G58: =F58-G57 -> 210608340 | H58: 150439443.1 | I58: 107471488.8 | J58: 76750605.45 | K58: 46064124.02 | L58: 15343240.71 | M58: 3.725290298e-08
A59: Steam Plant Writedown | F59: 0.0375 | G59: 0.07219 | H59: 0.06677 | I59: 0.06177 | J59: 0.05713 | K59: 0.05285 | L59: 0.04888 | M59: 0.04522 | N59: 0.04462 | O59: 0.04461 | P59: 0.04462 | Q59: 0.04461 | R59: 0.04462 | S59: 0.04461 | T59: 0.04462 | U59: 0.04461 | V59: 0.04462 | W59: 0.04461 | X59: 0.04462 | Y59: 0.04461 | Z59: 0.02231
A60: Depreciation Charge | F60: =$B$6*F59 -> 0 | G60: 0 | H60: 0 | I60: 0 | J60: 0 | K60: 0 | L60: 0 | M60: 0 | N60: 0 | O60: 0 | P60: 0 | Q60: 0 | R60: 0 | S60: 0 | T60: 0 | U60: 0 | V60: 0 | W60: 0 | X60: 0 | Y60: 0 | Z60: 0
A61: Remaining Value | F61: =B6-B15-F60 -> 0 | G61: =F61-G60 -> 0 | H61: 0 | I61: 0 | J61: 0 | K61: 0 | L61: 0 | M61: 0 | N61: 0 | O61: 0 | P61: 0 | Q61: 0 | R61: 0 | S61: 0 | T61: 0 | U61: 0 | V61: 0 | W61: 0 | X61: 0 | Y61: 0 | Z61: 0
A62: Net Revenue | F62: =F49-F54-F57-F60-F45 -> -30498546.44 | G62: -47132256.07 | H62: -21819869 | I62: -3289373.527 | J62: 10393614.74 | K62: 11978807.21 | L62: 13619259.16 | M62: 30805743.9 | N62: 48102534.12 | O62: 50212367.59 | P62: 52490987.73 | Q62: 52490987.73 | R62: 52490987.73 | S62: 52490987.73 | T62: 52490987.73 | U62: 52490987.73 | V62: 52490987.73 | W62: 52490987.73 | X62: 52490987.73 | Y62: 52490987.73 | Z62: 52490987.73 | AA62: 52490987.73 | AB62: 52490987.73 | AC62: 52490987.73 | AD62: 52490987.73 | AE62: 52490987.73 | AF62: 52490987.73 | AG62: 52490987.73 | AH62: 52490987.73 | AI62: 52490987.73
A63: Losses Forward | G63: =IF(F64<0,F64,0) -> -30498546.44 | H63: -77630802.51 | I63: -99450671.51 | J63: -102740045 | K63: -92346430.29 | L63: -80367623.08 | M63: -66748363.92 | N63: -35942620.02 | O63: 0 | P63: 0 | Q63: 0 | R63: 0 | S63: 0 | T63: 0 | U63: 0 | V63: 0 | W63: 0 | X63: 0 | Y63: 0 | Z63: 0 | AA63: 0 | AB63: 0 | AC63: 0 | AD63: 0 | AE63: 0 | AF63: 0 | AG63: 0 | AH63: 0 | AI63: =IF(X64<0,X64,0) -> 0
A64: Taxable Income | F64: =F62+F63 -> -30498546.44 | G64: -77630802.51 | H64: -99450671.51 | I64: -102740045 | J64: -92346430.29 | K64: -80367623.08 | L64: -66748363.92 | M64: -35942620.02 | N64: 12159914.09 | O64: 50212367.59 | P64: 52490987.73 | Q64: 52490987.73 | R64: 52490987.73 | S64: 52490987.73 | T64: 52490987.73 | U64: 52490987.73 | V64: 52490987.73 | W64: 52490987.73 | X64: 52490987.73 | Y64: 52490987.73 | Z64: 52490987.73 | AA64: 52490987.73 | AB64: 52490987.73 | AC64: 52490987.73 | AD64: 52490987.73 | AE64: 52490987.73 | AF64: 52490987.73 | AG64: 52490987.73 | AH64: 52490987.73 | AI64: 52490987.73
A65: Income Tax | F65: =IF(F64*($B$28)<0,0,F64*$B$28) -> 0 | G65: 0 | H65: 0 | I65: 0 | J65: 0 | K65: 0 | L65: 0 | M65: 0 | N65: 4255969.933 | O65: 17574328.66 | P65: 18371845.71 | Q65: 18371845.71 | R65: 18371845.71 | S65: 18371845.71 | T65: 18371845.71 | U65: 18371845.71 | V65: 18371845.71 | W65: 18371845.71 | X65: 18371845.71 | Y65: 18371845.71 | Z65: 18371845.71 | AA65: 18371845.71 | AB65: 18371845.71 | AC65: 18371845.71 | AD65: 18371845.71 | AE65: 18371845.71 | AF65: 18371845.71 | AG65: 18371845.71 | AH65: 18371845.71 | AI65: 18371845.71
A66: Annual Cash Income | F66: =F49-F54-F65-F44 -> 4413280.041 | G66: 21729615.74 | H66: 21729615.74 | I66: 21729615.74 | J66: 21729615.74 | K66: 21729615.74 | L66: 21729615.74 | M66: 21729615.74 | N66: 17473645.81 | O66: 4155287.084 | P66: 34119142.03 | Q66: 34119142.03 | R66: 34119142.03 | S66: 34119142.03 | T66: 34119142.03 | U66: 34119142.03 | V66: 34119142.03 | W66: 34119142.03 | X66: 34119142.03 | Y66: 34119142.03 | Z66: 34119142.03 | AA66: 34119142.03 | AB66: 34119142.03 | AC66: 34119142.03 | AD66: 34119142.03 | AE66: 34119142.03 | AF66: 34119142.03 | AG66: 34119142.03 | AH66: 34119142.03 | AI66: 34119142.03
A67: Discount Factor | C67: =1/(1+$B$27)^C40 -> 1.21 | D67: 1.1 | E67: 1 | F67: 0.9090909091 | G67: 0.826446281 | H67: 0.7513148009 | I67: 0.6830134554 | J67: 0.6209213231 | K67: 0.5644739301 | L67: 0.5131581182 | M67: 0.4665073802 | N67: 0.4240976184 | O67: 0.3855432894 | P67: 0.3504938995 | Q67: 0.3186308177 | R67: 0.2896643797 | S67: 0.2633312543 | T67: 0.2393920494 | U67: 0.2176291358 | V67: 0.1978446689 | W67: 0.1798587899 | X67: 0.1635079908 | Y67: 0.148643628 | Z67: 0.1351305709 | AA67: 0.1228459736 | AB67: 0.1116781578 | AC67: 0.101525598 | AD67: 0.09229599818 | AE67: 0.08390545289 | AF67: 0.07627768444 | AG67: 0.06934334949 | AH67: 0.06303940863 | AI67: 0.0573085533
A68: Annual Present Value | B68: =SUM(F68:AI68) -> 221187223.3 | F68: =F67*F66 -> 4012072.764 | G68: 17958360.12 | H68: 16325781.92 | I68: 14841619.93 | J68: 13492381.75 | K68: 12265801.6 | L68: 11150728.72 | M68: 10137026.11 | N68: 7410531.571 | O68: 1602043.051 | P68: 11958551.14 | Q68: 10871410.12 | R68: 9883100.113 | S68: 8984636.466 | T68: 8167851.333 | U68: 7425319.393 | V68: 6750290.358 | W68: 6136627.598 | X68: 5578752.362 | Y68: 5071593.056 | Z68: 4610539.142 | AA68: 4191399.22 | AB68: 3810362.927 | AC68: 3463966.297 | AD68: 3149060.27 | AE68: 2862782.064 | AF68: 2602529.149 | AG68: 2365935.59 | AH68: 2150850.536 | AI68: 1955318.669
A69: Total Capital Investment + Interest | C69: =(C41+C42+C45)*C67 -> 42561309.06 | D69: =(D41+D45)*D67 -> 103172629.2 | E69: =(E41+E45+E43)*E67 -> 77748260.11 | AI69: =(AI41+AI45+AI43+AI42)*AI67 -> -2294975.03
A70: Net Present Worth | E70: =B68-SUM(B69:AI69) -> 0
F73: If taxable income < 0, tax = $0
F74: Loan Interest subtracted from taxable income.
F75: Loan payment subtracted from annual cash income
F76: Interest on construction loan added to investment
A78: NPV of Income Tax | B78: =SUM(F78:AI78) -> 68883390.47 | F78: =F65*F67 -> 0 | G78: 0 | H78: 0 | I78: 0 | J78: 0 | K78: 0 | L78: 0 | M78: 0 | N78: 1804946.712 | O78: 6775664.479 | P78: 6439219.843 | Q78: 5853836.221 | R78: 5321669.291 | S78: 4837881.174 | T78: 4398073.795 | U78: 3998248.904 | V78: 3634771.731 | W78: 3304337.937 | X78: 3003943.579 | Y78: 2730857.799 | Z78: 2482597.999 | AA78: 2256907.272 | AB78: 2051733.884 | AC78: 1865212.622 | AD78: 1695647.838 | AE78: 1541498.034 | AF78: 1401361.85 | AG78: 1273965.318 | AH78: 1158150.289 | AI78: 1052863.899
A79: NPV of Algal Biomass Income | B79: =SUM(F79:AI79) -> 852071457.6 | F79: =F47*F67 -> 63150047.41 | G79: 76545512.01 | H79: 69586829.1 | I79: 63260753.73 | J79: 57509776.12 | K79: 52281614.65 | L79: 47528740.59 | M79: 43207945.99 | N79: 39279950.9 | O79: 35709046.28 | P79: 32462769.34 | Q79: 29511608.49 | R79: 26828734.99 | S79: 24389759.08 | T79: 22172508.26 | U79: 20156825.69 | V79: 18324386.99 | W79: 16658533.63 | X79: 15144121.48 | Y79: 13767383.16 | Z79: 12515802.88 | AA79: 11378002.61 | AB79: 10343638.74 | AC79: 9403307.946 | AD79: 8548461.769 | AE79: 7771328.881 | AF79: 7064844.437 | AG79: 6422585.852 | AH79: 5838714.411 | AI79: 5307922.192
B82: =B78/B79 -> 0.08084226957

Sheet Mass Balance
C2: FLOW DIAGRAM
C3: (note, this is only an overall schematic of the process, beyond individual processing equipment, pumps, piping, etc)
F5: =C61*2.205/2000*24 -> 11.00249179 | G5: ton/day NH3 | AQ5: a
F6: =C62*2.205/2000*24 -> 5.348221041 | G6: ton/day DAP
J8: =H67*2.205/2000*24 -> 19464.00549 | K8: ton/day Water | AE8: =U56/2000*2.205*24 -> 2879.336422 | AH8: ton/day
J9: =H56*2.205/2000*24-J8 -> 1076.586119 | K9: ton/day Other | P9: =R56/2000*2.205*24 -> 6931.408544 | Q9: ton/day
F11: =D56*2.205/2000*24 -> 29047.78697 | G11: ton/day
L14: =F56/2000*2.205*24 -> 1255836.609 | M14: ton/day
Q18: =S56/2000*2.205*24 -> 59517.01626 | R18: ton/day
Z19: =T56*2.205/2000*24 -> 2885.131609 | AA19: ton/day
L20: =P56/2000*2.205*24 -> 1321276.353 | M20: ton/day
N24: =I56*2.205/2000*24 -> 56631.9413 | O24: ton/day
AI25: =V56*2.205*24/2000 -> 5.795187046 | AK25: ton/day
N27: =G56*2.205/2000*24 -> 1230.804668 | O27: ton/day
E28: =E69*2.205/2000*24 -> 15.95044576 | F28: ton/day Algae (AFDW)
E29: =E56*2.205/2000*24-E28 -> 32.51111745 | F29: ton/day Other
L36: =M56*2.205/2000*24 -> 34.44121806 | M36: ton/day | AG36: =AJ56 -> 287.0002829 | AH36: kW
Y39: =AD56+AE56+AF56+AG56 -> 632.1915996 | Z39: kW
AJ40: POWER BALANCE
E41: =K61*2.205/2000*24 -> 0.3950784853 | F41: ton/day NH3
E42: =K62*2.205/2000*24 -> 0.1701930527 | F42: ton/day DAP | Z42: =Z56+AA56+AB56+AH56 -> 6818.421476 | AA42: kW
T44: =AC56 -> 195.1871237 | U44: kW | AJ44: =AK56 -> 9749.612221 | AK44: kW
H46: =L56*2.205/2000*24 -> 487.9893775 | I46: ton/day | P46: =O56*2.205/2000*24 -> 1265.245886 | Q46: ton/day
AD49: =AI56 -> 1816.811738 | AE49: kW
K53: Yearly Average | AD53: Yearly Average Power Usage
C54: 100 | D54: 110 | E54: 120 | F54: 130 | G54: 140 | H54: 150 | I54: 160 | K54: 200 | L54: 210 | M54: 220 | N54: 230 | O54: 300 | P54: 500 | R54: 510 | S54: 520 | T54: 600 | U54: 610 | V54: 620 | Z54: W-101 | AA54: W-102 | AB54: W-103 | AC54: W-201 | AD54: W-501 | AE54: W-502 | AF54: W-503 | AG54: W-504 | AH54: W-104 | AI54: W-301 | AJ54: W-401 | AK54: W-Total
A55: Component | B55: Units | C55: Nutrients | D55: Makup Water | E55: Inoculum Algae | F55: Clarified Water | G55: CO2 | H55: Evaporation | I55: Recycle Water | J55: Total Inlet Into Area 100 | K55: Nutrients | L55: Make-up Water | M55: CO2 | N55: Evaporation | O55: CO2 (From outside of Facility) | P55: Algae to Settlers | Q55: Clarified Water to Blowdown | R55: Blowdown | S55: Algae | T55: Algae Product | U55: Algae Product | V55: Storage Loss | Z55: Paddlewheel Mixing | AA55: Pump to Settlers | AB55: Clarified Water Pump | AC55: Inoculum Power | AD55: Pump from Settler to Membranes | AE55: Membrane Power Requirement | AF55: Pump from Membrane to Centrifuge | AG55: Centrifuge Power | AH55: Pump Return from Central Dewatering | AI55: CO2 Heating Power | AJ55: Make-up Water Pump | AK55: Total
A56: Total Flow | B56: kg/hr | C56: =AVERAGE(C77,C98,C119,C140) -> 617.9407722 | D56: =AVERAGE(D77,D98,D119,D140) -> 1097799.961 | E56: 1831.502767 | F56: 47461701.03 | G56: 46515.67149 | H56: 776288.4207 | I56: 2140285.008 | J56: 50748751.11 | K56: 21.36324784 | L56: 18442.53127 | M56: 1301.633336 | N56: 17948.84837 | O56: 47817.30483 | P56: 49934858.38 | Q56: 47723659.02 | R56: 261957.9949 | S56: 2249320.342 | T56: 109037.4758 | U56: 108818.4589 | V56: 219.0168951 | Y56: kW | Z56: =AVERAGE(Z77,Z98,Z119,Z140) -> 4641.245624 | AA56: 945.2254407 | AB56: 838.5166021 | AC56: 195.1871237 | AD56: 289.9441032 | AE56: 89.9728137 | AF56: 2.893277967 | AG56: 249.3814047 | AH56: 393.4338088 | AI56: 1816.811738 | AJ56: 287.0002829 | AK56: 9749.612221
Y57: Chiller Utility GJ/hr | AC57: =AVERAGE(AC78,AC99,AC120,AC141) -> 16.87748319
AM58: Electricity usage by AREA (kW) | AR58: kW
AM59: Area 100: Production Pond | AR59: =Z56+AA56+AB56 -> 6424.987667
AM60: Area 200: Inoculum Ponds | AR60: =AC56 -> 195.1871237
A61: Ammonia | B61: kg/hr | C61: =AVERAGE(C82,C103,C124,C145) -> 415.8160163 | D61: =AVERAGE(D82,D103,D124,D145) -> 0 | E61: 2.986231937 | F61: 99.31363478 | G61: 0 | H61: 0 | I61: 4.474705957 | J61: 522.590589 | K61: 14.93115969 | L61: 0 | M61: 0 | N61: 0 | O61: 0 | P61: 104.5181178 | Q61: 99.86183565 | R61: 0.5482008717 | S61: 4.656282148 | T61: 0.1815761905 | U61: 0.1815761905 | V61: 0 | AM61: Area 300: CO2 Delivery | AR61: =AI56 -> 1816.811738
A62: DAP | B62: kg/hr | C62: =AVERAGE(C83,C104,C125,C146) -> 202.1247559 | D62: 0 | E62: 0.6432088158 | F62: 21.39130743 | G62: 0 | H62: 0 | I62: 0.9638133878 | J62: 225.1230855 | K62: 6.432088158 | L62: 0 | M62: 0 | N62: 0 | O62: 0 | P62: 22.51230855 | Q62: 21.50938521 | R62: 0.1180777786 | S62: 1.002923346 | T62: 0.03910995828 | U62: 0.03910995828 | V62: 0 | AM62: Area 400: Makeup Water Delivery | AR62: =AJ56 -> 287.0002829
A63: O2 | B63: kg/hr | C63: =AVERAGE(C84,C105,C126,C147) -> 0 | D63: 0 | E63: 0 | F63: 0 | G63: 0 | H63: 36035.73895 | I63: 0 | J63: 0 | K63: 0 | L63: 0 | M63: 0 | N63: 1029.592541 | O63: 0 | P63: 0 | Q63: 0 | R63: 0 | S63: 0 | T63: 0 | U63: 0 | V63: 0 | AM63: Area 400: On-Site Circulation | AR63: =AH56 -> 393.4338088
A64: N2 | B64: kg/hr | C64: =AVERAGE(C85,C106,C127,C148) -> 0 | D64: 0 | E64: 0 | F64: 0 | G64: 0 | H64: 0 | I64: 0 | J64: 0 | K64: 0 | L64: 0 | M64: 0 | N64: 0 | O64: 0 | P64: 0 | Q64: 0 | R64: 0 | S64: 0 | T64: 0 | U64: 0 | V64: 0 | AM64: Area 500: Dewatering | AR64: =AD56+AE56+AF56+AG56 -> 632.1915996
A65: CO2 | B65: kg/hr | C65: =AVERAGE(C86,C107,C128,C149) -> 0 | D65: 0 | E65: 0 | F65: 0 | G65: 46515.67149 | H65: 4651.567149 | I65: 0 | J65: 46515.67149 | K65: 0 | L65: 0 | M65: 1301.633336 | N65: 105.5160687 | O65: 47817.30483 | P65: 0 | Q65: 0 | R65: 0 | S65: 0 | T65: 0 | U65: 0 | V65: 0
A66: Salt (NaCl) | B66: kg/hr | C66: =AVERAGE(C87,C108,C129,C150) -> 0 | D66: 274.3813949 | E66: 4.609480448 | F66: 36087.50548 | G66: 0 | H66: 0 | I66: 1627.458688 | J66: 37993.95528 | K66: 0 | L66: 4.609480448 | M66: 0 | N66: 0 | O66: 0 | P66: 37993.95528 | Q66: 36300.457 | R66: 212.9515273 | S66: 1693.498279 | T66: 66.03959045 | U66: 66.03959045 | V66: 0
A67: Water | B67: kg/hr | C67: =AVERAGE(C88,C109,C130,C151) -> 0 | D67: 1097525.58 | E67: 1205.627042 | F67: =AVERAGE(F88,F109,F130,F151) -> 47422948.72 | G67: 0 | H67: 735601.1146 | I67: 2137847.609 | J67: 50659527.54 | K67: 0 | L67: 18437.92179 | M67: 0 | N67: 16813.73976 | O67: 0 | P67: 49909277 | Q67: 47684679.06 | R67: 261730.336 | S67: 2224597.941 | T67: 86750.33142 | U67: 86750.33142 | V67: 0
A68: Solids
A69: Algae (AFDW) | B69: kg/hr | C69: =AVERAGE(C90,C111,C132,C153) -> 0 | D69: 0 | E69: 602.8135208 | F69: 2483.038866 | G69: 0 | H69: 0 | I69: 783.1034165 | J69: 3868.95596 | K69: 0 | L69: 0 | M69: 0 | N69: 0 | O69: 0 | P69: 24967.42919 | Q69: 2496.742919 | R69: 13.70405288 | S69: 22470.68627 | T69: 21687.58285 | U69: 21470.70703 | V69: 216.8758285
A70: Ash | B70: kg/hr | C70: =AVERAGE(C91,C112,C133,C154) -> 0 | D70: 0 | E70: 14.8232833 | F70: 61.05833277 | G70: 0 | H70: 0 | I70: 21.39770799 | J70: 97.27932407 | K70: 0 | L70: 0 | M70: 0 | N70: 0 | O70: 0 | P70: 613.9531768 | Q70: 61.39531768 | R70: 0.3369849068 | S70: 552.5578591 | T70: 533.3012177 | U70: 531.1601511 | V70: 2.141066603
K74: Summer | AD74: Summer Power Usage
C75: 100 | D75: 110 | E75: 120 | F75: 130 | G75: 140 | H75: 150 | I75: 160 | K75: 200 | L75: 210 | M75: 220 | N75: 230 | O75: 300 | P75: 500 | Q75: 500.A | R75: 510 | S75: 520 | T75: 600 | U75: 610 | V75: 620
A76: Component | B76: Units | C76: Nutrients | D76: Makup Water | E76: Inoculum Algae | F76: Clarified Water | G76: CO2 | H76: Evaporation | I76: Recycle Water | J76: Total Inlet Into Area 100 | K76: Nutrients | L76: Make-up Water | M76: CO2 | N76: Evaporation | O76: CO2 (From outside of Facility) | P76: Algae to Settlers | Q76: Clarified Water to Blowdown | R76: Blowdown | S76: Algae | T76: Algae Product | U76: Algae Product | V76: Storage Loss | Z76: Paddlewheel Mixing | AA76: Pump to Settlers | AB76: Clarified Water Pump | AC76: Inoculum Power | AD76: Pump from Settler to Membranes | AE76: Membrane Power Requirement | AF76: Pump from Membrane to Centrifuge | AG76: Centrifuge Power | AH76: Pump Return from Central Dewatering | AI76: CO2 Heating Power | AJ76: Make-up Water Pump | AK76: Total
A77: Total Flow | B77: kg/hr | C77: =SUM(C82:C91) -> 864.0943987 | D77: 1203131.139 | E77: 2559.999323 | F77: =SUM(F82:F91) -> 66446562.35 | G77: 65056.88321 | H77: =SUM(H82:H91) -> 815691.5732 | I77: =SUM(I82:I91) -> 2993596.441 | J77: 70711770.91 | K77: =SUM(K82:K91) -> 29.87866831 | L77: =SUM(L82:L91) -> 19620.17279 | M77: 1820.466204 | N77: 18931.2502 | O77: 66877.34941 | P77: ='Mass Balance'!P90/INPUT!B15*1000 -> 69846455.95 | Q77: =SUM(Q82:Q91) -> 66750697.34 | R77: =SUM(R82:R91) -> 304134.9967 | S77: =SUM(S82:S91) -> 3146107.602 | T77: =SUM(T82:T91) -> 152511.161 | U77: =SUM(U82:U91) -> 152207.8056 | V77: 303.3553813 | Y77: kW | Z77: ='Quick Access Charts'!B48*INPUT!B10/2.47105/24 -> 4641.245624 | AA77: =P77/998*998*9.81*((1.45-1)*14.69*2.31)/3.28084/(3.6*10^6)/0.67 -> 1322.200499 | AB77: =(Q77-R77)/998*998*9.81*((1.42-1)*14.69*2.31)/3.28084/(3.6*10^6)/0.67 -> 1173.984157 | AC77: ='Quick Access Charts'!B49*('Quick Access Charts'!B37+'Quick Access Charts'!B38)/24+'Quick Access Charts'!B39*229/24 -> 195.1871237 | AD77: =(S77)/998*998*9.81*((4.93-1)*14.69*2.31)/3.28084/(3.6*10^6)/0.8593 -> 405.5426566 | AE77: =S77*0.04/1000/60*60 -> 125.8443041 | AF77: =(S90*(1-0.005)/(INPUT!$B$30/1000)-S90)/998*998*9.81*((1.59-1)*14.69*2.31)/3.28084/(3.6*10^6)/0.8593 -> 4.047175846 | AG77: =(S90*(1-0.005)/(INPUT!$B$30/1000))/1000*1.45 -> 348.8226034 | AH77: =(S77-T77)/998*998*9.81*((5.37-1)*14.69*2.31)/3.28084/(3.6*10^6)/0.67 -> 550.3197754 | AI77: =G77/65057*2541 -> 2540.995438 | AJ77: =(D77+L77)/998*998*9.81*((12.4-2)*14.69*2.31)/3.28084/(3.6*10^6)/0.67-(D77+L77)/998*998*9.81*((12.4-6)*14.69*2.31)/3.28084/(3.6*10^6) -> 314.3850684 | AK77: =SUM(Z77:AJ77) -> 11622.57443
A78: Salinity | B78: mg/L | C78: =IF(C88>0,C87*1000*1000/C88,0) -> 0 | D78: =IF(D88>0,D87*1000*1000/D88,0) -> 250 | E78: =IF(E88>0,E87*1000*1000/(E88+N88),0) -> 257.6904278 | F78: =IF(F88>0,F87*1000*1000/F88,0) -> 718.6770459 | G78: 0 | H78: 0 | I78: 718.6770459 | J78: =IF(J88>0,J87*1000*1000/J88,0) -> 710.743239 | K78: 0 | L78: 250 | M78: 0 | N78: 0 | O78: 0 | P78: 718.6770459 | Q78: 718.6770459 | R78: =IF(R88=0,0,R87*1000*1000/R88) -> 718.6770459 | S78: 718.6770459 | T78: 718.6770459 | U78: 718.6770459 | V78: 0 | Y78: Chiller Utility GJ/hr | AC78: =4.187*4*5*1.06*1000/25*10000/1000/1000*('Quick Access Charts'!B38+'Quick Access Charts'!B39)/24*0.239005736/0.239006 -> 16.87748319
A79: Is salinity above cell tolerance? | B79: (1=Yes, 0=No) | C79: =IF('Mass Balance'!C78>INPUT!$B$39,1,0) -> 0 | D79: =IF('Mass Balance'!D78>INPUT!$B$39,1,0) -> 0 | E79: =IF('Mass Balance'!E78>INPUT!$B$39,1,0) -> 0 | F79: =IF('Mass Balance'!F78>INPUT!$B$39,1,0) -> 0 | G79: =IF('Mass Balance'!G78>INPUT!$B$39,1,0) -> 0 | H79: =IF('Mass Balance'!H78>INPUT!$B$39,1,0) -> 0 | I79: =IF('Mass Balance'!I78>INPUT!$B$39,1,0) -> 0 | J79: =IF('Mass Balance'!J78>INPUT!$B$39,1,0) -> 0 | K79: =IF('Mass Balance'!K78>INPUT!$B$39,1,0) -> 0 | L79: =IF('Mass Balance'!L78>INPUT!$B$39,1,0) -> 0 | M79: =IF('Mass Balance'!M78>INPUT!$B$39,1,0) -> 0 | N79: =IF('Mass Balance'!N78>INPUT!$B$39,1,0) -> 0 | O79: =IF('Mass Balance'!O78>INPUT!$B$39,1,0) -> 0 | P79: =IF('Mass Balance'!P78>INPUT!$B$39,1,0) -> 0 | Q79: =IF('Mass Balance'!Q78>INPUT!$B$39,1,0) -> 0 | R79: =IF('Mass Balance'!R78>INPUT!$B$39,1,0) -> 0 | S79: =IF('Mass Balance'!S78>INPUT!$B$39,1,0) -> 0 | T79: =IF('Mass Balance'!T78>INPUT!$B$39,1,0) -> 0 | U79: =IF('Mass Balance'!U78>INPUT!$B$39,1,0) -> 0 | V79: =IF('Mass Balance'!V78>INPUT!$B$39,1,0) -> 0
A82: Ammonia | B82: kg/hr | C82: =J82-E82-G82-I82-F82+H82-D82 -> 581.4305093 | D82: 0 | E82: =K82+L82+M82-N82-E90/'Quick Access Charts'!B33*'Quick Access Charts'!B7*-1*'Quick Access Charts'!B31 -> 4.176548164 | F82: =P82-S82-R82 -> 139.0305412 | G82: 0 | H82: 0 | I82: =S82-U82 -> 6.25833001 | J82: ='Quick Access Charts'!C15/(1-INPUT!B20)*'Quick Access Charts'!B31 -> 730.8959287 | K82: =(E90/'Quick Access Charts'!B33*'Quick Access Charts'!B7*-1*'Quick Access Charts'!B31)/(1-INPUT!B20) -> 20.88274082 | L82: 0 | M82: 0 | N82: 0 | O82: 0 | P82: =J82-'Quick Access Charts'!C15*'Quick Access Charts'!B31 -> 146.1791857 | Q82: =P82-S82 -> 139.666903 | R82: =$R$88/$Q$88*Q82 -> 0.6363617876 | S82: =S88/P77*P82 -> 6.512282724 | T82: =T88/S88*S82 -> 0.253952714 | U82: =T82 -> 0.253952714 | V82: 0
A83: DAP | B83: kg/hr | C83: =J83-E83-G83-I83-F83+H83-D83 -> 282.6638894 | D83: 0 | E83: =K83+L83+M83-N83-E90/'Quick Access Charts'!B33*'Quick Access Charts'!B6*-1*'Quick Access Charts'!B30 -> 0.8995927494 | F83: 29.94598935 | G83: 0 | H83: 0 | I83: =S83-U83 -> 1.347990752 | J83: ='Quick Access Charts'!C16/(1-INPUT!B21)*'Quick Access Charts'!B30 -> 314.8574623 | K83: =('Mass Balance'!E90/'Quick Access Charts'!B33*'Quick Access Charts'!B6*-'Quick Access Charts'!B30)/(1-INPUT!B21) -> 8.995927494 | L83: 0 | M83: 0 | N83: 0 | O83: 0 | P83: =J83-'Quick Access Charts'!C16*'Quick Access Charts'!B30 -> 31.48574623 | Q83: =P83-S83 -> 30.08305623 | R83: =$R$88/$Q$88*Q83 -> 0.1370668858 | S83: =S88/P77*P83 -> 1.402689994 | T83: =S83*T88/S88 -> 0.05469924235 | U83: 0.05469924235 | V83: 0
A84: O2 | B84: kg/hr | C84: 0 | D84: 0 | E84: =K84+L84+M84-N84+E90/'Quick Access Charts'!B33*'Quick Access Charts'!B9*'Quick Access Charts'!B27 -> 0 | F84: 0 | G84: 0 | H84: =J84+'Quick Access Charts'!C19*'Quick Access Charts'!B27 -> 50399.63489 | I84: 0 | J84: =SUM(C84:G84,I84) -> 0 | K84: 0 | L84: 0 | M84: 0 | N84: =E90/'Quick Access Charts'!B33*'Quick Access Charts'!B9*'Quick Access Charts'!B27 -> 1439.989568 | O84: 0 | P84: 0 | Q84: 0 | R84: 0 | S84: =S88/P77*P84 -> 0 | T84: 0 | U84: 0 | V84: 0
A85: N2 | B85: kg/hr | C85: 0 | D85: 0 | E85: =K85+L85+M85-N85 -> 0 | F85: 0 | G85: 0 | H85: =J85 -> 0 | I85: 0 | J85: =SUM(C85:G85,I85) -> 0 | K85: 0 | L85: 0 | M85: 0 | N85: 0 | O85: 0 | P85: 0 | Q85: 0 | R85: 0 | S85: =S88/P77*P85 -> 0 | T85: 0 | U85: 0 | V85: 0
A86: CO2 | B86: kg/hr | C86: 0 | D86: 0 | E86: =K86+L86+M86-N86-E90/'Quick Access Charts'!B33*'Quick Access Charts'!B5*-1*'Quick Access Charts'!B29 -> 0 | F86: 0 | G86: ='Quick Access Charts'!C17*'Quick Access Charts'!B29/(INPUT!B18) -> 65056.88321 | H86: =J86-'Quick Access Charts'!C17*'Quick Access Charts'!B29 -> 6505.688321 | I86: 0 | J86: =SUM(C86:G86,I86) -> 65056.88321 | K86: 0 | L86: 0 | M86: =E90/'Quick Access Charts'!B33*'Quick Access Charts'!B5*-1*'Quick Access Charts'!B29*'Quick Access Charts'!B37/'Quick Access Charts'!B36/(INPUT!B18)+E90/'Quick Access Charts'!B33*'Quick Access Charts'!B5*-1*'Quick Access Charts'!B29*('Quick Access Charts'!B38+'Quick Access Charts'!B39)/'Quick Access Charts'!B36/INPUT!B19 -> 1820.466204 | N86: =M86-'Mass Balance'!E90/'Quick Access Charts'!B33*'Quick Access Charts'!B5*-1*'Quick Access Charts'!B29 -> 147.5749212 | O86: =M86+G86 -> 66877.34941 | P86: 0 | Q86: 0 | R86: 0 | S86: =S88/P77*P86 -> 0 | T86: 0 | U86: 0 | V86: 0
A87: Salt (NaCl) | B87: kg/hr | C87: 0 | D87: =D88*INPUT!B38/1000/1000 -> 300.7076077 | E87: =K87+L87+M87-N87 -> 4.903817243 | F87: =IFERROR(P87-S87-R87,0) -> 47716.64499 | G87: 0 | H87: 0 | I87: 2149.072519 | J87: 50171.32893 | K87: 0 | L87: =L88*INPUT!B38/1000/1000 -> 4.903817243 | M87: 0 | N87: 0 | O87: 0 | P87: =IFERROR(J87,0) -> 50171.32893 | Q87: =IFERROR(P87*Q88/P88,0) -> 47935.05059 | R87: =$R$88/$Q$88*Q87 -> 218.4056053 | S87: =S88/P88*P87 -> 2236.278338 | T87: =T88/S88*S87 -> 87.20581973 | U87: =T87 -> 87.20581973 | V87: 0
A88: Water | B88: kg/hr | C88: 0 | D88: =U88+H88+R88-E88+'Quick Access Charts'!C18*'Quick Access Charts'!B26 -> 1202830.431 | E88: =K88+L88+M88-N88-E90/'Quick Access Charts'!B33*'Quick Access Charts'!B8*-1*'Quick Access Charts'!B26 -> 1686.191667 | F88: =P88-S88-R88 -> 66395114.83 | G88: 0 | H88: =INPUT!B47*4046.86*INPUT!$B$10/100*1000/24 -> 758786.25 | I88: 2990317.46 | J88: =D88+E88+F88+G88+I88 -> 70589948.91 | K88: 0 | L88: =E90/INPUT!B25+N88+E90/'Quick Access Charts'!B33*'Quick Access Charts'!B8*-1*'Quick Access Charts'!B26 -> 19615.26897 | M88: 0 | N88: =INPUT!B47/100*'Quick Access Charts'!B37*10000*1000/24 -> 17343.68571 | O88: 0 | P88: =P77-P90-P91 -> 69810673.96 | Q88: =P88-S88 -> 66699014.34 | R88: 303899.5144 | S88: =S90/INPUT!B27*1000-S90 -> 3111659.613 | T88: =T90/INPUT!B32*1000-T90 -> 121342.1525 | U88: =T88 -> 121342.1525 | V88: 0
A89: Solids | AO89: Goal Seek for Mass Balance Recycles
A90: Algae (AFDW) | B90: kg/hr | C90: 0 | D90: 0 | E90: =INPUT!B22*INPUT!B17/INPUT!B26/24 -> 843.0958333 | F90: =P90-S90-R90 -> 3476.41079 | G90: 0 | H90: 0 | I90: =S90-T90 -> 1095.367045 | J90: 5414.87381 | K90: 0 | L90: 0 | M90: 0 | N90: 0 | O90: 0 | P90: ='Quick Access Charts'!C13+J90 -> 34923.22798 | Q90: =P90-S90 -> 3492.322798 | R90: =R88/Q88*Q90 -> 15.91200729 | S90: =P90*INPUT!B28 -> 31430.90518 | T90: =S90*(INPUT!B31)*(INPUT!B33) -> 30335.53813 | U90: =T90-V90 -> 30032.18275 | V90: =T90*INPUT!B34 -> 303.3553813 | AO90: =SUM(C90,D90,E90,F90,G90,I90) -> 5414.873669 | AP90: =SUM(C87:G87,I87) -> 50171.32893 | AQ90: =IF(INPUT!B35="User defined",R77,R78) -> 304134.9967
A91: Ash | B91: kg/hr | C91: 0 | D91: 0 | E91: =E90/(1-INPUT!$B$64)-E90 -> 20.73186475 | F91: =P91-S91-R91 -> 85.48551124 | G91: 0 | H91: 0 | I91: =S91-T91 -> 26.93525522 | J91: =SUM(C91,D91,E91,F91,G91,I91) -> 133.1526312 | K91: 0 | L91: 0 | M91: 0 | N91: 0 | O91: 0 | P91: =P90/(1-INPUT!$B$64)-P90 -> 858.7679011 | Q91: =P91-S91 -> 85.87679011 | R91: =$R$88/$Q$88*Q91 -> 0.3912788677 | S91: =S90/(1-INPUT!$B$64)-S90 -> 772.891111 | T91: =T90/(1-INPUT!$B$64)-T90 -> 745.9558557 | U91: =T91 -> 745.9558557 | V91: 0 | AO91: =J90-AO90 -> 0.000140844797 | AP91: =(AP90-J87) -> 0 | AQ91: =IF(INPUT!B35="User defined",AQ90-INPUT!B48,R78-(INPUT!B39-INPUT!B39*INPUT!B40)) -> -0.003286143765 | AR91: =SUM(AO91:AQ91)+AQ92 -> -0.003145298968
AQ92: =IF(INPUT!B35="User defined",0,IF(R77=0,AQ91*-1,0)) -> 0
K95: Fall | AD95: Fall Power Usage
C96: 100 | D96: 110 | E96: 120 | F96: 130 | G96: 140 | H96: 150 | I96: 160 | K96: 200 | L96: 210 | M96: 220 | N96: 230 | O96: 300 | P96: 500 | Q96: 500.A | R96: 510 | S96: 520 | T96: 600 | U96: 610 | V96: 620
A97: Component | B97: Units | C97: Nutrients | D97: Makup Water | E97: Inoculum Algae | F97: Clarified Water | G97: CO2 | H97: Evaporation | I97: Recycle Water | J97: Total Inlet Into Area 100 | K97: Nutrients | L97: Make-up Water | M97: CO2 | N97: Evaporation | O97: CO2 (From outside of Facility) | P97: Algae to Settlers | Q97: Clarified Water to Blowdown | R97: Blowdown | S97: Algae | T97: Algae Product | U97: Algae Product | V97: Storage Loss | Z97: Paddlewheel Mixing | AA97: Pump to Settlers | AB97: Clarified Water Pump | AC97: Inoculum Power | AD97: Pump from Settler to Membranes | AE97: Membrane Power Requirement | AF97: Pump from Membrane to Centrifuge | AG97: Centrifuge Power | AH97: Pump Return from Central Dewatering | AI97: CO2 Heating Power | AJ97: Make-up Water Pump | AK97: Total
A98: Total Flow | B98: kg/hr | C98: =SUM(C103:C112) -> 614.4882268 | D98: 511670.9066 | E98: 1819.858154 | F98: =SUM(F103:F112) -> 47379262.58 | G98: =SUM(G103:G112) -> 46283.32548 | H98: =SUM(H103:H112) -> 335567.6145 | I98: =SUM(I103:I112) -> 2130076.599 | J98: 50069727.76 | K98: =SUM(K103:K112) -> 21.25653831 | L98: =SUM(L103:L112) -> 8362.926108 | M98: =SUM(M103:M112) -> 1295.131671 | N98: 7874.205403 | O98: 47578.45715 | P98: ='Mass Balance'!P111/INPUT!B15*1000 -> 49702755.55 | Q98: =SUM(Q103:Q112) -> 47496079.58 | R98: =SUM(R103:R112) -> 116817 | S98: =SUM(S103:S112) -> 2238596.788 | T98: =SUM(T103:T112) -> 108520.1884 | U98: =SUM(U103:U112) -> 108304.3207 | V98: =SUM(V103:V112) -> 215.8677653 | Y98: kW | Z98: ='Quick Access Charts'!B48*INPUT!B10/2.47105/24 -> 4641.245624 | AA98: =P98/998*998*9.81*(6.61*2.31)/3.28084/(3.6*10^6)/0.67 -> 940.807041 | AB98: =(Q98-R98)/998*998*9.81*(6.61*2.31)*0.42/0.45/3.28084/(3.6*10^6)/0.67 -> 837.0379829 | AC98: ='Quick Access Charts'!B49*('Quick Access Charts'!B37+'Quick Access Charts'!B38)/24+'Quick Access Charts'!B39*229/24 -> 195.1871237 | AD98: =(S98)/998*998*9.81*((4.93-1)*14.69*2.31)/3.28084/(3.6*10^6)/0.8593 -> 288.561805 | AE98: =S98*0.04/1000/60*60 -> 89.54387152 | AF98: =(S111*(1-0.005)/(INPUT!$B$30/1000)-S111)/998*998*9.81*((6.61*2.31)*0.59/0.45)/3.28084/(3.6*10^6)/0.8593 -> 2.879753513 | AG98: =(S111*(1-0.005)/(INPUT!$B$30/1000))/1000*1.45 -> 248.222252 | AH98: =(S98-T98)/998*998*9.81*((6.61*2.31)*4.37/0.45)/3.28084/(3.6*10^6)/0.67 -> 391.5473028 | AI98: =G98/65057*2541 -> 1807.736755 | AJ98: =(D98+L98)/998*998*9.81*((12.4-2)*14.69*2.31)/3.28084/(3.6*10^6)/0.67-(D98+L98)/998*998*9.81*((12.4-6)*14.69*2.31)/3.28084/(3.6*10^6) -> 133.7073782 | AK98: =SUM(Z98:AJ98) -> 9576.47689
A99: Salinity | B99: mg/L | C99: =IF(C109>0,C108*1000*1000/C109,0) -> 0 | D99: =IF(D109>0,D108*1000*1000/D109,0) -> 250 | E99: =IF(E109>0,E108*1000*1000/(E109+N109),0) -> 263.1056402 | F99: =IF(F109>0,F108*1000*1000/F109,0) -> 640.019305 | G99: =IF(G109>0,G108*1000*1000/G109,0) -> 0 | H99: 0 | I99: 640.019305 | J99: 636.0545056 | K99: 0 | L99: 250 | M99: 0 | N99: 0 | O99: 0 | P99: 640.019305 | Q99: 640.019305 | R99: =IF(R109=0,0,R108*1000*1000/R109) -> 640.019305 | S99: 640.019305 | T99: 640.019305 | U99: 640.019305 | V99: 0 | Y99: Chiller Utility GJ/hr | AC99: =4.187*4*5*1.06*1000/25*10000/1000/1000*('Quick Access Charts'!B38+'Quick Access Charts'!B39)/24*0.239005736/0.239006 -> 16.87748319
A100: Is salinity above cell tolerance? | B100: (1=Yes, 0=No) | C100: =IF('Mass Balance'!C99>INPUT!$B$39,1,0) -> 0 | D100: =IF('Mass Balance'!D99>INPUT!$B$39,1,0) -> 0 | E100: =IF('Mass Balance'!E99>INPUT!$B$39,1,0) -> 0 | F100: =IF('Mass Balance'!F99>INPUT!$B$39,1,0) -> 0 | G100: =IF('Mass Balance'!G99>INPUT!$B$39,1,0) -> 0 | H100: =IF('Mass Balance'!H99>INPUT!$B$39,1,0) -> 0 | I100: =IF('Mass Balance'!I99>INPUT!$B$39,1,0) -> 0 | J100: =IF('Mass Balance'!J99>INPUT!$B$39,1,0) -> 0 | K100: =IF('Mass Balance'!K99>INPUT!$B$39,1,0) -> 0 | L100: =IF('Mass Balance'!L99>INPUT!$B$39,1,0) -> 0 | M100: =IF('Mass Balance'!M99>INPUT!$B$39,1,0) -> 0 | N100: =IF('Mass Balance'!N99>INPUT!$B$39,1,0) -> 0 | O100: =IF('Mass Balance'!O99>INPUT!$B$39,1,0) -> 0 | P100: =IF('Mass Balance'!P99>INPUT!$B$39,1,0) -> 0 | Q100: =IF('Mass Balance'!Q99>INPUT!$B$39,1,0) -> 0 | R100: =IF('Mass Balance'!R99>INPUT!$B$39,1,0) -> 0 | S100: =IF('Mass Balance'!S99>INPUT!$B$39,1,0) -> 0 | T100: =IF('Mass Balance'!T99>INPUT!$B$39,1,0) -> 0 | U100: =IF('Mass Balance'!U99>INPUT!$B$39,1,0) -> 0 | V100: =IF('Mass Balance'!V99>INPUT!$B$39,1,0) -> 0
A103: Ammonia | B103: kg/hr | C103: =J103-E103-G103-I103-F103+H103-D103 -> 413.4379348 | D103: 0 | E103: =K103+L103+M103-N103-E111/'Quick Access Charts'!B33*'Quick Access Charts'!B7*-1*'Quick Access Charts'!B31 -> 2.971315694 | F103: =P103-S103-R103 -> 99.1186411 | G103: 0 | H103: 0 | I103: =S103-U103 -> 4.452354779 | J103: ='Quick Access Charts'!D15/(1-INPUT!B20)*'Quick Access Charts'!B31 -> 519.9802464 | K103: =(E111/'Quick Access Charts'!B33*'Quick Access Charts'!B7*-1*'Quick Access Charts'!B31)/(1-INPUT!B20) -> 14.85657847 | L103: 0 | M103: 0 | N103: 0 | O103: 0 | P103: =J103-'Quick Access Charts'!D15*'Quick Access Charts'!B31 -> 103.9960493 | Q103: =P103-S103 -> 99.36302528 | R103: =$R$109/$Q$109*Q103 -> 0.2443841813 | S103: =S109/P98*P103 -> 4.633023995 | T103: =T109/S109*S103 -> 0.1806692165 | U103: =T103 -> 0.1806692165 | V103: 0
A104: DAP | B104: kg/hr | C104: =J104-E104-G104-I104-F104+H104-D104 -> 201.050292 | D104: 0 | E104: =K104+L104+M104-N104-E111/'Quick Access Charts'!B33*'Quick Access Charts'!B6*-1*'Quick Access Charts'!B30 -> 0.6399959846 | F104: 21.34930746 | G104: 0 | H104: 0 | I104: 0.9589991351 | J104: ='Quick Access Charts'!D16/(1-INPUT!B21)*'Quick Access Charts'!B30 -> 223.9985946 | K104: =('Mass Balance'!E111/'Quick Access Charts'!B33*'Quick Access Charts'!B6*-'Quick Access Charts'!B30)/(1-INPUT!B21) -> 6.399959846 | L104: 0 | M104: 0 | N104: 0 | O104: 0 | P104: =J104-'Quick Access Charts'!D16*'Quick Access Charts'!B30 -> 22.39985946 | Q104: =P104-S104 -> 21.40194572 | R104: =$R$109/$Q$109*Q104 -> 0.05263826225 | S104: =S109/P98*P104 -> 0.9979137389 | T104: =S104*T109/S109 -> 0.03891460384 | U104: 0.03891460384 | V104: 0
A105: O2 | B105: kg/hr | C105: 0 | D105: 0 | E105: =K105+L105+M105-N105+E111/'Quick Access Charts'!B33*'Quick Access Charts'!B9*'Quick Access Charts'!B27 -> 0 | F105: 0 | G105: 0 | H105: =J105+'Quick Access Charts'!D19*'Quick Access Charts'!B27 -> 35855.74025 | I105: 0 | J105: =SUM(C105:G105,I105) -> 0 | K105: 0 | L105: 0 | M105: 0 | N105: =E111/'Quick Access Charts'!B33*'Quick Access Charts'!B9*'Quick Access Charts'!B27 -> 1024.449721 | O105: 0 | P105: 0 | Q105: 0 | R105: =$R$109/$Q$109*Q105 -> 0 | S105: =S109/P98*P105 -> 0 | T105: 0 | U105: 0 | V105: 0
A106: N2 | B106: kg/hr | C106: 0 | D106: 0 | E106: =K106+L106+M106-N106 -> 0 | F106: 0 | G106: 0 | H106: =J106 -> 0 | I106: 0 | J106: =SUM(C106:G106,I106) -> 0 | K106: 0 | L106: 0 | M106: 0 | N106: 0 | O106: 0 | P106: 0 | Q106: 0 | R106: 0 | S106: =S109/P98*P106 -> 0 | T106: 0 | U106: 0 | V106: 0
A107: CO2 | B107: kg/hr | C107: 0 | D107: 0 | E107: =K107+L107+M107-N107-E111/'Quick Access Charts'!B33*'Quick Access Charts'!B5*-1*'Quick Access Charts'!B29 -> 0 | F107: 0 | G107: ='Quick Access Charts'!D17*'Quick Access Charts'!B29/(INPUT!B18) -> 46283.32548 | H107: =J107-'Quick Access Charts'!D17*'Quick Access Charts'!B29 -> 4628.332548 | I107: 0 | J107: =SUM(C107:G107,I107) -> 46283.32548 | K107: 0 | L107: 0 | M107: =E111/'Quick Access Charts'!B33*'Quick Access Charts'!B5*-1*'Quick Access Charts'!B29*'Quick Access Charts'!B37/'Quick Access Charts'!B36/(INPUT!B18)+E111/'Quick Access Charts'!B33*'Quick Access Charts'!B5*-1*'Quick Access Charts'!B29*('Quick Access Charts'!B38+'Quick Access Charts'!B39)/'Quick Access Charts'!B36/INPUT!B19 -> 1295.131671 | N107: =M107-'Mass Balance'!E111/'Quick Access Charts'!B33*'Quick Access Charts'!B5*-1*'Quick Access Charts'!B29 -> 104.9890154 | O107: =M107+G107 -> 47578.45715 | P107: 0 | Q107: 0 | R107: 0 | S107: =S109/P98*P107 -> 0 | T107: 0 | U107: 0 | V107: 0
A108: Salt (NaCl) | B108: kg/hr | C108: 0 | D108: =D109*INPUT!B38/1000/1000 -> 127.8857552 | E108: =K108+L108+M108-N108 -> 2.090208975 | F108: =IFERROR(P108-S108-R108,0) -> 30302.54576 | G108: 0 | H108: 0 | I108: 1361.903898 | J108: 31794.42659 | K108: 0 | L108: =L109*INPUT!B38/1000/1000 -> 2.090208975 | M108: 0 | N108: 0 | O108: 0 | P108: =IFERROR(J108,0) -> 31794.42659 | Q108: =IFERROR(P108*Q109/P109,0) -> 30377.25888 | R108: =$R$109/$Q$109*Q108 -> 74.71311909 | S108: =S109/P109*P108 -> 1417.167713 | T108: =T109/S109*S108 -> 55.26381486 | U108: =T108 -> 55.26381486 | V108: 0
A109: Water | B109: kg/hr | C109: 0 | D109: =U109+H109+R109-E109+'Quick Access Charts'!D18*'Quick Access Charts'!B26 -> 511543.0208 | E109: =K109+L109+M109-N109-E111/'Quick Access Charts'!B33*'Quick Access Charts'!B8*-1*'Quick Access Charts'!B26 -> 1199.604929 | F109: =P109-S109-R109 -> 47346299.59 | G109: 0 | H109: =INPUT!C47*4046.86*INPUT!$B$10/100*1000/24 -> 295083.5417 | I109: 2127910.654 | J109: =D109+E109+F109+G109+I109 -> 49986952.87 | K109: 0 | L109: =E111/INPUT!B25+N109+E111/'Quick Access Charts'!B33*'Quick Access Charts'!B8*-1*'Quick Access Charts'!B26 -> 8360.835899 | M109: 0 | N109: =INPUT!C47/100*'Quick Access Charts'!B37*10000*1000/24 -> 6744.766667 | O109: 0 | P109: =P98-P111-P112 -> 49677293.07 | Q109: =P109-S109 -> 47463035.31 | R109: 116735.7273 | S109: =S111/INPUT!B27*1000-S111 -> 2214257.76 | T109: =T111/INPUT!B32*1000-T111 -> 86347.10613 | U109: =T109 -> 86347.10613 | V109: 0
A110: Solids | AO110: Goal Seek for Mass Balance Recycles
A111: Algae (AFDW) | B111: kg/hr | C111: 0 | D111: 0 | E111: =INPUT!C46*'Quick Access Charts'!B36*10000/1000/24 -> 599.8024643 | F111: =P111-S111-R111 -> 2479.025561 | G111: 0 | H111: 0 | I111: =S111-T111 -> 779.4634639 | J111: 3858.291525 | K111: 0 | L111: 0 | M111: 0 | N111: 0 | O111: 0 | P111: ='Quick Access Charts'!D13+J111 -> 24851.37778 | Q111: =P111-S111 -> 2485.137778 | R111: =R109/Q109*Q111 -> 6.112216888 | S111: =P111*INPUT!B28 -> 22366.24 | T111: =S111*(INPUT!B31)*(INPUT!B33) -> 21586.77653 | U111: =T111-V111 -> 21370.90877 | V111: =T111*INPUT!B34 -> 215.8677653 | AO111: =SUM(C111,D111,E111,F111,G111,I111) -> 3858.291489 | AP111: =SUM(C108:G108,I108) -> 31794.42562 | AQ111: =IF(INPUT!B35="User defined",R98,R99) -> 116817
A112: Ash | B112: kg/hr | C112: 0 | D112: 0 | E112: =E111/(1-INPUT!$B$64)-E111 -> 14.74924093 | F112: =P112-S112-R112 -> 60.95964493 | G112: 0 | H112: 0 | I112: =S112-T112 -> 19.16713436 | J112: =SUM(C112,D112,E112,F112,G112,I112) -> 94.87602022 | K112: 0 | L112: 0 | M112: 0 | N112: 0 | O112: 0 | P112: =P111/(1-INPUT!$B$64)-P111 -> 611.0994535 | Q112: =P112-S112 -> 61.10994535 | R112: =$R$109/$Q$109*Q112 -> 0.1503004153 | S112: =S111/(1-INPUT!$B$64)-S111 -> 549.9895081 | T112: =T111/(1-INPUT!$B$64)-T111 -> 530.8223738 | U112: =T112 -> 530.8223738 | V112: 0 | AO112: =AO111-J111 -> -3.626163516e-05 | AP112: =AP111-J108 -> -0.0009697618771 | AQ112: =IF(INPUT!B35="User defined",AQ111-INPUT!C48,R99-(INPUT!B39-INPUT!B39*INPUT!B40)) -> -1.455191523e-11 | AR112: =SUM(AO112:AQ112)+AQ113 -> -0.001006023527
AQ113: =IF(INPUT!B35="User defined",0,IF(R98=0,AQ112*-1,0)) -> 0
K116: Winter | AD116: Winter Power Usage
C117: 100 | D117: 110 | E117: 120 | F117: 130 | G117: 140 | H117: 150 | I117: 160 | K117: 200 | L117: 210 | M117: 220 | N117: 230 | O117: 300 | P117: 500 | Q117: 500.A | R117: 510 | S117: 520 | T117: 600 | U117: 610 | V117: 620
A118: Component | B118: Units | C118: Nutrients | D118: Makup Water | E118: Inoculum Algae | F118: Clarified Water | G118: CO2 | H118: Evaporation | I118: Recycle Water | J118: Total Inlet Into Area 100 | K118: Nutrients | L118: Make-up Water | M118: CO2 | N118: Evaporation | O118: CO2 (From outside of Facility) | P118: Algae to Settlers | Q118: Clarified Water to Blowdown | R118: Blowdown | S118: Algae | T118: Algae Product | U118: Algae Product | V118: Storage Loss | Z118: Paddlewheel Mixing | AA118: Pump to Settlers | AB118: Clarified Water Pump | AC118: Inoculum Power | AD118: Pump from Settler to Membranes | AE118: Membrane Power Requirement | AF118: Pump from Membrane to Centrifuge | AG118: Centrifuge Power | AH118: Pump Return from Central Dewatering | AI118: CO2 Heating Power | AJ118: Make-up Water Pump | AK118: Total
A119: Total Flow | B119: kg/hr | C119: =SUM(C124:C133) -> 288.8806568 | D119: =SUM(D124:D133) -> 453938.2622 | E119: 856.0079573 | F119: 22201474.4 | G119: 21747.58667 | H119: 314106.1783 | I119: 1000703.572 | J119: 23679008.71 | K119: 9.988011979 | L119: 7506.00053 | M119: 608.5558452 | N119: 7275.466796 | O119: 22356.14252 | P119: ='Mass Balance'!P132/INPUT!B15*1000 -> 23347430.02 | Q119: =SUM(Q124:Q133) -> 22313460.4 | R119: =SUM(R124:R133) -> 111985.9986 | S119: =SUM(S124:S133) -> 1051682.202 | T119: 50981.12356 | U119: 50877.22809 | V119: 103.8954656 | Y119: kW | Z119: ='Quick Access Charts'!B48*INPUT!B10/2.47105/24 -> 4641.245624 | AA119: =P119/998*998*9.81*(6.61*2.31)/3.28084/(3.6*10^6)/0.67 -> 441.9357903 | AB119: =(Q119-R119)/998*998*9.81*(6.61*2.31)*0.42/0.45/3.28084/(3.6*10^6)/0.67 -> 392.2280832 | AC119: ='Quick Access Charts'!B49*('Quick Access Charts'!B37+'Quick Access Charts'!B38)/24+'Quick Access Charts'!B39*229/24 -> 195.1871237 | AD119: =(S119)/998*998*9.81*((4.93-1)*14.69*2.31)/3.28084/(3.6*10^6)/0.8593 -> 135.5649736 | AE119: =S119*0.04/1000/60*60 -> 42.06728808 | AF119: =(S132*(1-0.005)/(INPUT!$B$30/1000)-S132)/998*998*9.81*((6.61*2.31)*0.59/0.45)/3.28084/(3.6*10^6)/0.8593 -> 1.352738754 | AG119: =(S132*(1-0.005)/(INPUT!$B$30/1000))/1000*1.45 -> 116.6002084 | AH119: =(S119-T119)/998*998*9.81*((6.61*2.31)*4.37/0.45)/3.28084/(3.6*10^6)/0.67 -> 183.9472854 | AI119: =G119/65057*2541 -> 849.4184751 | AJ119: =(D119+L119)/998*998*9.81*((12.4-2)*14.69*2.31)/3.28084/(3.6*10^6)/0.67-(D119+L119)/998*998*9.81*((12.4-6)*14.69*2.31)/3.28084/(3.6*10^6) -> 118.6432472 | AK119: =SUM(Z119:AJ119) -> 7118.190838
A120: Salinity | B120: mg/L | C120: =IF(C130>0,C129*1000*1000/C130,0) -> 0 | D120: =IF(D130>0,D129*1000*1000/D130,0) -> 250 | E120: =IF(E130>0,E129*1000*1000/(E130+N130),0) -> 256.6939094 | F120: =IF(F130>0,F129*1000*1000/F130,0) -> 756.4959345 | G120: 0 | H120: 0 | I120: 756.4959345 | J120: 746.832825 | K120: 0 | L120: 250 | M120: 0 | N120: 0 | O120: 0 | P120: 756.4959345 | Q120: 756.4959345 | R120: =IF(R130=0,0,R129*1000*1000/R130) -> 756.4959345 | S120: 756.4959345 | T120: 756.4959345 | U120: 756.4959345 | V120: 0 | Y120: Chiller Utility GJ/hr | AC120: =4.187*4*5*1.06*1000/25*10000/1000/1000*('Quick Access Charts'!B38+'Quick Access Charts'!B39)/24*0.239005736/0.239006 -> 16.87748319
A121: Is salinity above cell tolerance? | B121: (1=Yes, 0=No) | C121: =IF('Mass Balance'!C120>INPUT!$B$39,1,0) -> 0 | D121: =IF('Mass Balance'!D120>INPUT!$B$39,1,0) -> 0 | E121: =IF('Mass Balance'!E120>INPUT!$B$39,1,0) -> 0 | F121: =IF('Mass Balance'!F120>INPUT!$B$39,1,0) -> 0 | G121: =IF('Mass Balance'!G120>INPUT!$B$39,1,0) -> 0 | H121: =IF('Mass Balance'!H120>INPUT!$B$39,1,0) -> 0 | I121: =IF('Mass Balance'!I120>INPUT!$B$39,1,0) -> 0 | J121: =IF('Mass Balance'!J120>INPUT!$B$39,1,0) -> 0 | K121: =IF('Mass Balance'!K120>INPUT!$B$39,1,0) -> 0 | L121: =IF('Mass Balance'!L120>INPUT!$B$39,1,0) -> 0 | M121: =IF('Mass Balance'!M120>INPUT!$B$39,1,0) -> 0 | N121: =IF('Mass Balance'!N120>INPUT!$B$39,1,0) -> 0 | O121: =IF('Mass Balance'!O120>INPUT!$B$39,1,0) -> 0 | P121: =IF('Mass Balance'!P120>INPUT!$B$39,1,0) -> 0 | Q121: =IF('Mass Balance'!Q120>INPUT!$B$39,1,0) -> 0 | R121: =IF('Mass Balance'!R120>INPUT!$B$39,1,0) -> 0 | S121: =IF('Mass Balance'!S120>INPUT!$B$39,1,0) -> 0 | T121: =IF('Mass Balance'!T120>INPUT!$B$39,1,0) -> 0 | U121: =IF('Mass Balance'!U120>INPUT!$B$39,1,0) -> 0 | V121: =IF('Mass Balance'!V120>INPUT!$B$39,1,0) -> 0
A124: Ammonia | B124: kg/hr | C124: =J124-E124-G124-I124-F124+H124-D124 -> 194.3855058 | D124: 0 | E124: =K124+L124+M124-N124-E132/'Quick Access Charts'!B33*'Quick Access Charts'!B7*-1*'Quick Access Charts'!B31 -> 1.396160386 | F124: =P124-S124-R124 -> 46.4543311 | G124: 0 | H124: 0 | I124: =S124-U124 -> 2.092070318 | J124: ='Quick Access Charts'!E15/(1-INPUT!B20)*'Quick Access Charts'!B31 -> 244.3280676 | K124: =(E132/'Quick Access Charts'!B33*'Quick Access Charts'!B7*-1*'Quick Access Charts'!B31)/(1-INPUT!B20) -> 6.980801931 | L124: 0 | M124: 0 | N124: 0 | O124: 0 | P124: =J124-'Quick Access Charts'!E15*'Quick Access Charts'!B31 -> 48.86561352 | Q124: =P124-S124 -> 46.68865043 | R124: =$R$130/$Q$130*Q124 -> 0.2343193323 | S124: =S130/P119*P124 -> 2.176963082 | T124: =T130/S130*S124 -> 0.08489276439 | U124: =T124 -> 0.08489276439 | V124: 0
A125: DAP | B125: kg/hr | C125: =J125-E125-G125-I125-F125+H125-D125 -> 94.49515106 | D125: 0 | E125: =K125+L125+M125-N125-E132/'Quick Access Charts'!B33*'Quick Access Charts'!B6*-1*'Quick Access Charts'!B30 -> 0.3007210048 | F125: =P125-S125-R125 -> 10.00586556 | G125: 0 | H125: 0 | I125: 0.4506140514 | J125: ='Quick Access Charts'!E16/(1-INPUT!B21)*'Quick Access Charts'!B30 -> 105.2523517 | K125: =('Mass Balance'!E132/'Quick Access Charts'!B33*'Quick Access Charts'!B6*-'Quick Access Charts'!B30)/(1-INPUT!B21) -> 3.007210048 | L125: 0 | M125: 0 | N125: 0 | O125: 0 | P125: =J125-'Quick Access Charts'!E16*'Quick Access Charts'!B30 -> 10.52523517 | Q125: =P125-S125 -> 10.05633594 | R125: =$R$130/$Q$130*Q125 -> 0.05047037986 | S125: =S130/P119*P125 -> 0.4688992267 | T125: =S125*T130/S130 -> 0.0182851753 | U125: 0.0182851753 | V125: 0
A126: O2 | B126: kg/hr | C126: 0 | D126: 0 | E126: =K126+L126+M126-N126+E132/'Quick Access Charts'!B33*'Quick Access Charts'!B9*'Quick Access Charts'!B27 -> 0 | F126: 0 | G126: 0 | H126: =J126+'Quick Access Charts'!E19*'Quick Access Charts'!B27 -> 16847.87795 | I126: 0 | J126: =SUM(C126:G126,I126) -> 0 | K126: 0 | L126: 0 | M126: 0 | N126: =E132/'Quick Access Charts'!B33*'Quick Access Charts'!B9*'Quick Access Charts'!B27 -> 481.3679414 | O126: 0 | P126: 0 | Q126: 0 | R126: 0 | S126: =S130/P119*P126 -> 0 | T126: 0 | U126: 0 | V126: 0
A127: N2 | B127: kg/hr | C127: 0 | D127: 0 | E127: =K127+L127+M127-N127 -> 0 | F127: 0 | G127: 0 | H127: 0 | I127: 0 | J127: =SUM(C127:G127,I127) -> 0 | K127: 0 | L127: 0 | M127: 0 | N127: 0 | O127: 0 | P127: 0 | Q127: 0 | R127: 0 | S127: =S130/P119*P127 -> 0 | T127: 0 | U127: 0 | V127: 0
A128: CO2 | B128: kg/hr | C128: 0 | D128: 0 | E128: =K128+L128+M128-N128-E132/'Quick Access Charts'!B33*'Quick Access Charts'!B5*-1*'Quick Access Charts'!B29 -> 0 | F128: 0 | G128: ='Quick Access Charts'!E17*'Quick Access Charts'!B29/(INPUT!B18) -> 21747.58667 | H128: =J128-'Quick Access Charts'!E17*'Quick Access Charts'!B29 -> 2174.758667 | I128: 0 | J128: =SUM(C128:G128,I128) -> 21747.58667 | K128: 0 | L128: 0 | M128: =E132/'Quick Access Charts'!B33*'Quick Access Charts'!B5*-1*'Quick Access Charts'!B29*'Quick Access Charts'!B37/'Quick Access Charts'!B36/(INPUT!B18)+E132/'Quick Access Charts'!B33*'Quick Access Charts'!B5*-1*'Quick Access Charts'!B29*('Quick Access Charts'!B38+'Quick Access Charts'!B39)/'Quick Access Charts'!B36/INPUT!B19 -> 608.5558452 | N128: =M128-E132/'Quick Access Charts'!B33*'Quick Access Charts'!B5*-1*'Quick Access Charts'!B29 -> 49.33218795 | O128: =M128+G128 -> 22356.14252 | P128: 0 | Q128: 0 | R128: 0 | S128: =S130/P119*P128 -> 0 | T128: 0 | U128: 0 | V128: 0
A129: Salt (NaCl) | B129: kg/hr | C129: 0 | D129: =D130*INPUT!B38/1000/1000 -> 113.4562015 | E129: =K129+L129+M129-N129 -> 1.876031125 | F129: =IFERROR(P129-S129-R129,0) -> 16781.68685 | G129: 0 | H129: 0 | I129: 756.1685364 | J129: 17653.18761 | K129: 0 | L129: =L130*INPUT!B38/1000/1000 -> 1.876031125 | M129: 0 | N129: 0 | O129: 0 | P129: =IFERROR(J129,0) -> 17653.18761 | Q129: =IFERROR(P129*Q130/P130,0) -> 16866.33501 | R129: 84.64816009 | S129: =S130/P130*P129 -> 786.852609 | T129: =T130/S130*S129 -> 30.68407255 | U129: 30.68407255 | V129: 0
A130: Water | B130: kg/hr | C130: 0 | D130: =U130+H130+R130-E130+'Quick Access Charts'!E18*'Quick Access Charts'!B26 -> 453824.806 | E130: =K130+L130+M130-N130-E132/'Quick Access Charts'!B33*'Quick Access Charts'!B8*-1*'Quick Access Charts'!B26 -> 563.6697857 | F130: =P130-S130-R130 -> 22183446.18 | G130: 0 | H130: =INPUT!D47*4046.86*INPUT!$B$10/100*1000/24 -> 295083.5417 | I130: 999567.2176 | J130: =D130+E130+F130+G130+I130 -> 23637401.87 | K130: 0 | L130: =E132/INPUT!B25+N130+E132/'Quick Access Charts'!B33*'Quick Access Charts'!B8*-1*'Quick Access Charts'!B26 -> 7504.124499 | M130: 0 | N130: =INPUT!D47/100*'Quick Access Charts'!B37*10000*1000/24 -> 6744.766667 | O130: 0 | P130: =P119-P132-P133 -> 23335469.25 | Q130: =P130-S130 -> 22295341.24 | R130: 111895.0628 | S130: =S132/INPUT!B27*1000-S132 -> 1040128.007 | T130: =T132/INPUT!B32*1000-T132 -> 40560.78975 | U130: 40560.78975 | V130: 0
A131: Solids
A132: Algae (AFDW) | B132: kg/hr | C132: 0 | D132: 0 | E132: =INPUT!D46*'Quick Access Charts'!B36*10000/1000/24 -> 281.8348929 | F132: =P132-S132-R132 -> 1161.512739 | G132: 0 | H132: 0 | I132: =S132-T132 -> 366.1460713 | J132: 1809.49376 | K132: 0 | L132: 0 | M132: 0 | N132: 0 | O132: 0 | P132: ='Quick Access Charts'!E13+J132 -> 11673.71501 | Q132: =P132-S132 -> 1167.371501 | R132: =$R$130/$Q$130*Q132 -> 5.85876242 | S132: =P132*INPUT!B28 -> 10506.34351 | T132: =S132*(INPUT!B31)*(INPUT!B33) -> 10140.19744 | U132: =T132-V132 -> 10038.79546 | V132: =T132*INPUT!B34 -> 101.4019744 | AO132: Goal Seek for Mass Balance Recycles
A133: Ash | B133: kg/hr | C133: 0 | D133: 0 | E133: =E132/(1-INPUT!B64)-E132 -> 6.930366218 | F133: =P133-S133-R133 -> 28.56178865 | G133: 0 | H133: 0 | I133: =S133-U133 -> 11.49708309 | J133: =SUM(C133:I133) -> 46.98923796 | K133: 0 | L133: 0 | M133: 0 | N133: 0 | O133: 0 | P133: =P132/(1-INPUT!$B$64)-P132 -> 287.0585658 | Q133: =P133-S133 -> 28.70585658 | R133: =$R$130/$Q$130*Q133 -> 0.1440679284 | S133: =S132/(1-INPUT!$B$64)-S132 -> 258.3527092 | T133: =T132/(1-INPUT!$B$64)-T132 -> 249.3491173 | U133: =U132/(1-INPUT!$B$64)-U132 -> 246.8556261 | V133: =V132/(1-INPUT!$B$64)-V132 -> 2.493491173 | AO133: =SUM(C132:I132) -> 1809.493703 | AP133: =SUM(C129:G129,I129) -> 17653.18761 | AQ133: =IF(INPUT!B35="User defined",R119,R120) -> 111985.9986
AO134: =AO133-J132 -> -5.736661342e-05 | AP134: =AP133-J129 -> 0 | AQ134: =IF(INPUT!B35="User defined",AQ133-INPUT!D48,INPUT!B39*(1-INPUT!B40)-AQ133) -> -0.001433993384 | AR134: =SUM(AO134:AQ134)+AQ135 -> -0.001491359998
AQ135: =IF(INPUT!B35="User defined",0,IF(R119=0,AQ134*-1,0)) -> 0
K137: Spring | AD137: Spring Power Usage
C138: 100 | D138: 110 | E138: 120 | F138: 130 | G138: 140 | H138: 150 | I138: 160 | K138: 200 | L138: 210 | M138: 220 | N138: 230 | O138: 300 | P138: 500 | Q138: 500.A | R138: 510 | S138: 520 | T138: 600 | U138: 610 | V138: 620
A139: Component | B139: Units | C139: Nutrients | D139: Makup Water | E139: Inoculum Algae | F139: Clarified Water | G139: CO2 | H139: Evaporation | I139: Recycle Water | J139: Total Inlet Into Area 100 | K139: Nutrients | L139: Make-up Water | M139: CO2 | N139: Evaporation | O139: CO2 (From outside of Facility) | P139: Algae to Settlers | Q139: Clarified Water to Blowdown | R139: Blowdown | S139: Algae | T139: Algae Product | U139: Algae Product | V139: Storage Loss | Z139: Paddlewheel Mixing | AA139: Pump to Settlers | AB139: Clarified Water Pump | AC139: Inoculum Power | AD139: Pump from Settler to Membranes | AE139: Membrane Power Requirement | AF139: Pump from Membrane to Centrifuge | AG139: Centrifuge Power | AH139: Pump Return from Central Dewatering | AI139: CO2 Heating Power | AJ139: Make-up Water Pump | AK139: Total
A140: Total Flow | B140: kg/hr | C140: =SUM(C145:C154) -> 704.2998065 | D140: =SUM(D145:D154) -> 2222459.536 | E140: 2090.145633 | F140: 53819504.78 | G140: 52974.89061 | H140: 1639788.317 | I140: 2436763.418 | J140: 58534497.07 | K140: 24.32977277 | L140: 38281.02566 | M140: 1482.379623 | N140: 37714.47108 | O140: 54457.27024 | P140: ='Mass Balance'!P153/INPUT!B15*1000 -> 56842791.99 | Q140: =SUM(Q145:Q154) -> 54334398.76 | R140: =SUM(R145:R154) -> 514893.9842 | S140: =SUM(S145:S154) -> 2560894.777 | T140: =SUM(T145:T154) -> 124137.4301 | U140: 123884.4811 | V140: 252.9489684 | Y140: kW | Z140: ='Quick Access Charts'!B48*INPUT!B10/2.47105/24 -> 4641.245624 | AA140: =P140/998*998*9.81*(6.61*2.31)/3.28084/(3.6*10^6)/0.67 -> 1075.958432 | AB140: =(Q140-R140)/998*998*9.81*(6.61*2.31)*0.42/0.45/3.28084/(3.6*10^6)/0.67 -> 950.8161854 | AC140: ='Quick Access Charts'!B49*('Quick Access Charts'!B37+'Quick Access Charts'!B38)/24+'Quick Access Charts'!B39*229/24 -> 195.1871237 | AD140: =(S140)/998*998*9.81*((4.93-1)*14.69*2.31)/3.28084/(3.6*10^6)/0.8593 -> 330.1069774 | AE140: =S140*0.04/1000/60*60 -> 102.4357911 | AF140: =(S153*(1-0.005)/(INPUT!$B$30/1000)-S153)/998*998*9.81*((6.61*2.31)*0.59/0.45)/3.28084/(3.6*10^6)/0.8593 -> 3.293443756 | AG140: =(S153*(1-0.005)/(INPUT!$B$30/1000))/1000*1.45 -> 283.8805551 | AH140: =(S140-T140)/998*998*9.81*((6.61*2.31)*4.37/0.45)/3.28084/(3.6*10^6)/0.67 -> 447.9208715 | AI140: =G140/65057*2541 -> 2069.096286 | AJ140: =(D140+L140)/998*998*9.81*((12.4-2)*14.69*2.31)/3.28084/(3.6*10^6)/0.67-(D140+L140)/998*998*9.81*((12.4-6)*14.69*2.31)/3.28084/(3.6*10^6) -> 581.2654377 | AK140: =SUM(Z140:AJ140) -> 10681.20673
A141: Salinity | B141: mg/L | C141: =IF(C151>0,C150*1000*1000/C151,0) -> 0 | D141: =IF(D151>0,D150*1000*1000/D151,0) -> 250 | E141: =IF(E151>0,E150*1000*1000/(E153/INPUT!B25+N151),0) -> 253.1530544 | F141: =IF(F151>0,F150*1000*1000/F151,0) -> 921.5542037 | G141: 0 | H141: 0 | I141: 921.5542037 | J141: 896.1565693 | K141: 0 | L141: 250 | M141: 0 | N141: 0 | O141: 0 | P141: 921.5542037 | Q141: 921.5542037 | R141: =IF(R151=0,0,R150*1000*1000/R151) -> 921.5542037 | S141: 921.5542037 | T141: 921.5542037 | U141: 921.5542037 | V141: 0 | Y141: Chiller Utility GJ/hr | AC141: =4.187*4*5*1.06*1000/25*10000/1000/1000*('Quick Access Charts'!B38+'Quick Access Charts'!B39)/24*0.239005736/0.239006 -> 16.87748319
A142: Is salinity above cell tolerance? | B142: (1=Yes, 0=No) | C142: =IF('Mass Balance'!C141>INPUT!$B$39,1,0) -> 0 | D142: =IF('Mass Balance'!D141>INPUT!$B$39,1,0) -> 0 | E142: =IF('Mass Balance'!E141>INPUT!$B$39,1,0) -> 0 | F142: =IF('Mass Balance'!F141>INPUT!$B$39,1,0) -> 0 | G142: =IF('Mass Balance'!G141>INPUT!$B$39,1,0) -> 0 | H142: =IF('Mass Balance'!H141>INPUT!$B$39,1,0) -> 0 | I142: =IF('Mass Balance'!I141>INPUT!$B$39,1,0) -> 0 | J142: =IF('Mass Balance'!J141>INPUT!$B$39,1,0) -> 0 | K142: =IF('Mass Balance'!K141>INPUT!$B$39,1,0) -> 0 | L142: =IF('Mass Balance'!L141>INPUT!$B$39,1,0) -> 0 | M142: =IF('Mass Balance'!M141>INPUT!$B$39,1,0) -> 0 | N142: =IF('Mass Balance'!N141>INPUT!$B$39,1,0) -> 0 | O142: =IF('Mass Balance'!O141>INPUT!$B$39,1,0) -> 0 | P142: =IF('Mass Balance'!P141>INPUT!$B$39,1,0) -> 0 | Q142: =IF('Mass Balance'!Q141>INPUT!$B$39,1,0) -> 0 | R142: =IF('Mass Balance'!R141>INPUT!$B$39,1,0) -> 0 | S142: =IF('Mass Balance'!S141>INPUT!$B$39,1,0) -> 0 | T142: =IF('Mass Balance'!T141>INPUT!$B$39,1,0) -> 0 | U142: =IF('Mass Balance'!U141>INPUT!$B$39,1,0) -> 0 | V142: =IF('Mass Balance'!V141>INPUT!$B$39,1,0) -> 0
A145: Ammonia | B145: kg/hr | C145: =J145-E145-G145-I145-F145+H145-D145 -> 474.0101154 | D145: 0 | E145: =K145+L145+M145-N145-E153/'Quick Access Charts'!B33*'Quick Access Charts'!B7*-1*'Quick Access Charts'!B31 -> 3.400903505 | F145: =P145-S145-R145 -> 112.6510257 | G145: 0 | H145: 0 | I145: =S145-U145 -> 5.096068723 | J145: ='Quick Access Charts'!F15/(1-INPUT!B20)*'Quick Access Charts'!B31 -> 595.1581133 | K145: =(E153/'Quick Access Charts'!B33*'Quick Access Charts'!B7*-1*'Quick Access Charts'!B31)/(1-INPUT!B20) -> 17.00451752 | L145: 0 | M145: 0 | N145: 0 | O145: 0 | P145: =J145-'Quick Access Charts'!F15*'Quick Access Charts'!B31 -> 119.0316227 | Q145: =P145-S145 -> 113.7287639 | R145: =$R$151/$Q$151*Q145 -> 1.077738186 | S145: =S151/P140*P145 -> 5.30285879 | T145: =T151/S151*S145 -> 0.2067900671 | U145: =T145 -> 0.2067900671 | V145: 0
A146: DAP | B146: kg/hr | C146: =J146-E146-G146-I146-F146+H146-D146 -> 230.2896911 | D146: 0 | E146: =K146+L146+M146-N146-E153/'Quick Access Charts'!B33*'Quick Access Charts'!B6*-1*'Quick Access Charts'!B30 -> 0.7325255245 | F146: =P146-S146-R146 -> 24.26406735 | G146: 0 | H146: 0 | I146: 1.097649612 | J146: ='Quick Access Charts'!F16/(1-INPUT!B21)*'Quick Access Charts'!B30 -> 256.3839336 | K146: =(E153/'Quick Access Charts'!B33*'Quick Access Charts'!B6*-'Quick Access Charts'!B30)/(1-INPUT!B21) -> 7.325255245 | L146: 0 | M146: 0 | N146: 0 | O146: 0 | P146: =J146-'Quick Access Charts'!F16*'Quick Access Charts'!B30 -> 25.63839336 | Q146: =P146-S146 -> 24.49620293 | R146: =$R$151/$Q$151*Q146 -> 0.2321355865 | S146: =S151/P140*P146 -> 1.142190424 | T146: =S146*T151/S151 -> 0.04454081163 | U146: 0.04454081163 | V146: 0
A147: O2 | B147: kg/hr | C147: 0 | D147: 0 | E147: =K147+L147+M147-N147+E153/'Quick Access Charts'!B33*'Quick Access Charts'!B9*'Quick Access Charts'!B27 -> 0 | F147: 0 | G147: 0 | H147: =J147+'Quick Access Charts'!F19*'Quick Access Charts'!B27 -> 41039.7027 | I147: 0 | J147: =SUM(C147:G147,I147) -> 0 | K147: 0 | L147: 0 | M147: 0 | N147: =E153/'Quick Access Charts'!B33*'Quick Access Charts'!B9*'Quick Access Charts'!B27 -> 1172.562934 | O147: 0 | P147: 0 | Q147: 0 | R147: 0 | S147: =S151/P140*P147 -> 0 | T147: 0 | U147: 0 | V147: 0
A148: N2 | B148: kg/hr | C148: 0 | D148: 0 | E148: =K148+L148+M148-N148 -> 0 | F148: 0 | G148: 0 | H148: 0 | I148: 0 | J148: =SUM(C148:G148,I148) -> 0 | K148: 0 | L148: 0 | M148: 0 | N148: 0 | O148: 0 | P148: 0 | Q148: 0 | R148: 0 | S148: =S151/P140*P148 -> 0 | T148: 0 | U148: 0 | V148: 0
A149: CO2 | B149: kg/hr | C149: 0 | D149: 0 | E149: =K149+L149+M149-N149-E153/'Quick Access Charts'!B33*'Quick Access Charts'!B5*-1*'Quick Access Charts'!B29 -> 0 | F149: 0 | G149: ='Quick Access Charts'!F17*'Quick Access Charts'!B29/(INPUT!B18) -> 52974.89061 | H149: =J149-'Quick Access Charts'!F17*'Quick Access Charts'!B29 -> 5297.489061 | I149: 0 | J149: =SUM(C149:G149,I149) -> 52974.89061 | K149: 0 | L149: 0 | M149: =E153/'Quick Access Charts'!B33*'Quick Access Charts'!B5*-1*'Quick Access Charts'!B29*'Quick Access Charts'!B37/'Quick Access Charts'!B36/(INPUT!B18)+E153/'Quick Access Charts'!B33*'Quick Access Charts'!B5*-1*'Quick Access Charts'!B29*('Quick Access Charts'!B38+'Quick Access Charts'!B39)/'Quick Access Charts'!B36/INPUT!B19 -> 1482.379623 | N149: =M149-E153/'Quick Access Charts'!B33*'Quick Access Charts'!B5*-1*'Quick Access Charts'!B29 -> 120.1681501 | O149: =M149+G149 -> 54457.27024 | P149: 0 | Q149: 0 | R149: 0 | S149: =S151/P140*P149 -> 0 | T149: 0 | U149: 0 | V149: 0
A150: Salt (NaCl) | B150: kg/hr | C150: 0 | D150: =D151*INPUT!B38/1000/1000 -> 555.4760151 | E150: =K150+L150+M150-N150 -> 9.567864449 | F150: =IFERROR(P150-S150-R150,0) -> 49549.14431 | G150: 0 | H150: 0 | I150: 2242.6898 | J150: 52356.87799 | K150: 0 | L150: =L151*INPUT!B38/1000/1000 -> 9.567864449 | M150: 0 | N150: 0 | O150: 0 | P150: =IFERROR(J150,0) -> 52356.87799 | Q150: =IFERROR(P150*Q151/P151,0) -> 50023.18354 | R150: 474.0392249 | S150: =S151/P151*P150 -> 2333.694455 | T150: =T151/S151*S150 -> 91.00465467 | U150: 91.00465467 | V150: 0
A151: Water | B151: kg/hr | C151: 0 | D151: =U151+H151+R151-E151+'Quick Access Charts'!F18*'Quick Access Charts'!B26 -> 2221904.06 | E151: =K151+L151+M151-N151-E153/'Quick Access Charts'!B33*'Quick Access Charts'!B8*-1*'Quick Access Charts'!B26 -> 1373.041786 | F151: =P151-S151-R151 -> 53766934.29 | G151: 0 | H151: =INPUT!E47*4046.86*INPUT!$B$10/100*1000/24 -> 1593451.125 | I151: 2433595.106 | J151: =D151+E151+F151+G151+I151 -> 58423806.5 | K151: 0 | L151: =E153/INPUT!B25+N151+E153/'Quick Access Charts'!B33*'Quick Access Charts'!B8*-1*'Quick Access Charts'!B26 -> 38271.4578 | M151: 0 | N151: =INPUT!E47/100*'Quick Access Charts'!B37*10000*1000/24 -> 36421.74 | O151: 0 | P151: =P140-P153-P154 -> 56813671.71 | Q151: =P151-S151 -> 54281325.33 | R151: 514391.0396 | S151: =S153/INPUT!B27*1000-S153 -> 2532346.383 | T151: =T153/INPUT!B32*1000-T153 -> 98751.27725 | U151: 98751.27725 | V151: 0
A152: Solids
A153: Algae (AFDW) | B153: kg/hr | C153: 0 | D153: 0 | E153: =INPUT!E46*'Quick Access Charts'!B36*10000/1000/24 -> 686.5208929 | F153: =P153-S153-R153 -> 2815.206375 | G153: 0 | H153: 0 | I153: =S153-T153 -> 891.4370854 | J153: 4393.164747 | K153: 0 | L153: 0 | M153: 0 | N153: 0 | O153: 0 | P153: ='Quick Access Charts'!F13+J153 -> 28421.396 | Q153: =P153-S153 -> 2842.1396 | R153: =$R$151/$Q$151*Q153 -> 26.93322491 | S153: =P153*INPUT!B28 -> 25579.2564 | T153: =S153*(INPUT!B31)*(INPUT!B33) -> 24687.81931 | U153: =T153-V153 -> 24440.94112 | V153: =T153*INPUT!B34 -> 246.8781931 | AO153: Goal Seek for Mass Balance Recycles
A154: Ash | B154: kg/hr | C154: 0 | D154: 0 | E154: =E153/(1-INPUT!B64)-E153 -> 16.8816613 | F154: =P154-S154-R154 -> 69.22638626 | G154: 0 | H154: 0 | I154: =S154-U154 -> 27.99135931 | J154: =SUM(C154:I154) -> 114.0994069 | K154: 0 | L154: 0 | M154: 0 | N154: 0 | O154: 0 | P154: =P153/(1-INPUT!$B$64)-P153 -> 698.8867868 | Q154: =P154-S154 -> 69.88867868 | R154: 0.6622924157 | S154: =S153/(1-INPUT!$B$64)-S153 -> 628.9981081 | T154: =T153/(1-INPUT!$B$64)-T153 -> 607.0775241 | U154: =U153/(1-INPUT!$B$64)-U153 -> 601.0067488 | V154: =V153/(1-INPUT!$B$64)-V153 -> 6.070775241 | AO154: =SUM(C153:I153) -> 4393.164353 | AP154: =SUM(C150:G150,I150) -> 52356.87799 | AQ154: =IF(INPUT!B35="User defined",R140,R141) -> 514893.9842
AO155: =AO154-J153 -> -0.0003934831111 | AP155: =AP154-J150 -> 0 | AQ155: =IF(INPUT!B35="User defined",INPUT!E48-AQ154,INPUT!B39*(1-INPUT!B40)-AQ154) -> 0.01581747754 | AR155: =SUM(AO155:AQ155)+AQ156 -> 0.01542399443
AQ156: =IF(INPUT!B35="User defined",0,IF(R140=0,AQ155*-1,0)) -> 0

Sheet OPEX
B1: AVERAGE | C1: SUMMER | D1: FALL | E1: WINTER | F1: SPRING
A2: Dry Algae Biomass Production Rate (kg/hr) | B2: =AVERAGE(C2:F2) -> 21470.70703 | C2: ='Mass Balance'!U90 -> 30032.18275 | D2: ='Mass Balance'!U111 -> 21370.90877 | E2: ='Mass Balance'!U132 -> 10038.79546 | F2: ='Mass Balance'!U153 -> 24440.94112
A3: BIOMASS Production Rate (MM US Dry Ton/yr) | B3: =B2*2.205/2000*B7/1000000 -> 0.1874779196 | C3: =C2*2.205/2000*$B$7/1000000 -> 0.2622350134 | D3: =D2*2.205/2000*$B$7/1000000 -> 0.1866065012 | E3: 0.08765675423 | F3: 0.2134134097
A5: Operating Cost Analysis
A7: Operating Hours/Yr | B7: =INPUT!B71 -> 7920
A9: Variable Operating Costs
B10: Costing Code | C10: Raw Material | D10: Stream No. | E10: kg/hr | F10: lb/hr | G10: Quoted Price (cents / ton) | H10: Year of Price Quote | I10: =INPUT!B70 &" (Cost $ / ton)" -> 2014 (Cost $ / ton) | J10: =costyear & " Cost ($/lb)" -> 2014 Cost ($/lb) | K10: $/hour | L10: ="MM$/yr (" & INPUT!B70 & ")" -> MM$/yr (2014) | M10: ="$/Dry US Ton Algae ("&INPUT!B70&")" -> $/Dry US Ton Algae (2014)
A11: Raw Materials
A12: A100 | C12: CO2 cost | D12: Summer | E12: ='Mass Balance'!O86 -> 66877.34941 | F12: =E12*2.205 -> 147464.5555 | G12: =INPUT!$B$77*907/1000*100 -> 4081.5 | H12: 2011 | I12: =G12*VLOOKUP(INPUT!$B$70,'Quick Access Charts'!$O$37:$P$75,2,FALSE)/VLOOKUP(H12,'Quick Access Charts'!$O$37:$P$75,2,FALSE)/100 -> 43.58349068 | J12: =I12/2000 -> 0.02179174534 | K12: =F12*J12 -> 3213.510039 | L12: =K12*$B$7/1000000 -> 25.45099951 | M12: =L12/$C$3 -> 97.05416215
D13: Fall | E13: ='Mass Balance'!O107 -> 47578.45715 | F13: =E13*2.205 -> 104910.498 | G13: =INPUT!$B$77*907/1000*100 -> 4081.5 | H13: 2011 | I13: =G13*VLOOKUP(INPUT!$B$70,'Quick Access Charts'!$O$37:$P$75,2,FALSE)/VLOOKUP(H13,'Quick Access Charts'!$O$37:$P$75,2,FALSE)/100 -> 43.58349068 | J13: =I13/2000 -> 0.02179174534 | K13: =F13*J13 -> 2286.182856 | L13: =K13*$B$7/1000000 -> 18.10656822 | M13: =L13/$D$3 -> 97.03074709
D14: Winter | E14: ='Mass Balance'!O128 -> 22356.14252 | F14: 49295.29425 | G14: =INPUT!$B$77*907/1000*100 -> 4081.5 | H14: 2011 | I14: =G14*VLOOKUP(INPUT!$B$70,'Quick Access Charts'!$O$37:$P$75,2,FALSE)/VLOOKUP(H14,'Quick Access Charts'!$O$37:$P$75,2,FALSE)/100 -> 43.58349068 | J14: 0.02179174534 | K14: 1074.230499 | L14: 8.50790555 | M14: =L14/$E$3 -> 97.05932675
D15: Spring | E15: ='Mass Balance'!O149 -> 54457.27024 | F15: 120078.2809 | G15: =INPUT!$B$77*907/1000*100 -> 4081.5 | H15: 2011 | I15: =G15*VLOOKUP(INPUT!$B$70,'Quick Access Charts'!$O$37:$P$75,2,FALSE)/VLOOKUP(H15,'Quick Access Charts'!$O$37:$P$75,2,FALSE)/100 -> 43.58349068 | J15: 0.02179174534 | K15: 2616.715317 | L15: 20.72438531 | M15: =L15/$F$3 -> 97.1091055
D16: AVERAGE | E16: =AVERAGE(E12:E15) -> 47817.30483 | F16: =AVERAGE(F12:F15) -> 105437.1571 | G16: =AVERAGE(G12:G15) -> 4081.5 | H16: 2011 | I16: =AVERAGE(I12:I15) -> 43.58349068 | J16: =AVERAGE(J12:J15) -> 0.02179174534 | K16: =AVERAGE(K12:K15) -> 2297.659678 | L16: =AVERAGE(L12:L15) -> 18.19746465 | M16: =L16/$B$3 -> 97.06457532
A18: A100 | C18: Ammonia | D18: Summer | E18: ='Mass Balance'!C82+'Mass Balance'!K82 -> 602.3132501 | F18: =E18*2.205 -> 1328.100716 | G18: 77230 | H18: 2011 | I18: =G18*VLOOKUP(INPUT!$B$70,'Quick Access Charts'!$O$37:$P$75,2,FALSE)/VLOOKUP(H18,'Quick Access Charts'!$O$37:$P$75,2,FALSE)/100 -> 824.6852836 | J18: =I18/2000 -> 0.4123426418 | K18: =J18*F18 -> 547.632558 | L18: =K18*$B$7/1000000 -> 4.337249859 | M18: =L18/$C$3 -> 16.53955284
D19: Fall | E19: ='Mass Balance'!C103+'Mass Balance'!K103 -> 428.2945133 | F19: =E19*2.205 -> 944.3894018 | G19: 77230 | H19: 2011 | I19: =G19*VLOOKUP(INPUT!$B$70,'Quick Access Charts'!$O$37:$P$75,2,FALSE)/VLOOKUP(H19,'Quick Access Charts'!$O$37:$P$75,2,FALSE)/100 -> 824.6852836 | J19: =I19/2000 -> 0.4123426418 | K19: =J19*F19 -> 389.4120208 | L19: =K19*$B$7/1000000 -> 3.084143205 | M19: =L19/$D$3 -> 16.52752281
D20: Winter | E20: ='Mass Balance'!C124+'Mass Balance'!K124 -> 201.3663077 | F20: 444.0127085 | G20: 77230 | H20: 2011 | I20: =G20*VLOOKUP(INPUT!$B$70,'Quick Access Charts'!$O$37:$P$75,2,FALSE)/VLOOKUP(H20,'Quick Access Charts'!$O$37:$P$75,2,FALSE)/100 -> 824.6852836 | J20: 0.4123426418 | K20: 183.0853732 | L20: 1.450036156 | M20: =L20/$E$3 -> 16.5422068
D21: Spring | E21: ='Mass Balance'!C145+'Mass Balance'!K145 -> 491.014633 | F21: 1082.687266 | G21: 77230 | H21: 2011 | I21: =G21*VLOOKUP(INPUT!$B$70,'Quick Access Charts'!$O$37:$P$75,2,FALSE)/VLOOKUP(H21,'Quick Access Charts'!$O$37:$P$75,2,FALSE)/100 -> 824.6852836 | J21: 0.4123426418 | K21: 446.4381274 | L21: 3.535789969 | M21: =L21/$F$3 -> 16.56779663
D22: AVERAGE | E22: =AVERAGE(E18:E21) -> 430.747176 | F22: =AVERAGE(F18:F21) -> 949.7975231 | G22: =AVERAGE(G18:G21) -> 77230 | H22: =AVERAGE(H18:H21) -> 2011 | I22: =AVERAGE(I18:I21) -> 824.6852836 | J22: =AVERAGE(J18:J21) -> 0.4123426418 | K22: =AVERAGE(K18:K21) -> 391.6420199 | L22: =AVERAGE(L18:L21) -> 3.101804797 | M22: =L22/$B$3 -> 16.54490728
A24: A100 | C24: Diammonium Phosphate | D24: Summer | E24: ='Mass Balance'!C83+'Mass Balance'!K83 -> 291.6598169 | F24: =E24*2.205 -> 643.1098963 | G24: 63000 | H24: 2011 | I24: =G24*VLOOKUP(INPUT!$B$70,'Quick Access Charts'!$O$37:$P$75,2,FALSE)/VLOOKUP(H24,'Quick Access Charts'!$O$37:$P$75,2,FALSE)/100 -> 672.7330424 | J24: =I24/2000 -> 0.3363665212 | K24: =J24*F24 -> 216.3206386 | L24: =K24*$B$7/1000000 -> 1.713259458 | M24: =L24/$C$3 -> 6.533297883
D25: Fall | E25: ='Mass Balance'!C104+'Mass Balance'!K104 -> 207.4502519 | F25: =E25*2.205 -> 457.4278054 | G25: 63000 | H25: 2011 | I25: =G25*VLOOKUP(INPUT!$B$70,'Quick Access Charts'!$O$37:$P$75,2,FALSE)/VLOOKUP(H25,'Quick Access Charts'!$O$37:$P$75,2,FALSE)/100 -> 672.7330424 | J25: =I25/2000 -> 0.3363665212 | K25: =J25*F25 -> 153.8633996 | L25: =K25*$B$7/1000000 -> 1.218598125 | M25: =L25/$D$3 -> 6.530309057
D26: Winter | E26: ='Mass Balance'!C125+'Mass Balance'!K125 -> 97.50236111 | F26: 214.9927062 | G26: 63000 | H26: 2011 | I26: =G26*VLOOKUP(INPUT!$B$70,'Quick Access Charts'!$O$37:$P$75,2,FALSE)/VLOOKUP(H26,'Quick Access Charts'!$O$37:$P$75,2,FALSE)/100 -> 672.7330424 | J26: 0.3363665212 | K26: 72.31634869 | L26: =K26*$B$7/1000000 -> 0.5727454816 | M26: =L26/$E$3 -> 6.533957214
D27: Spring | E27: ='Mass Balance'!C146+'Mass Balance'!K146 -> 237.6149463 | F27: 523.9409567 | G27: 63000 | H27: 2011 | I27: =G27*VLOOKUP(INPUT!$B$70,'Quick Access Charts'!$O$37:$P$75,2,FALSE)/VLOOKUP(H27,'Quick Access Charts'!$O$37:$P$75,2,FALSE)/100 -> 672.7330424 | J27: 0.3363665212 | K27: 176.2361969 | L27: =K27*$B$7/1000000 -> 1.39579068 | M27: =L27/$F$3 -> 6.540313853
D28: AVERAGE | E28: =AVERAGE(E24:E27) -> 208.5568441 | F28: =AVERAGE(F24:F27) -> 459.8678411 | G28: =AVERAGE(G24:G27) -> 63000 | H28: =AVERAGE(H24:H27) -> 2011 | I28: =AVERAGE(I24:I27) -> 672.7330424 | J28: =AVERAGE(J24:J27) -> 0.3363665212 | K28: =AVERAGE(K24:K27) -> 154.6841459 | L28: =AVERAGE(L24:L27) -> 1.225098436 | M28: =L28/$B$3 -> 6.534627856
A30: A100 | C30: Salt Disposal Cost | D30: Summer | E30: =IF(INPUT!B16="Saltwater",'Mass Balance'!R77/1*1000/100/100/100,0) -> 0 | F30: m^3/hr | G30: 1.5 | H30: 2009 | I30: =G30*VLOOKUP(INPUT!$B$70,'Quick Access Charts'!$O$37:$P$75,2,FALSE)/VLOOKUP(H30,'Quick Access Charts'!$O$37:$P$75,2,FALSE) -> 1.79706275 | J30: $/m3 | K30: =I30*E30 -> 0 | L30: =K30*$B$7/1000000 -> 0 | M30: =L30/$C$3 -> 0
D31: Fall | E31: =IF(INPUT!B16="Saltwater",'Mass Balance'!R98/1*1000/100/100/100,0) -> 0 | F31: m^3/hr | G31: 1.5 | H31: 2009 | I31: =G31*VLOOKUP(INPUT!$B$70,'Quick Access Charts'!$O$37:$P$75,2,FALSE)/VLOOKUP(H31,'Quick Access Charts'!$O$37:$P$75,2,FALSE) -> 1.79706275 | J31: $/m3 | K31: =I31*E31 -> 0 | L31: =K31*$B$7/1000000 -> 0 | M31: =L31/$C$3 -> 0
D32: Winter | E32: =IF(INPUT!B16="Saltwater",'Mass Balance'!R119/1*1000/100/100/100,0) -> 0 | F32: m^3/hr | G32: 1.5 | H32: 2009 | I32: =G32*VLOOKUP(INPUT!$B$70,'Quick Access Charts'!$O$37:$P$75,2,FALSE)/VLOOKUP(H32,'Quick Access Charts'!$O$37:$P$75,2,FALSE) -> 1.79706275 | J32: $/m3 | K32: 0 | L32: 0 | M32: 0
D33: Spring | E33: =IF(INPUT!B16="Saltwater",'Mass Balance'!R140/1*1000/100/100/100,0) -> 0 | F33: m^3/hr | G33: 1.5 | H33: 2009 | I33: =G33*VLOOKUP(INPUT!$B$70,'Quick Access Charts'!$O$37:$P$75,2,FALSE)/VLOOKUP(H33,'Quick Access Charts'!$O$37:$P$75,2,FALSE) -> 1.79706275 | J33: $/m3 | K33: 0 | L33: 0 | M33: 0
D34: AVERAGE | E34: =AVERAGE(E30:E33) -> 0 | F34: m^3/hr | G34: =AVERAGE(G30:G33) -> 1.5 | H34: 2009 | I34: 1.79706275 | J34: $/m3 | K34: 0 | L34: 0 | M34: =L34/$B$3 -> 0
A36: A600 | C36: Power | D36: Summer | E36: ='Mass Balance'!AK77 -> 11622.57443 | F36: kW | G36: fixed | H36: 2014 | I36: 0.0682 | J36: $/kWh | K36: =I36*E36 -> 792.6595759 | L36: =K36*$B$7/1000000 -> 6.277863841 | M36: =L36/$C$3 -> 23.93983839
D37: Fall | E37: ='Mass Balance'!AK98 -> 9576.47689 | F37: kW | G37: fixed | H37: 2014 | I37: 0.0682 | J37: $/kWh | K37: =I37*E37 -> 653.1157239 | L37: =K37*$B$7/1000000 -> 5.172676533 | M37: =L37/$D$3 -> 27.71970162
D38: Winter | E38: ='Mass Balance'!AK119 -> 7118.190838 | F38: kW | G38: fixed | H38: 2014 | I38: 0.0682 | J38: $/kWh | K38: =I38*E38 -> 485.4606152 | L38: =K38*$B$7/1000000 -> 3.844848072 | M38: =L38/$E$3 -> 43.86254209
D39: Spring | E39: ='Mass Balance'!AK140 -> 10681.20673 | F39: kW | G39: fixed | H39: 2014 | I39: 0.0682 | J39: $/kWh | K39: =I39*E39 -> 728.4582988 | L39: =K39*$B$7/1000000 -> 5.769389727 | M39: =L39/$F$3 -> 27.03386697
D40: AVERAGE | E40: =AVERAGE(E36:E39) -> 9749.612221 | F40: kW | G40: fixed | H40: 2014 | I40: =AVERAGE(I36:I39) -> 0.0682 | J40: $/kWh | K40: =I40*E40 -> 664.9235534 | L40: =AVERAGE(L36:L39) -> 5.266194543 | M40: =L40/$B$3 -> 28.0896788
A42: A600 | C42: Chiller Utility | D42: Summer | E42: ='Mass Balance'!AC78 -> 16.87748319 | F42: GJ/h | G42: =3.3*100 -> 330 | H42: 2003 | I42: =G42*VLOOKUP(INPUT!$B$70,'Quick Access Charts'!$O$37:$P$75,2,FALSE)/VLOOKUP(H42,'Quick Access Charts'!$O$37:$P$75,2,FALSE) -> 539.708384 | J42: ¢/GJ | K42: =I42*E42/100 -> 91.08919177 | L42: =K42*$B$7/1000000 -> 0.7214263988 | M42: =L42/$C$3 -> 2.751068172
D43: Fall | E43: ='Mass Balance'!AC99 -> 16.87748319 | F43: GJ/h | G43: =3.3*100 -> 330 | H43: 2003 | I43: =G43*VLOOKUP(INPUT!$B$70,'Quick Access Charts'!$O$37:$P$75,2,FALSE)/VLOOKUP(H43,'Quick Access Charts'!$O$37:$P$75,2,FALSE) -> 539.708384 | J43: ¢/GJ | K43: =I43*E43/100 -> 91.08919177 | L43: =K43*$B$7/1000000 -> 0.7214263988 | M43: =L43/$D$3 -> 3.866030359
D44: Winter | E44: ='Mass Balance'!AC120 -> 16.87748319 | F44: GJ/h | G44: 330 | H44: 2003 | I44: =G44*VLOOKUP(INPUT!$B$70,'Quick Access Charts'!$O$37:$P$75,2,FALSE)/VLOOKUP(H44,'Quick Access Charts'!$O$37:$P$75,2,FALSE) -> 539.708384 | J44: ¢/GJ | K44: 91.08919177 | L44: 0.7214263988 | M44: =L44/$E$3 -> 8.230129043
D45: Spring | E45: ='Mass Balance'!AC141 -> 16.87748319 | F45: GJ/h | G45: 330 | H45: 2003 | I45: =G45*VLOOKUP(INPUT!$B$70,'Quick Access Charts'!$O$37:$P$75,2,FALSE)/VLOOKUP(H45,'Quick Access Charts'!$O$37:$P$75,2,FALSE) -> 539.708384 | J45: ¢/GJ | K45: 91.08919177 | L45: 0.7214263988 | M45: =L45/$F$3 -> 3.380417379
D46: AVERAGE | E46: =AVERAGE(E42:E45) -> 16.87748319 | F46: GJ/h | G46: 330 | H46: 2003 | I46: =AVERAGE(I42:I45) -> 539.708384 | J46: ¢/GJ | K46: 91.08919177 | L46: =AVERAGE(L42:L45) -> 0.7214263988 | M46: =L46/$B$3 -> 3.848060616
A48: A600 | C48: Makeup Water | D48: Summer | E48: ='Mass Balance'!D77+'Mass Balance'!L77 -> 1222751.311 | F48: =E48*2.205 -> 2696166.642 | G48: 0 | H48: 2004 | I48: =G48*VLOOKUP(INPUT!$B$70,'Quick Access Charts'!$O$37:$P$75,2,FALSE)/VLOOKUP(H48,'Quick Access Charts'!$O$37:$P$75,2,FALSE)/100 -> 0 | J48: =I48/2000 -> 0 | K48: =F48*J48 -> 0 | L48: =K48*$B$7/1000000 -> 0 | M48: =L48/$C$3 -> 0
C49: (Sourced from groundwater) | D49: Fall | E49: ='Mass Balance'!D98+'Mass Balance'!L98 -> 520033.8327 | F49: =E49*2.205 -> 1146674.601 | G49: 0 | H49: 2004 | I49: =G49*VLOOKUP(INPUT!$B$70,'Quick Access Charts'!$O$37:$P$75,2,FALSE)/VLOOKUP(H49,'Quick Access Charts'!$O$37:$P$75,2,FALSE)/100 -> 0 | J49: =I49/2000 -> 0 | K49: =F49*J49 -> 0 | L49: =K49*$B$7/1000000 -> 0 | M49: =L49/$D$3 -> 0
D50: Winter | E50: ='Mass Balance'!D119+'Mass Balance'!L119 -> 461444.2628 | F50: 1017484.599 | G50: 0 | H50: 2004 | I50: =G50*VLOOKUP(INPUT!$B$70,'Quick Access Charts'!$O$37:$P$75,2,FALSE)/VLOOKUP(H50,'Quick Access Charts'!$O$37:$P$75,2,FALSE)/100 -> 0 | J50: 0 | K50: 0 | L50: =K50*$B$7/1000000 -> 0 | M50: =L50/$E$3 -> 0
D51: Spring | E51: ='Mass Balance'!D140+'Mass Balance'!L140 -> 2260740.562 | F51: 4984932.939 | G51: 0 | H51: 2004 | I51: =G51*VLOOKUP(INPUT!$B$70,'Quick Access Charts'!$O$37:$P$75,2,FALSE)/VLOOKUP(H51,'Quick Access Charts'!$O$37:$P$75,2,FALSE)/100 -> 0 | J51: 0 | K51: 0 | L51: =K51*$B$7/1000000 -> 0 | M51: =L51/$F$3 -> 0
D52: AVERAGE | E52: =AVERAGE(E48:E51) -> 1116242.492 | F52: =AVERAGE(F48:F51) -> 2461314.695 | G52: =AVERAGE(G48:G51) -> 0 | H52: =AVERAGE(H48:H51) -> 2004 | I52: =AVERAGE(I48:I51) -> 0 | J52: =AVERAGE(J48:J51) -> 0 | K52: =AVERAGE(K48:K51) -> 0 | L52: =AVERAGE(L48:L51) -> 0 | M52: =L52/$B$3 -> 0
C54: Subtotal | K54: =SUM(K52,K46,K40,K28,K22,K16,K34) -> 3599.998589 | L54: =SUM(L52,L46,L40,L28,L22,L16,L34) -> 28.51198882 | M54: =SUM(M52,M46,M40,M28,M22,M16,M34) -> 152.0818499
A55: By-Products and Credits
C58: Subtotal | K58: =SUM(K56:K57) -> 0 | L58: =SUM(L56:L57) -> 0 | M58: =SUM(M56:M57) -> 0
C59: Total Variable Operating Costs | K59: =K54-K58 -> 3599.998589 | L59: =L54-L58 -> 28.51198882 | M59: =M54-M58 -> 152.0818499
A62: Fixed Operating Costs
C63: Position | D63: Salary | E63: Year of salary quote | F63: =INPUT!B70 & " Salary" -> 2014 Salary | G63: # Required | H63: Total | I63: =INPUT!B70 & " Cost" -> 2014 Cost | L63: =L10 -> MM$/yr (2014) | M63: =M10 -> $/Dry US Ton Algae (2014)
A64: Labor & Supervision
C65: Plant Manager | D65: 155400 | E65: 2011 | F65: =(D65)*VLOOKUP(INPUT!$B$70,'Quick Access Charts'!$O$78:$P$106,2,FALSE)/VLOOKUP(E65,'Quick Access Charts'!$O$78:$P$106,2,FALSE) -> 155617.2414 | G65: 1 | H65: =G65*F65 -> 155617.2414 | I65: =F65*G65 -> 155617.2414 | O65: Pond size | P65: ponds/operator | Q65: ponds/module | R65: ponds | S65: operators
C66: Plant Engineer (civil) | D66: 82050 | E66: 2014 | F66: =(D66)*VLOOKUP(INPUT!$B$70,'Quick Access Charts'!$O$78:$P$106,2,FALSE)/VLOOKUP(E66,'Quick Access Charts'!$O$78:$P$106,2,FALSE) -> 82050 | G66: 2 | H66: =G66*D66 -> 164100 | I66: =F66*G66 -> 164100 | O66: 2.2 | P66: 30 | Q66: 44 | R66: =Q66*INPUT!$B$10/INPUT!$B$11 -> 2200 | S66: =Q66*INPUT!$B$10/INPUT!$B$11/P66 -> 73.33333333
C67: Plant Engineer (environmental) | D67: 83360 | E67: 2014 | F67: =(D67)*VLOOKUP(INPUT!$B$70,'Quick Access Charts'!$O$78:$P$106,2,FALSE)/VLOOKUP(E67,'Quick Access Charts'!$O$78:$P$106,2,FALSE) -> 83360 | G67: 2 | H67: 166720 | I67: 166720 | O67: 10 | P67: 9 | Q67: 10 | R67: =Q67*INPUT!$B$10/INPUT!$B$11 -> 500 | S67: =Q67*INPUT!$B$10/INPUT!$B$11/P67 -> 55.55555556
C68: Maintenance Supr | D68: 60257 | E68: 2011 | F68: =(D68)*VLOOKUP(INPUT!$B$70,'Quick Access Charts'!$O$78:$P$106,2,FALSE)/VLOOKUP(E68,'Quick Access Charts'!$O$78:$P$106,2,FALSE) -> 60341.23625 | G68: 1 | H68: 60257 | I68: 60341.23625 | O68: 48.6 | P68: 3 | Q68: 2 | R68: =Q68*INPUT!$B$10/INPUT!$B$11 -> 100 | S68: =Q68*INPUT!$B$10/INPUT!$B$11/P68 -> 33.33333333
C69: Maintenance Tech | D69: 42286 | E69: 2011 | F69: =(D69)*VLOOKUP(INPUT!$B$70,'Quick Access Charts'!$O$78:$P$106,2,FALSE)/VLOOKUP(E69,'Quick Access Charts'!$O$78:$P$106,2,FALSE) -> 42345.1137 | G69: =ROUNDUP(IF(INPUT!$B$12="2-acre",S75,IF(INPUT!$B$12="10-acre",S76,IF(INPUT!$B$12="50-acre",S78,0))),0) -> 12 | H69: =G69*D69 -> 507432 | I69: 508141.3644 | O69: 50 | P69: 3 | Q69: 2 | R69: =Q69*INPUT!$B$10/INPUT!$B$11 -> 100 | S69: =Q69*INPUT!$B$10/INPUT!$B$11/P69 -> 33.33333333
C70: Lab Manager | D70: 59200 | E70: 2011 | F70: =(D70)*VLOOKUP(INPUT!$B$70,'Quick Access Charts'!$O$78:$P$106,2,FALSE)/VLOOKUP(E70,'Quick Access Charts'!$O$78:$P$106,2,FALSE) -> 59282.75862 | G70: 1 | H70: 59200 | I70: 59282.75862
C71: Lab Technician | D71: 42286 | E71: 2011 | F71: =(D71)*VLOOKUP(INPUT!$B$70,'Quick Access Charts'!$O$78:$P$106,2,FALSE)/VLOOKUP(E71,'Quick Access Charts'!$O$78:$P$106,2,FALSE) -> 42345.1137 | G71: =ROUNDUP(0.1*IF(INPUT!$B$12="2-acre",R66,IF(INPUT!$B$12="10-acre",R67,IF(INPUT!$B$12="50-acre",R69,0)))/O72,0) -> 1 | H71: =G71*D71 -> 42286 | I71: 42345.1137 | O71: ponds/lab tech
C72: Shift Supervisor | D72: 50743 | E72: 2011 | F72: =(D72)*VLOOKUP(INPUT!$B$70,'Quick Access Charts'!$O$78:$P$106,2,FALSE)/VLOOKUP(E72,'Quick Access Charts'!$O$78:$P$106,2,FALSE) -> 50813.93616 | G72: 4 | H72: 202972 | I72: 203255.7446 | O72: 55
C73: Module operator - Production | D73: 26910 | E73: 2014 | F73: =(D73)*VLOOKUP(INPUT!$B$70,'Quick Access Charts'!$O$78:$P$106,2,FALSE)/VLOOKUP(E73,'Quick Access Charts'!$O$78:$P$106,2,FALSE) -> 26910 | G73: =ROUNDUP(IF(INPUT!$B$12="2-acre",S66,IF(INPUT!$B$12="10-acre",S67,IF(INPUT!$B$12="50-acre",S69,0))),0) -> 56 | H73: =G73*D73 -> 1506960 | I73: 1506960
C74: Module operator - Innoculum | D74: 44100 | E74: 2014 | F74: =(D74)*VLOOKUP(INPUT!$B$70,'Quick Access Charts'!$O$78:$P$106,2,FALSE)/VLOOKUP(E74,'Quick Access Charts'!$O$78:$P$106,2,FALSE) -> 44100 | G74: =ROUNDUP(41*0.172,0) -> 8 | H74: 352800 | I74: 352800 | O74: Pond size | P74: ponds/maint. tech | Q74: ponds/module | R74: ponds | S74: Maint. techs
C75: Module operator - Dewatering | D75: 38590 | E75: 2014 | F75: =(D75)*VLOOKUP(INPUT!$B$70,'Quick Access Charts'!$O$78:$P$106,2,FALSE)/VLOOKUP(E75,'Quick Access Charts'!$O$78:$P$106,2,FALSE) -> 38590 | G75: 9 | H75: 347310 | I75: 347310 | O75: 2.2 | P75: =P66*5 -> 150 | Q75: 44 | R75: =Q75*INPUT!$B$10/INPUT!$B$11 -> 2200 | S75: =Q75*INPUT!$B$10/INPUT!$B$11/P75 -> 14.66666667
C76: Clerks & Secretaries | D76: 38057 | E76: 2011 | F76: =(D76)*VLOOKUP(INPUT!$B$70,'Quick Access Charts'!$O$78:$P$106,2,FALSE)/VLOOKUP(E76,'Quick Access Charts'!$O$78:$P$106,2,FALSE) -> 38110.20177 | G76: 3 | H76: 114171 | I76: 114330.6053 | O76: 10 | P76: =P67*5 -> 45 | Q76: 10 | R76: =Q76*INPUT!$B$10/INPUT!$B$11 -> 500 | S76: =Q76*INPUT!$B$10/INPUT!$B$11/P76 -> 11.11111111
C77: Total Salaries | G77: =SUM(G65:G76) -> 100 | H77: =SUM(H65:H76) -> 3679825.241 | I77: =SUM(I65:I76) -> 3681204.064 | L77: =I77/1000000 -> 3.681204064 | M77: =(L77)/$B$3 -> 19.63540065 | O77: 48.6 | P77: =P68*5 -> 15 | Q77: 2 | R77: =Q77*INPUT!$B$10/INPUT!$B$11 -> 100 | S77: =Q77*INPUT!$B$10/INPUT!$B$11/P77 -> 6.666666667
C78: Labor Burden (90%) | H78: =0.9*H77 -> 3311842.717 | I78: =0.9*I77 -> 3313083.658 | L78: =I78/1000000 -> 3.313083658 | M78: =(L78)/$B$3 -> 17.67186058 | O78: 50 | P78: =P69*5 -> 15 | Q78: 2 | R78: =Q78*INPUT!$B$10/INPUT!$B$11 -> 100 | S78: =Q78*INPUT!$B$10/INPUT!$B$11/P78 -> 6.666666667
A79: Other Fixed Opex
C80: Maintenance | D80: 0.03 | E80: of Area 500: Dewatering | F80: 0.005 | G80: of Area 100, 200, 300, 400 | I80: =DCFROR!M7*OPEX!D80+SUM(DCFROR!O3:O6)*OPEX!F80 -> 2214673.302 | L80: =I80/1000000 -> 2.214673302 | M80: =(L80)/$B$3 -> 11.81298206
C81: Property Insur. & Tax | D81: 0.007 | E81: of FCI | I81: =FCI*OPEX!D81 -> 2408131.95 | L81: =I81/1000000 -> 2.40813195 | M81: =(L81)/$B$3 -> 12.84488304
C82: Total Fixed Operating Costs | L82: =SUM(L65:L81) -> 11.61709297 | M82: =SUM(M65:M81) -> 61.96512634
L86: =L63 -> MM$/yr (2014) | M86: =M63 -> $/Dry US Ton Algae (2014)
A87: Total Operating Costs | L87: =L82+L59 -> 40.1290818 | M87: =M82+M59 -> 214.0469762

Sheet CAPEX
D1: Scaled Installed Costs
B3: EQUIPMENT TITLE | C3: $ | D3: Year of Quote | E3: Scaling Val | F3: Units | G3: Scaling Exp | H3: Inst Factor | I3: New Val | J3: Size Ratio | K3: Scaled Purch Cost | L3: Purch Cost in Proj year | M3: Inst Cost in Proj year
B4: A100: Production Ponds | C4: Further details behind pond design/cost elements and individual sources for pond inputs can be found in NREL algae farm design report
B5: AVERAGE of 10-acre Costs | C5: 158506910 | D5: 2011 | E5: 5000 | F5: acre | G5: 1 | H5: 1 | I5: =IF(INPUT!$B$12="10-acre",IF(INPUT!$B$13="Minimally Lined",INPUT!$B$10,0),0) -> 5000 | J5: =I5/E5 -> 1 | K5: =C5*J5^G5 -> 158506910 | L5: =K5*VLOOKUP(INPUT!$B$70,'Quick Access Charts'!$O$6:$P$34,2,FALSE)/VLOOKUP(D5,'Quick Access Charts'!$O$6:$P$34,2,FALSE) -> 155908879.7 | M5: =L5*H5 -> 155908879.7
B6: AVERAGE of 10-acre Costs Full Liner Option | C6: 276539009 | D6: 2011 | E6: 5000 | F6: acre | G6: 1 | H6: 1 | I6: =IF(INPUT!$B$12="10-acre",IF(INPUT!$B$13="Minimally Lined",0,INPUT!$B$10),0) -> 0 | J6: 0 | K6: 0 | L6: =K6*VLOOKUP(INPUT!$B$70,'Quick Access Charts'!$O$6:$P$34,2,FALSE)/VLOOKUP(D6,'Quick Access Charts'!$O$6:$P$34,2,FALSE) -> 0 | M6: 0
B7: AVERAGE of 2-acre Costs | C7: 246531755 | D7: 2011 | E7: 5000 | F7: acre | G7: 1 | H7: 1 | I7: =IF(INPUT!$B$12="2-acre",IF(INPUT!$B$13="Minimally Lined",INPUT!$B$10,0),0) -> 0 | J7: 0 | K7: 0 | L7: =K7*VLOOKUP(INPUT!$B$70,'Quick Access Charts'!$O$6:$P$34,2,FALSE)/VLOOKUP(D7,'Quick Access Charts'!$O$6:$P$34,2,FALSE) -> 0 | M7: 0
B8: AVERAGE of 2-acre Costs Full Liner Option | C8: 365691872 | D8: 2011 | E8: 5000 | F8: acre | G8: 1 | H8: 1 | I8: =IF(INPUT!$B$12="2-acre",IF(INPUT!$B$13="Minimally Lined",0,INPUT!$B$10),0) -> 0 | J8: 0 | K8: 0 | L8: =K8*VLOOKUP(INPUT!$B$70,'Quick Access Charts'!$O$6:$P$34,2,FALSE)/VLOOKUP(D8,'Quick Access Charts'!$O$6:$P$34,2,FALSE) -> 0 | M8: 0
B9: AVERAGE of 50-acre Costs | C9: 98673256 | D9: 2011 | E9: 5000 | F9: acre | G9: 1 | H9: 1 | I9: =IF(INPUT!$B$12="50-acre",IF(INPUT!$B$13="Minimally Lined",INPUT!$B$10,0),0) -> 0 | J9: 0 | K9: 0 | L9: =K9*VLOOKUP(INPUT!$B$70,'Quick Access Charts'!$O$6:$P$34,2,FALSE)/VLOOKUP(D9,'Quick Access Charts'!$O$6:$P$34,2,FALSE) -> 0 | M9: 0
B10: AVERAGE of 50-acre Costs Full Liner Option | C10: 250468668 | D10: 2011 | E10: 5000 | F10: acre | G10: 1 | H10: 1 | I10: =IF(INPUT!$B$12="50-acre",IF(INPUT!$B$13="Minimally Lined",0,INPUT!$B$10),0) -> 0 | J10: 0 | K10: 0 | L10: =K10*VLOOKUP(INPUT!$B$70,'Quick Access Charts'!$O$6:$P$34,2,FALSE)/VLOOKUP(D10,'Quick Access Charts'!$O$6:$P$34,2,FALSE) -> 0 | M10: 0
B11: Total | K11: =SUM(K5:K10) -> 158506910 | L11: =SUM(L5:L10) -> 155908879.7 | M11: 155908879.7
B12: A200: Inocululation System | C12: See NREL design report for further information
B13: Tubular Photobioreactors | C13: 18.22 | D13: 2014 | E13: 1 | F13: m^2 | G13: 1 | H13: 1 | I13: ='Quick Access Charts'!B39*10000*1.5 -> 32374.88 | J13: =I13/E13 -> 32374.88 | K13: =C13*J13^G13 -> 589870.3136 | L13: =K13*VLOOKUP(INPUT!$B$70,'Quick Access Charts'!$O$6:$P$34,2,FALSE)/VLOOKUP(D13,'Quick Access Charts'!$O$6:$P$34,2,FALSE) -> 589870.3136 | M13: =L13*H13 -> 589870.3136
B14: Inoculum Covered Pond Costs (minus liners) | C14: 5427316 | D14: 2014 | E14: 100 | F14: wetted acres | G14: 1 | H14: 1 | I14: ='Quick Access Charts'!B38*2.47105 -> 22.85712778 | J14: 0.2285712778 | K14: 1240528.553 | L14: =K14*VLOOKUP(INPUT!$B$70,'Quick Access Charts'!$O$6:$P$34,2,FALSE)/VLOOKUP(D14,'Quick Access Charts'!$O$6:$P$34,2,FALSE) -> 1240528.553 | M14: 1240528.553
B15: Inoculum Lined Pond Costs (minus liners) | C15: 5427316 | D15: 2014 | E15: 100 | F15: wetted acres | G15: 1 | H15: 1 | I15: ='Quick Access Charts'!B37*2.47105 -> 114.2856389 | J15: 1.142856389 | K15: 6202642.765 | L15: =K15*VLOOKUP(INPUT!$B$70,'Quick Access Charts'!$O$6:$P$34,2,FALSE)/VLOOKUP(D15,'Quick Access Charts'!$O$6:$P$34,2,FALSE) -> 6202642.765 | M15: 6202642.765
B16: Lining for Covered Pond | C16: =0.65*E16 -> 3097827.2 | D16: 2014 | E16: 4765888 | F16: ft^2 (per 100 acres as seen from Leidos 2.2 acre fully lined system) | G16: 1 | H16: 1 | I16: ='Quick Access Charts'!B38*2.47105*4765888/100 -> 1089345.11 | J16: 0.2285712778 | K16: 708074.3215 | L16: =K16*VLOOKUP(INPUT!$B$70,'Quick Access Charts'!$O$6:$P$34,2,FALSE)/VLOOKUP(D16,'Quick Access Charts'!$O$6:$P$34,2,FALSE) -> 708074.3215 | M16: 708074.3215
B17: Air Supported Greenhouse for Covered Pond | C17: 3 | D17: 2014 | E17: 1 | F17: ft^2 | G17: 1 | H17: 1 | I17: ='Quick Access Charts'!B38*2.47105*43560*1.1 -> 1095222.135 | J17: 1095222.135 | K17: 3285666.404 | L17: =K17*VLOOKUP(INPUT!$B$70,'Quick Access Charts'!$O$6:$P$34,2,FALSE)/VLOOKUP(D17,'Quick Access Charts'!$O$6:$P$34,2,FALSE) -> 3285666.404 | M17: 3285666.404
B18: Lining for Lined Ponds | C18: =0.65*E18 -> 3097827.2 | D18: 2014 | E18: 4765888 | F18: ft^2 (per 100 acres as seen from Leidos 2.2 acre fully lined system) | G18: 1 | H18: 1 | I18: ='Quick Access Charts'!B37*2.47105/100*CAPEX!E18 -> 5446725.55 | J18: 1.142856389 | K18: 3540371.607 | L18: =K18*VLOOKUP(INPUT!$B$70,'Quick Access Charts'!$O$6:$P$34,2,FALSE)/VLOOKUP(D18,'Quick Access Charts'!$O$6:$P$34,2,FALSE) -> 3540371.607 | M18: 3540371.607
B19: Total | K19: =SUM(K13:K18) -> 15567153.96 | L19: =SUM(L13:L18) -> 15567153.96 | M19: =SUM(M13:M18) -> 15567153.96
B20: A300: CO2 On-Site Storage and Piping | C20: See NREL design report for further information
B21: Pipeline CO2 Storage Sphere | C21: 1400800 | D21: 2014 | E21: 68550 | F21: kg/h | G21: 0.6 | H21: 1.25 | I21: =MAX('Mass Balance'!$O$77,'Mass Balance'!$O$98,'Mass Balance'!$O$119,'Mass Balance'!$O$140) -> 66877.34941 | J21: =I21/E21 -> 0.9755995538 | K21: =C21*J21^G21 -> 1380190.675 | L21: =K21*VLOOKUP(INPUT!$B$70,'Quick Access Charts'!$O$6:$P$34,2,FALSE)/VLOOKUP(D21,'Quick Access Charts'!$O$6:$P$34,2,FALSE) -> 1380190.675 | M21: =L21*H21 -> 1725238.344
B22: Storage tank immersion vaporizers | C22: 70500 | D22: 2014 | E22: 68550 | F22: kg/h | G22: 1 | H22: 1.76 | I22: =MAX('Mass Balance'!$O$77,'Mass Balance'!$O$98,'Mass Balance'!$O$119,'Mass Balance'!$O$140) -> 66877.34941 | J22: 0.9755995538 | K22: =C22*J22^G22 -> 68779.76854 | L22: =K22*VLOOKUP(INPUT!$B$70,'Quick Access Charts'!$O$6:$P$34,2,FALSE)/VLOOKUP(D22,'Quick Access Charts'!$O$6:$P$34,2,FALSE) -> 68779.76854 | M22: 121052.3926
B23: Trunk line | C23: 1661900 | D23: 2014 | E23: 68550 | F23: kg/h | G23: 1 | H23: 1 | I23: =MAX('Mass Balance'!$O$77,'Mass Balance'!$O$98,'Mass Balance'!$O$119,'Mass Balance'!$O$140) -> 66877.34941 | J23: 0.9755995538 | K23: =C23*J23^G23 -> 1621348.898 | L23: =K23*VLOOKUP(INPUT!$B$70,'Quick Access Charts'!$O$6:$P$34,2,FALSE)/VLOOKUP(D23,'Quick Access Charts'!$O$6:$P$34,2,FALSE) -> 1621348.898 | M23: 1621348.898
B24: Branch line | C24: 912300 | D24: 2014 | E24: 68550 | F24: kg/h | G24: 1 | H24: 1 | I24: =MAX('Mass Balance'!$O$77,'Mass Balance'!$O$98,'Mass Balance'!$O$119,'Mass Balance'!$O$140) -> 66877.34941 | J24: 0.9755995538 | K24: =C24*J24^G24 -> 890039.4729 | L24: =K24*VLOOKUP(INPUT!$B$70,'Quick Access Charts'!$O$6:$P$34,2,FALSE)/VLOOKUP(D24,'Quick Access Charts'!$O$6:$P$34,2,FALSE) -> 890039.4729 | M24: 890039.4729
B25: Within-plot piping | C25: 44200 | D25: 2014 | E25: 68550 | F25: kg/h | G25: 1 | H25: 1 | I25: =MAX('Mass Balance'!$O$77,'Mass Balance'!$O$98,'Mass Balance'!$O$119,'Mass Balance'!$O$140) -> 66877.34941 | J25: 0.9755995538 | K25: =C25*J25^G25*INPUT!B10/INPUT!B11 -> 2156075.014 | L25: =K25*VLOOKUP(INPUT!$B$70,'Quick Access Charts'!$O$6:$P$34,2,FALSE)/VLOOKUP(D25,'Quick Access Charts'!$O$6:$P$34,2,FALSE) -> 2156075.014 | M25: 2156075.014
B26: Supply to Inoculum area | C26: 59300 | D26: 2014 | E26: 68550 | F26: kg/h | G26: 1 | H26: 1 | I26: =MAX('Mass Balance'!$O$77,'Mass Balance'!$O$98,'Mass Balance'!$O$119,'Mass Balance'!$O$140) -> 66877.34941 | J26: 0.9755995538 | K26: =C26*J26^G26 -> 57853.05354 | L26: =K26*VLOOKUP(INPUT!$B$70,'Quick Access Charts'!$O$6:$P$34,2,FALSE)/VLOOKUP(D26,'Quick Access Charts'!$O$6:$P$34,2,FALSE) -> 57853.05354 | M26: 57853.05354
B28: Total | K28: =SUM(K21:K27) -> 6174286.882 | L28: =SUM(L21:L27) -> 6174286.882 | M28: =SUM(M21:M27) -> 6571607.175
B29: A400: Makeup Water Delivery + On-Site Circulation | D29: See NREL design report for further information
B30: Channel (aquaducts) | C30: 100 | D30: 2014 | E30: 1 | F30: acre | G30: 1 | H30: 1 | I30: =INPUT!B10 -> 5000 | J30: =I30/E30 -> 5000 | K30: =C30*J30^G30 -> 500000 | L30: =K30*VLOOKUP(INPUT!$B$70,'Quick Access Charts'!$O$6:$P$34,2,FALSE)/VLOOKUP(D30,'Quick Access Charts'!$O$6:$P$34,2,FALSE) -> 500000 | M30: =L30*H30 -> 500000
B31: 34 in Diameter Pipe | C31: 872158 | D31: 2012 | E31: 5883 | F31: ft | G31: 1 | H31: =1320300/872158 -> 1.513831209 | I31: =IF(INPUT!B12="2-acre",Facility_Dim!D51,IF(INPUT!B12="10-acre",Facility_Dim!E51,IF(INPUT!B12="50-acre",Facility_Dim!F51,0))) -> 5883 | J31: 1 | K31: =C31*J31^G31*J32^G32 -> 872158 | L31: =K31*VLOOKUP(INPUT!$B$70,'Quick Access Charts'!$O$6:$P$34,2,FALSE)/VLOOKUP(D31,'Quick Access Charts'!$O$6:$P$34,2,FALSE) -> 859476.948 | M31: =L31*H31 -> 1301103.028
E32: 34 | F32: Inches | G32: 1.4 | I32: =Facility_Dim!B51 -> 34 | J32: =I32/E32 -> 1
B33: 26 in Diameter Pipe | C33: 852949 | D33: 2012 | E33: 9426 | F33: ft | G33: 1 | H33: =1261400/852949 -> 1.478869194 | I33: =IF(INPUT!B12="2-acre",Facility_Dim!D52,IF(INPUT!B12="10-acre",Facility_Dim!E52,IF(INPUT!B12="50-acre",Facility_Dim!F52,0))) -> 9426 | J33: 1 | K33: =C33*J33^G33*J34^G34 -> 768890.5223 | L33: =K33*VLOOKUP(INPUT!$B$70,'Quick Access Charts'!$O$6:$P$34,2,FALSE)/VLOOKUP(D33,'Quick Access Charts'!$O$6:$P$34,2,FALSE) -> 757710.9646 | M33: =L33*H33 -> 1120555.403
E34: 28 | F34: Inches | G34: 1.4 | I34: =Facility_Dim!B52 -> 26 | J34: 0.9285714286
B35: 20 in Diameter Pipe | C35: 469386 | D35: 2012 | E35: 9990 | F35: ft | G35: 1 | H35: =809600/469386 -> 1.724806449 | I35: =IF(INPUT!B12="2-acre",Facility_Dim!D53,IF(INPUT!B12="10-acre",Facility_Dim!E53,IF(INPUT!B12="50-acre",Facility_Dim!F53,0))) -> 9926 | J35: 0.9935935936 | K35: =C35*J35^G35*J36^G36 -> 466378.9225 | L35: =K35*VLOOKUP(INPUT!$B$70,'Quick Access Charts'!$O$6:$P$34,2,FALSE)/VLOOKUP(D35,'Quick Access Charts'!$O$6:$P$34,2,FALSE) -> 459597.84 | M35: =L35*H35 -> 792717.3185
E36: 20 | F36: Inches | G36: 1.4 | I36: =Facility_Dim!B53 -> 20 | J36: =I36/E36 -> 1
B37: 16 in Diameter Pipe | C37: 416554 | D37: 2012 | E37: 9360 | F37: ft | G37: 1 | H37: =660100/416554 -> 1.584668494 | I37: =IF(INPUT!B12="2-acre",Facility_Dim!D54,IF(INPUT!B12="10-acre",Facility_Dim!E54,IF(INPUT!B12="50-acre",Facility_Dim!F54,0))) -> 9360 | J37: 1 | K37: =C37*J37^G37*J38^G38 -> 416554 | L37: =K37*VLOOKUP(INPUT!$B$70,'Quick Access Charts'!$O$6:$P$34,2,FALSE)/VLOOKUP(D37,'Quick Access Charts'!$O$6:$P$34,2,FALSE) -> 410497.3647 | M37: =L37*H37 -> 650502.2408
E38: 16 | F38: Inches | G38: 1.4 | I38: =Facility_Dim!B54 -> 16 | J38: 1
B39: 14 in Diameter Pipe | C39: 321593 | D39: 2012 | E39: 9360 | F39: ft | G39: 1 | H39: =524500/321593 -> 1.63094346 | I39: =IF(INPUT!B12="2-acre",Facility_Dim!D55,IF(INPUT!B12="10-acre",Facility_Dim!E55,IF(INPUT!B12="50-acre",Facility_Dim!F55,0))) -> 9360 | J39: 1 | K39: =C39*J39^G39*J40^G40 -> 321593 | L39: =K39*VLOOKUP(INPUT!$B$70,'Quick Access Charts'!$O$6:$P$34,2,FALSE)/VLOOKUP(D39,'Quick Access Charts'!$O$6:$P$34,2,FALSE) -> 316917.084 | M39: =L39*H39 -> 516873.8454
E40: 14 | F40: Inches | G40: 1.4 | I40: =Facility_Dim!B55 -> 14 | J40: 1
B41: 12 in Diameter Pipe | C41: 267709 | D41: 2012 | E41: 9360 | F41: ft | G41: 1 | H41: =447700/267709 -> 1.672338248 | I41: =IF(INPUT!B12="2-acre",Facility_Dim!D56,IF(INPUT!B12="10-acre",Facility_Dim!E56,IF(INPUT!B12="50-acre",Facility_Dim!F56,0))) -> 9360 | J41: 1 | K41: =C41*J41^G41*J42^G42 -> 267709 | L41: =K41*VLOOKUP(INPUT!$B$70,'Quick Access Charts'!$O$6:$P$34,2,FALSE)/VLOOKUP(D41,'Quick Access Charts'!$O$6:$P$34,2,FALSE) -> 263816.5496 | M41: =L41*H41 -> 441190.5063
E42: 12 | F42: Inches | G42: 2 | I42: =Facility_Dim!B56 -> 12 | J42: 1
B43: Make-up water Pipeline | C43: 2638100 | D43: 2009 | E43: 36 | F43: Inches | G43: 1.4 | H43: 1 | I43: =ROUND(22*'Mass Balance'!D56/1100481,0) -> 22 | J43: =I43/E43 -> 0.6111111111 | K43: =C43*J43^G43 -> 1323913.181 | L43: =K43*VLOOKUP(INPUT!$B$70,'Quick Access Charts'!$O$6:$P$34,2,FALSE)/VLOOKUP(D43,'Quick Access Charts'!$O$6:$P$34,2,FALSE) -> 1461403.302 | M43: =L43*H43 -> 1461403.302
B44: Make-up Water Pump | C44: 705500 | D44: 2009 | E44: 10626 | F44: MM gal/yr | G44: 0.6 | H44: 1 | I44: =OPEX!E52*0.26417*OPEX!B7/1000000 -> 2335.432011 | J44: =I44/E44 -> 0.2197846801 | K44: =C44*J44^G44 -> 284246.7242 | L44: =K44*VLOOKUP(INPUT!$B$70,'Quick Access Charts'!$O$6:$P$34,2,FALSE)/VLOOKUP(D44,'Quick Access Charts'!$O$6:$P$34,2,FALSE) -> 313766.1196 | M44: 313766.1196
B47: Total | K47: =SUM(K30:K44) -> 5221443.35 | L47: =SUM(L30:L44) -> 5343186.173 | M47: =SUM(M30:M44) -> 7098111.764
B48: A500: Dewatering | C48: See NREL design report for further information
B49: 22-inch Pipe | C49: 284880 | D49: 2014 | E49: 4300 | F49: LF | G49: 1 | H49: 1 | I49: =Facility_Dim!J50*INPUT!B10/INPUT!B11 -> 168200 | J49: =I49/E49 -> 39.11627907 | K49: =C49*J49^G49 -> 11143445.58 | L49: =K49*VLOOKUP(INPUT!$B$70,'Quick Access Charts'!$O$6:$P$34,2,FALSE)/VLOOKUP(D49,'Quick Access Charts'!$O$6:$P$34,2,FALSE) -> 11143445.58 | M49: =L49*H49 -> 11143445.58
B50: Pumps (costed from ACCE) | C50: 121905 | D50: 2012 | E50: 6653 | F50: gpm | G50: 0.8 | H50: =188600/163783 -> 1.151523662 | I50: ='Mass Balance'!F77*1000/1000000*264/60*INPUT!B11/INPUT!B10 -> 5847.297487 | J50: =I50/E50 -> 0.8788963605 | K50: =C50*J50^G50*INPUT!B10/INPUT!B11 -> 5497201.496 | L50: =K50*VLOOKUP(INPUT!$B$70,'Quick Access Charts'!$O$6:$P$34,2,FALSE)/VLOOKUP(D50,'Quick Access Charts'!$O$6:$P$34,2,FALSE) -> 5417272.976 | M50: =L50*H50 -> 6238118.018
B51: Primary Dewatering: Settler | C51: 34300 | D51: 2014 | E51: 1000 | F51: m3 | G51: 1 | H51: 1 | I51: =SUM('Mass Balance'!P82:P88)/1000*I52 -> 279444.0918 | J51: =I51/E51 -> 279.4440918 | K51: =C51*J51^G51 -> 9584932.349 | L51: =K51*VLOOKUP(INPUT!$B$70,'Quick Access Charts'!$O$6:$P$34,2,FALSE)/VLOOKUP(D51,'Quick Access Charts'!$O$6:$P$34,2,FALSE) -> 9584932.349 | M51: =L51*H51 -> 9584932.349
F52: hr | I52: =INPUT!B29 -> 4
B53: Secondary Dewatering: Membranes | C53: =238000*20 -> 4760000 | D53: 2014 | E53: 20000000 | F53: gal/day | G53: 1 | H53: 1 | I53: ='Mass Balance'!S77*24/3.785 -> 19948898.93 | J53: =I53/E53*1.04 -> 1.037342744 | K53: =C53*J53^G53 -> 4937751.464 | L53: =K53*VLOOKUP(INPUT!$B$70,'Quick Access Charts'!$O$6:$P$34,2,FALSE)/VLOOKUP(D53,'Quick Access Charts'!$O$6:$P$34,2,FALSE) -> 4937751.464 | M53: =L53*H53 -> 4937751.464
B54: Membrane other costs | C54: =405200*20 -> 8104000 | D54: 2014 | E54: 20000000 | F54: gal/day | G54: 0.6 | H54: 1 | I54: ='Mass Balance'!S77*24/3.785 -> 19948898.93 | J54: =I54/E54*1.04 -> 1.037342744 | K54: =C54*J54^G54 -> 8284242.372 | L54: =K54*VLOOKUP(INPUT!$B$70,'Quick Access Charts'!$O$6:$P$34,2,FALSE)/VLOOKUP(D54,'Quick Access Charts'!$O$6:$P$34,2,FALSE) -> 8284242.372 | M54: =L54*H54 -> 8284242.372
B55: Tertiary Dewatering: Centrifuge | C55: 2242500 | D55: 2013 | E55: 463.3 | F55: m3/hr | G55: 0.6 | H55: 1.8 | I55: =I53*INPUT!B27/INPUT!B30/24*3.785/1000 -> 242.0082771 | J55: =I55/E55 -> 0.5223576022 | K55: =C55*J55^G55 -> 1518844.118 | L55: =K55*VLOOKUP(INPUT!$B$70,'Quick Access Charts'!$O$6:$P$34,2,FALSE)/VLOOKUP(D55,'Quick Access Charts'!$O$6:$P$34,2,FALSE) -> 1542404.541 | M55: =L55*H55 -> 2776328.174
B57: Total | K57: =SUM(K49:K56) -> 40966417.38 | L57: =SUM(L49:L56) -> 40910049.28 | M57: =SUM(M49:M56) -> 42964817.96
B58: A600: Storage | C58: See NREL design report for further information
B59: Product Storage Tank | C59: 418795 | D59: 2009 | E59: 750000 | F59: gal | G59: 0.6 | H59: =478800/418795 -> 1.143280125 | I59: ='Mass Balance'!U56*24/3.785 -> 689998.154 | J59: =I59/E59 -> 0.9199975387 | K59: =C59*J59^G59*2 -> 796715.8972 | L59: =K59*VLOOKUP(INPUT!$B$70,'Quick Access Charts'!$O$6:$P$34,2,FALSE)/VLOOKUP(D59,'Quick Access Charts'!$O$6:$P$34,2,FALSE) -> 879455.8888 | M59: =L59*H59 -> 1005464.439
B60: Firewater Pump | C60: 15000 | D60: 2009 | E60: 8343 | F60: kg/h | G60: 0.8 | H60: 3.1 | I60: =8007*'Mass Balance'!U90/21769 -> 11046.33595 | J60: =I60/E60 -> 1.324024446 | K60: =C60*J60^G60 -> 18776.21553 | L60: =K60*VLOOKUP(INPUT!$B$70,'Quick Access Charts'!$O$6:$P$34,2,FALSE)/VLOOKUP(D60,'Quick Access Charts'!$O$6:$P$34,2,FALSE) -> 20726.15016 | M60: =L60*H60 -> 64251.0655
B61: Firewater Storage Tank | C61: 803000 | D61: 2009 | E61: 8343 | F61: kg/h | G61: 0.7 | H61: 1.7 | I61: =I60 -> 11046.33595 | J61: =I61/E61 -> 1.324024446 | K61: =C61*J61^G61 -> 977333.4156 | L61: =K61*VLOOKUP(INPUT!$B$70,'Quick Access Charts'!$O$6:$P$34,2,FALSE)/VLOOKUP(D61,'Quick Access Charts'!$O$6:$P$34,2,FALSE) -> 1078830.774 | M61: 1834012.315
B62: Make-up Storage Tank | C62: 418795 | D62: 2009 | E62: 750000 | F62: gal | G62: 0.6 | H62: =478800/418795 -> 1.143280125 | I62: =('Mass Balance'!L77+'Mass Balance'!D77)/0.993*6/3.78541/4 -> 487940.8998 | J62: =I62/E62 -> 0.6505878664 | K62: =C62*J62^G62*4 -> 1294330.112 | L62: =K62*VLOOKUP(INPUT!$B$70,'Quick Access Charts'!$O$6:$P$34,2,FALSE)/VLOOKUP(D62,'Quick Access Charts'!$O$6:$P$34,2,FALSE) -> 1428747.993 | M62: 1633459.184
B63: Tankage BOP | K63: =SUM(K59:K62)*0.2 -> 617431.1281 | L63: =SUM(L59:L62)*0.2 -> 681552.1611 | M63: =SUM(M59:M62)*0.2 -> 907437.4007
B64: Total | K64: =SUM(K59:K63) -> 3704586.768 | L64: =SUM(L59:L63) -> 4089312.967 | M64: =SUM(M59:M63) -> 5444624.404
C68: Flue Gas Distribution
B69: Plot blower | C69: 138500 | D69: 2014 | E69: 68550 | F69: kg/h | G69: 0.6 | H69: 1.25 | I69: ='Mass Balance'!G77 -> 65056.88321 | J69: =I69/E69 -> 0.9490427893 | K69: =C69*J69^G69*INPUT!B10/INPUT!B11 -> 6711062.046 | L69: =K69*VLOOKUP(INPUT!$B$70,'Quick Access Charts'!$O$6:$P$31,2,FALSE)/VLOOKUP(D69,'Quick Access Charts'!$O$6:$P$31,2,FALSE) -> 6711062.046 | M69: =L69*H69 -> 8388827.558
B70: Double branch fan #1 | C70: 266700 | D70: 2014 | E70: 68550 | F70: kg/h | G70: 0.6 | H70: 1.25 | I70: ='Mass Balance'!G77 -> 65056.88321 | J70: 0.9490427893 | K70: =C70*J70^G70*3 -> 775382.0568 | L70: =K70*VLOOKUP(INPUT!$B$70,'Quick Access Charts'!$O$6:$P$31,2,FALSE)/VLOOKUP(D70,'Quick Access Charts'!$O$6:$P$31,2,FALSE) -> 775382.0568 | M70: 969227.5709
B71: Double branch fan #2 | C71: 254900 | D71: 2014 | E71: 68550 | F71: kg/h | G71: 0.6 | H71: 1.25 | I71: ='Mass Balance'!G77 -> 65056.88321 | J71: 0.9490427893 | K71: =C71*J71^G71*3 -> 741075.689 | L71: =K71*VLOOKUP(INPUT!$B$70,'Quick Access Charts'!$O$6:$P$31,2,FALSE)/VLOOKUP(D71,'Quick Access Charts'!$O$6:$P$31,2,FALSE) -> 741075.689 | M71: 926344.6113
B72: Double branch fan #3 | C72: 170200 | D72: 2014 | E72: 68550 | F72: kg/h | G72: 0.6 | H72: 1.25 | I72: ='Mass Balance'!G77 -> 65056.88321 | J72: 0.9490427893 | K72: =C72*J72^G72*3 -> 494825.7445 | L72: =K72*VLOOKUP(INPUT!$B$70,'Quick Access Charts'!$O$6:$P$31,2,FALSE)/VLOOKUP(D72,'Quick Access Charts'!$O$6:$P$31,2,FALSE) -> 494825.7445 | M72: 618532.1806
B73: single branch fan #1 | C73: 124000 | D73: 2014 | E73: 68550 | F73: kg/h | G73: 0.6 | H73: 1.25 | I73: ='Mass Balance'!G77 -> 65056.88321 | J73: 0.9490427893 | K73: =C73*J73^G73 -> 120169.1976 | L73: =K73*VLOOKUP(INPUT!$B$70,'Quick Access Charts'!$O$6:$P$31,2,FALSE)/VLOOKUP(D73,'Quick Access Charts'!$O$6:$P$31,2,FALSE) -> 120169.1976 | M73: 150211.4971
B74: single branch fan #2 | C74: 108100 | D74: 2014 | E74: 68550 | F74: kg/h | G74: 0.6 | H74: 1.25 | I74: ='Mass Balance'!G77 -> 65056.88321 | J74: 0.9490427893 | K74: =C74*J74^G74 -> 104760.4054 | L74: =K74*VLOOKUP(INPUT!$B$70,'Quick Access Charts'!$O$6:$P$31,2,FALSE)/VLOOKUP(D74,'Quick Access Charts'!$O$6:$P$31,2,FALSE) -> 104760.4054 | M74: 130950.5067
B75: single branch fan #3 | C75: 49100 | D75: 2014 | E75: 68550 | F75: kg/h | G75: 0.6 | H75: 1.25 | I75: ='Mass Balance'!G77 -> 65056.88321 | J75: 0.9490427893 | K75: =C75*J75^G75 -> 47583.12584 | L75: =K75*VLOOKUP(INPUT!$B$70,'Quick Access Charts'!$O$6:$P$31,2,FALSE)/VLOOKUP(D75,'Quick Access Charts'!$O$6:$P$31,2,FALSE) -> 47583.12584 | M75: 59478.9073
B76: Dbl branch supply fan | C76: 266700 | D76: 2014 | E76: 68550 | F76: kg/h | G76: 0.6 | H76: 1.25 | I76: ='Mass Balance'!G77 -> 65056.88321 | J76: 0.9490427893 | K76: =C76*J76^G76*9 -> 2326146.17 | L76: =K76*VLOOKUP(INPUT!$B$70,'Quick Access Charts'!$O$6:$P$31,2,FALSE)/VLOOKUP(D76,'Quick Access Charts'!$O$6:$P$31,2,FALSE) -> 2326146.17 | M76: 2907682.713
B77: Single branch supply fan | C77: 124000 | D77: 2014 | E77: 68550 | F77: kg/h | G77: 0.6 | H77: 1.25 | I77: ='Mass Balance'!G77 -> 65056.88321 | J77: 0.9490427893 | K77: =C77*J77^G77*9 -> 1081522.779 | L77: =K77*VLOOKUP(INPUT!$B$70,'Quick Access Charts'!$O$6:$P$31,2,FALSE)/VLOOKUP(D77,'Quick Access Charts'!$O$6:$P$31,2,FALSE) -> 1081522.779 | M77: 1351903.474
B78: Double branch | C78: 2466689 | D78: 2014 | E78: 68550 | F78: kg/h | G78: 1 | H78: 1 | I78: ='Mass Balance'!G77 -> 65056.88321 | J78: 0.9490427893 | K78: =C78*J78^G78*3 -> 7022980.227 | L78: =K78*VLOOKUP(INPUT!$B$70,'Quick Access Charts'!$O$6:$P$31,2,FALSE)/VLOOKUP(D78,'Quick Access Charts'!$O$6:$P$31,2,FALSE) -> 7022980.227 | M78: 7022980.227
B79: Single branch | C79: 1897272 | D79: 2014 | E79: 68550 | F79: kg/h | G79: 1 | H79: 1 | I79: ='Mass Balance'!G77 -> 65056.88321 | J79: 0.9490427893 | K79: =C79*J79^G79 -> 1800592.311 | L79: =K79*VLOOKUP(INPUT!$B$70,'Quick Access Charts'!$O$6:$P$31,2,FALSE)/VLOOKUP(D79,'Quick Access Charts'!$O$6:$P$31,2,FALSE) -> 1800592.311 | M79: 1800592.311
B80: Double supply | C80: 7748111 | D80: 2014 | E80: 68550 | F80: kg/h | G80: 1 | H80: 1 | I80: ='Mass Balance'!G77 -> 65056.88321 | J80: 0.9490427893 | K80: =C80*J80^G80 -> 7353288.875 | L80: =K80*VLOOKUP(INPUT!$B$70,'Quick Access Charts'!$O$6:$P$31,2,FALSE)/VLOOKUP(D80,'Quick Access Charts'!$O$6:$P$31,2,FALSE) -> 7353288.875 | M80: 7353288.875
B81: Single supply | C81: 5472900 | D81: 2014 | E81: 68550 | F81: kg/h | G81: 1 | H81: 1 | I81: ='Mass Balance'!G77 -> 65056.88321 | J81: 0.9490427893 | K81: =C81*J81^G81 -> 5194016.282 | L81: =K81*VLOOKUP(INPUT!$B$70,'Quick Access Charts'!$O$6:$P$31,2,FALSE)/VLOOKUP(D81,'Quick Access Charts'!$O$6:$P$31,2,FALSE) -> 5194016.282 | M81: =L81*H81 -> 5194016.282
B82: Within-plot piping | C82: 295000 | D82: 2014 | E82: 68550 | F82: kg/h | G82: 1 | H82: 1 | I82: ='Mass Balance'!G77 -> 65056.88321 | J82: 0.9490427893 | K82: =C82*J82^G82*INPUT!B10/INPUT!B11 -> 13998381.14 | L82: =K82*VLOOKUP(INPUT!$B$70,'Quick Access Charts'!$O$6:$P$31,2,FALSE)/VLOOKUP(D82,'Quick Access Charts'!$O$6:$P$31,2,FALSE) -> 13998381.14 | M82: 13998381.14
K83: =SUM(K69:K82) -> 47771786.05 | L83: =SUM(L69:L82) -> 47771786.05 | M83: =SUM(M69:M82) -> 50872417.86

Sheet Cost Breakdown
A1: Portion of MBSP for each cost in each area
A2: AREA | C2: Capital Recovery Charge | D2: Raw Materials & Waste | E2: Process Electricity | F2: Fixed Costs | G2: Area Totals | H2: Labels
A3: NONE | B3: ="Nutrient Cost CO2, NH3, DAP " & H3 -> Nutrient Cost CO2, NH3, DAP 120.1$ | C3: 0 | D3: =SUM(OPEX!M16,OPEX!M22,OPEX!M28) -> 120.1441105 | E3: 0 | F3: 0 | G3: =SUM(C3:F3) -> 120.1441105 | H3: =TEXT(G3,"0.0") & "$" -> 120.1$ | I3: Feedstock
A4: A100 | B4: ="Production Ponds" & " " & H4 -> Production Ponds 250.6$ | C4: =CAPEX100/CAPEX*SUM('Results Summary'!$F$24:$F$26) -> 186.9129322 | D4: =OPEX!M46 -> 3.848060616 | E4: ='Mass Balance'!AR59/SUM('Mass Balance'!$AR$59:$AR$64)*OPEX!$M$40 -> 18.51107878 | F4: =CAPEX100/CAPEX*OPEX!$M$82 -> 41.36458378 | G4: =SUM(C4:F4) -> 250.6366554 | H4: =TEXT(G4,"0.0") & "$" -> 250.6$ | I4: Area 100
A5: A200 | B5: ="Inoculum Ponds " & H5 -> Inoculum Ponds 23.4$ | C5: =CAPEX200/CAPEX*SUM('Results Summary'!$F$24:$F$26) -> 18.66283946 | D5: 0 | E5: ='Mass Balance'!AR60/SUM('Mass Balance'!$AR$59:$AR$64)*OPEX!$M$40 -> 0.5623550442 | F5: =CAPEX200/CAPEX*OPEX!$M$82 -> 4.130161447 | G5: =SUM(C5:F5) -> 23.35535596 | H5: =TEXT(G5,"0.0") & "$" -> 23.4$ | I5: Area 200
A6: A300 | B6: ="CO2 On-Site Storage/Piping " & H6 -> CO2 On-Site Storage/Piping 14.9$ | C6: =CAPEX300/CAPEX*SUM('Results Summary'!$F$24:$F$26) -> 7.878437511 | D6: 0 | E6: ='Mass Balance'!AR61/SUM('Mass Balance'!$AR$59:$AR$64)*OPEX!$M$40 -> 5.234429535 | F6: =CAPEX300/CAPEX*OPEX!$M$82 -> 1.743529913 | G6: 14.85639696 | H6: 14.9$ | I6: Area 300
A7: A400 | B7: ="Makeup Water Delivery + On-site Circulation " & H7 -> Makeup Water Delivery + On-site Circulation 11.2$ | C7: =CAPEX400/CAPEX*SUM('Results Summary'!$F$24:$F$26) -> 8.509642845 | D7: 0 | E7: ='Mass Balance'!AR62/SUM('Mass Balance'!$AR$59:$AR$64)*OPEX!$M$40 -> 0.8268786059 | F7: =CAPEX400/CAPEX*OPEX!$M$82 -> 1.883218193 | G7: 11.21973964 | H7: 11.2$ | I7: Area 400
A8: A500 | B8: ="Dewatering " & H8 -> Dewatering 64.0$ | C8: =CAPEX500/CAPEX*SUM('Results Summary'!$F$24:$F$26) -> 51.50880514 | D8: =0 -> 0 | E8: ='Mass Balance'!AR63/SUM('Mass Balance'!$AR$59:$AR$64)*OPEX!$M$40 -> 1.133525013 | F8: =CAPEX500/CAPEX*OPEX!$M$82 -> 11.39910578 | G8: 64.04143593 | H8: 64.0$ | I8: Area 500
A9: A600 | B9: ="Storage " & H9 -> Storage 9.8$ | C9: =CAPEX600/CAPEX*SUM('Results Summary'!$F$24:$F$26) -> 6.527342855 | D9: =0 -> 0 | E9: ='Mass Balance'!AR64/SUM('Mass Balance'!$AR$59:$AR$64)*OPEX!$M$40 -> 1.821411823 | F9: =CAPEX600/CAPEX*OPEX!$M$82 -> 1.444527231 | G9: 9.793281909 | H9: 9.8$ | I9: Area 600
B10: NET SUMMATION | C10: =SUM(C4:C9) -> 280 | D10: =SUM(D3:D9) -> 123.9921711 | E10: =SUM(E3:E9) -> 28.0896788 | F10: =SUM(F3:F9) -> 61.96512634 | G10: =SUM(G3:G9) -> 494.0469762 | H10: =TEXT(G10,"$0") & " /US Dry Ton MBSP" -> $494 /US Dry Ton MBSP | I10: RESULT

Sheet Facility_Dim
S2: 2-acre Module Dimensions | Z2: 10-acre Module Dimensions | AG2: 50-acre Module Dimensions
R4: Module Size | S4: Rows | T4: Columns | U4: A (ft) | V4: B (ft) | Y4: Module Size | Z4: Rows | AA4: Columns | AB4: A (ft) | AC4: B (ft) | AF4: Module Size | AG4: Rows | AH4: Columns | AI4: A (ft) | AJ4: B (ft)
R5: 2 | S5: =ROUNDUP(R5/2.2/T5,0) -> 1 | T5: 1 | U5: =S5*70+ROUND((S5/2),0)*30+2*10 -> 120 | V5: =1370*T5+30*(T5-1) -> 1370 | Y5: 10 | Z5: =ROUNDUP(Y5/10/AA5,0) -> 1 | AA5: 1 | AB5: =Z5*196+ROUND((Z5/2),0)*30 -> 226 | AC5: =2264*AA5+60*(AA5-1) -> 2264 | AD5: =AC5/AB5 -> 10.01769912 | AF5: 50 | AG5: =ROUNDUP(AF5/50/AH5,0) -> 1 | AH5: 1 | AI5: =AG5*2412 -> 2412 | AJ5: =1320*AH5+60*(AH5-1) -> 1320 | AK5: =AJ5/AI5 -> 0.5472636816
R6: 5 | S6: =ROUND(R6/2.2/T6,0) -> 2 | T6: 1 | U6: 190 | V6: 1370 | Y6: 20 | Z6: =ROUNDUP(Y6/10/AA6,0) -> 2 | AA6: 1 | AB6: 422 | AC6: 2264 | AD6: =AC6/AB6 -> 5.36492891 | AF6: 100 | AG6: 1 | AH6: 2 | AI6: =AG6*2412 -> 2412 | AJ6: =1320*AH6+60*(AH6-1) -> 2700 | AK6: 1.119402985
R7: 10 | S7: 5 | T7: 1 | U7: 460 | V7: 1370 | Y7: 30 | Z7: 3 | AA7: 1 | AB7: 648 | AC7: 2264 | AD7: 3.49382716 | AF7: 150 | AG7: 1 | AH7: 3 | AI7: 2412 | AJ7: =1320*AH7+60*(AH7-1) -> 4080 | AK7: 1.691542289
R8: 20 | S8: 5 | T8: 2 | U8: 460 | V8: 2770 | Y8: 40 | Z8: 4 | AA8: 1 | AB8: 844 | AC8: 2264 | AD8: 2.682464455 | AF8: 200 | AG8: =ROUNDUP(AF8/50/AH8,0) -> 2 | AH8: 3 | AI8: 4824 | AJ8: 4080 | AK8: 0.8457711443
R9: 30 | S9: 7 | T9: 2 | U9: 630 | V9: 2770 | Y9: 50 | Z9: 5 | AA9: 1 | AB9: 1070 | AC9: 2264 | AD9: 2.11588785 | AF9: 250 | AG9: =ROUNDUP(AF9/50/AH9,0) -> 2 | AH9: 3 | AI9: 4824 | AJ9: 4080 | AK9: 0.8457711443
R10: 40 | S10: 9 | T10: 2 | U10: 800 | V10: 2770 | Y10: 60 | Z10: 6 | AA10: 1 | AB10: 1266 | AC10: 2264 | AD10: 1.788309637 | AF10: 300 | AG10: 2 | AH10: 4 | AI10: 4824 | AJ10: 5460 | AK10: 1.131840796
R11: 50 | S11: 8 | T11: 3 | U11: 700 | V11: 4170 | Y11: 70 | Z11: 4 | AA11: 2 | AB11: 844 | AC11: 4588 | AD11: 5.436018957 | AF11: 350 | AG11: 2 | AH11: 4 | AI11: 4824 | AJ11: 5460 | AK11: 1.131840796
R12: 60 | S12: 9 | T12: 3 | U12: 800 | V12: 4170 | Y12: 80 | Z12: 4 | AA12: 2 | AB12: 844 | AC12: 4588 | AD12: 5.436018957 | AF12: 400 | AG12: 2 | AH12: 4 | AI12: 4824 | AJ12: 5460 | AK12: 1.131840796
R13: 70 | S13: 11 | T13: 3 | U13: 970 | V13: 4170 | Y13: 90 | Z13: 5 | AA13: 2 | AB13: =Z13*196+ROUND((Z13/2),0)*30 -> 1070 | AC13: =2264*AA13+60*(AA13-1) -> 4588 | AD13: 4.287850467 | AF13: 450 | AG13: 2 | AH13: 5 | AI13: 4824 | AJ13: 6840 | AK13: 1.417910448
R14: 80 | S14: 12 | T14: 3 | U14: 1040 | V14: 4170 | Y14: 100 | Z14: 5 | AA14: 2 | AB14: =Z14*196+ROUND((Z14/2),0)*30 -> 1070 | AC14: =2264*AA14+60*(AA14-1) -> 4588 | AD14: 4.287850467 | AF14: 500 | AG14: 2 | AH14: 5 | AI14: 4824 | AJ14: 6840 | AK14: 1.417910448
R15: 90 | S15: 10 | T15: 4 | U15: 870 | V15: =1370*T15+30*(T15-1) -> 5570 | Y15: 110 | Z15: 6 | AA15: 2 | AB15: =Z15*196+ROUND((Z15/2),0)*30 -> 1266 | AC15: =2264*AA15+60*(AA15-1) -> 4588 | AD15: 3.624012638
R16: 100 | S16: 11 | T16: 4 | U16: =S16*70+ROUND((S16/2),0)*30+2*10 -> 970 | V16: =1370*T16+30*(T16-1) -> 5570 | Y16: 120 | Z16: 6 | AA16: 2 | AB16: =Z16*196+ROUND((Z16/2),0)*30 -> 1266 | AC16: =2264*AA16+60*(AA16-1) -> 4588 | AD16: 3.624012638
R17: 110 | S17: 13 | T17: 4 | U17: =S17*70+ROUND((S17/2),0)*30+2*10 -> 1140 | V17: =1370*T17+30*(T17-1) -> 5570 | Y17: 130 | Z17: 7 | AA17: 2 | AB17: 1492 | AC17: 4588 | AD17: 3.075067024
R18: 120 | S18: 14 | T18: 4 | U18: 1210 | V18: 5570 | Y18: 140 | Z18: 7 | AA18: 2 | AB18: 1492 | AC18: 4588 | AD18: 3.075067024
R19: 130 | S19: 15 | T19: 4 | U19: 1310 | V19: 5570 | Y19: 150 | Z19: 8 | AA19: 2 | AB19: 1688 | AC19: 4588 | AD19: 2.718009479
R20: 140 | S20: 13 | T20: 5 | U20: =S20*70+ROUND((S20/2),0)*30+2*10 -> 1140 | V20: =1370*T20+30*(T20-1) -> 6970 | Y20: 160 | Z20: 8 | AA20: 2 | AB20: 1688 | AC20: 4588 | AD20: 2.718009479
R21: 150 | S21: 14 | T21: 5 | U21: 1210 | V21: 6970 | Y21: 170 | Z21: 9 | AA21: 2 | AB21: 1914 | AC21: 4588 | AD21: 2.39707419
R22: 160 | S22: 15 | T22: 5 | U22: 1310 | V22: 6970 | Y22: 180 | Z22: 9 | AA22: 2 | AB22: 1914 | AC22: 4588 | AD22: 2.39707419
R23: 170 | S23: 15 | T23: 5 | U23: 1310 | V23: 6970 | Y23: 190 | Z23: 7 | AA23: 3 | AB23: 1492 | AC23: 6912 | AD23: 4.632707775
R24: 180 | S24: 16 | T24: 5 | U24: 1380 | V24: 6970 | Y24: 200 | Z24: 7 | AA24: 3 | AB24: 1492 | AC24: 6912 | AD24: 4.632707775
R25: 190 | S25: 17 | T25: 5 | U25: 1480 | V25: 6970 | Y25: 210 | Z25: 7 | AA25: 3 | AB25: 1492 | AC25: 6912 | AD25: 4.632707775
R26: 200 | S26: 18 | T26: 5 | U26: 1550 | V26: 6970 | Y26: 220 | Z26: 8 | AA26: 3 | AB26: 1688 | AC26: 6912 | AD26: 4.09478673
R27: 210 | S27: 16 | T27: 6 | U27: 1380 | V27: 8370 | Y27: 230 | Z27: 8 | AA27: 3 | AB27: 1688 | AC27: 6912 | AD27: 4.09478673
R28: 220 | S28: 17 | T28: 6 | U28: 1480 | V28: 8370 | Y28: 240 | Z28: 8 | AA28: 3 | AB28: 1688 | AC28: 6912 | AD28: 4.09478673
R29: 230 | S29: 17 | T29: 6 | U29: 1480 | V29: 8370 | Y29: 250 | Z29: 9 | AA29: 3 | AB29: 1914 | AC29: 6912 | AD29: 3.611285266
R30: 240 | S30: 18 | T30: 6 | U30: 1550 | V30: 8370 | Y30: 260 | Z30: 9 | AA30: 3 | AB30: 1914 | AC30: 6912 | AD30: 3.611285266
R31: 250 | S31: 19 | T31: 6 | U31: 1650 | V31: 8370 | Y31: 270 | Z31: 9 | AA31: 3 | AB31: 1914 | AC31: 6912 | AD31: 3.611285266
R32: 260 | S32: 20 | T32: 6 | U32: 1720 | V32: 8370 | Y32: 280 | Z32: 10 | AA32: 3 | AB32: 2110 | AC32: 6912 | AD32: 3.275829384
R33: 270 | S33: 20 | T33: 6 | U33: 1720 | V33: 8370 | Y33: 290 | Z33: 10 | AA33: 3 | AB33: 2110 | AC33: 6912 | AD33: 3.275829384
C34: Cultivation area | D34: =INPUT!B10 -> 5000 | E34: acres | R34: 280 | S34: 21 | T34: 6 | U34: 1820 | V34: 8370 | Y34: 300 | Z34: 8 | AA34: 4 | AB34: 1688 | AC34: 9236 | AD34: 5.471563981
C35: Module Size | D35: =INPUT!B11 -> 100 | E35: acres | R35: 290 | S35: 19 | T35: 7 | U35: =S35*70+ROUND((S35/2),0)*30+2*10 -> 1650 | V35: =1370*T35+30*(T35-1) -> 9770 | Y35: 310 | Z35: 8 | AA35: 4 | AB35: 1688 | AC35: 9236 | AD35: 5.471563981
R36: 300 | S36: 19 | T36: 7 | U36: 1650 | V36: 9770 | Y36: 320 | Z36: 8 | AA36: 4 | AB36: 1688 | AC36: 9236 | AD36: 5.471563981
C37: Pond Size | D37: A (ft) | E37: B (ft) | F37: C (ft) | G37: D (ft) | H37: D (ft) (minus last row) | I37: Last Row | J37: Facility (acre) | R37: 310 | S37: 20 | T37: 7 | U37: =S37*70+ROUND((S37/2),0)*30+2*10 -> 1720 | V37: =1370*T37+30*(T37-1) -> 9770 | Y37: 330 | Z37: 9 | AA37: 4 | AB37: 1914 | AC37: 9236 | AD37: 4.825496343
C38: 2-acre | D38: =VLOOKUP(ROUND(D35,-1),R5:V56,5) -> 5570 | E38: =VLOOKUP(ROUND(D35,-1),R5:V56,4) -> 970 | F38: =D38*F45+(F45+1)*50+75*F45 -> 39915 | G38: =E38*($E$45)+100*($E$45)-60 -> 8500 | H38: =E38*($E$45-1)+(100)*($E$45-2)+50 -> 7440 | I38: =($D$45-($F$45*($E$45-1)))*(E38+20)*(D38)/43560+G45 -> 970.2353076 | J38: =F38*H38/43560+I38 -> 7787.673324 | R38: 320 | S38: 21 | T38: 7 | U38: 1820 | V38: 9770 | Y38: 340 | Z38: 9 | AA38: 4 | AB38: 1914 | AC38: 9236 | AD38: 4.825496343
C39: 10-acre | D39: =VLOOKUP(ROUND(D35,-1),Y5:AC54,5) -> 4588 | E39: =VLOOKUP(ROUND(D35,-1),Y5:AC54,4) -> 1070 | F39: =D39*F45+(F45+1)*50+75*F45 -> 33041 | G39: =E39*($E$45)+100*($E$45)+100 -> 9460 | H39: =E39*($E$45-1)+100*($E$45) -> 8290 | I39: =($D$45-($F$45*($E$45-1)))*(E39+100)*(D39)/43560+G46 -> 887.464876 | J39: =F39*H39/43560+I39 -> 7175.570707 | R39: 330 | S39: 21 | T39: 7 | U39: 1820 | V39: 9770 | Y39: 350 | Z39: 9 | AA39: 4 | AB39: 1914 | AC39: 9236 | AD39: 4.825496343
C40: 50-acre | D40: =VLOOKUP(ROUND(D35,-1),AF5:AJ14,5) -> 2700 | E40: =VLOOKUP(ROUND(D35,-1),AF5:AJ14,4) -> 2412 | F40: =D40*F45+(F45+1)*50+75*F45 -> 19825 | G40: =E40*($E$45)+100*($E$45)+100 -> 20196 | H40: =E40*($E$45-1)+100*($E$45) -> 17684 | I40: =($D$45-($F$45*($E$45-1)))*(E40+100)*(D40)/43560+G47 -> 1143.259871 | J40: =F40*H40/43560+I40 -> 9191.590909 | R40: 340 | S40: 22 | T40: 7 | U40: 1890 | V40: 9770 | Y40: 360 | Z40: 9 | AA40: 4 | AB40: 1914 | AC40: 9236 | AD40: 4.825496343
R41: 350 | S41: 23 | T41: 7 | U41: 1990 | V41: 9770 | Y41: 370 | Z41: 10 | AA41: 4 | AB41: 2110 | AC41: 9236 | AD41: 4.377251185
R42: 360 | S42: 23 | T42: 7 | U42: 1990 | V42: 9770 | Y42: 380 | Z42: 10 | AA42: 4 | AB42: 2110 | AC42: 9236 | AD42: 4.377251185
R43: 370 | S43: 21 | T43: 8 | U43: 1820 | V43: 11170 | Y43: 390 | Z43: 10 | AA43: 4 | AB43: 2110 | AC43: 9236 | AD43: 4.377251185
C44: Cultivation Area | D44: Number of Modules | E44: Rows | F44: Columns | G44: Plus area for Dewatering and Conversion (2-acre, 10-acre, 50-acre) | R44: 380 | S44: 22 | T44: 8 | U44: 1890 | V44: 11170 | Y44: 400 | Z44: 10 | AA44: 4 | AB44: 2110 | AC44: 9236 | AD44: 4.377251185
C45: =D34 -> 5000 | D45: =ROUNDUP(C45/D35,0) -> 50 | E45: =ROUNDUP(D45/F45,0) -> 8 | F45: =ROUND(D45^(1/2),0) -> 7 | G45: =((E38+100)*F38-(E38+100)*D38)/43560 -> 843.6443985 | R45: 390 | S45: 22 | T45: 8 | U45: 1890 | V45: 11170 | Y45: 410 | Z45: 11 | AA45: 4 | AB45: 2336 | AC45: 9236 | AD45: 3.953767123
G46: =((E39+100)*F39-(E39+100)*D39)/43560 -> 764.2334711 | R46: 400 | S46: 23 | T46: 8 | U46: 1990 | V46: 11170 | Y46: 420 | Z46: 11 | AA46: 4 | AB46: 2336 | AC46: 9236 | AD46: 3.953767123
G47: =((E40+100)*F40-(E40+100)*D40)/43560 -> 987.5573921 | R47: 410 | S47: 23 | T47: 8 | U47: 1990 | V47: 11170 | Y47: 430 | Z47: 11 | AA47: 4 | AB47: 2336 | AC47: 9236 | AD47: 3.953767123
R48: 420 | S48: 24 | T48: 8 | U48: 2060 | V48: 11170 | Y48: 440 | Z48: 11 | AA48: 4 | AB48: 2336 | AC48: 9236 | AD48: 3.953767123
C49: Distribution Pipeline Requirement (ft) | I49: Pipelines within Module | R49: 430 | S49: 24 | T49: 8 | U49: 2060 | V49: 11170 | Y49: 450 | Z49: 12 | AA49: 4 | AB49: 2532 | AC49: 9236 | AD49: 3.647709321
D50: 2-acre | E50: 10-acre | F50: 50-acre | I50: Pipelines within Module | J50: =IF(INPUT!B12="2-acre",Facility_Dim!J51,IF(INPUT!B12="10-acre",Facility_Dim!J52,IF(INPUT!B12="50-acre",Facility_Dim!J53,0))) -> 3364 | K50: ft | R50: 440 | S50: 25 | T50: 8 | U50: 2160 | V50: 11170 | Y50: 460 | Z50: 12 | AA50: 4 | AB50: 2532 | AC50: 9236 | AD50: 3.647709321
B51: 34 | C51: 34" ID | D51: =D38+E38+100+50+55 -> 6745 | E51: =D39+E39+100+50+75 -> 5883 | F51: =D40+E40+100+50+75 -> 5337 | I51: 2-acre | J51: =D38*(VLOOKUP(ROUND(D35,-1),R5:V56,3)-1)/VLOOKUP(ROUND(D35,-1),R5:V56,3)+E38*VLOOKUP(ROUND(D35,-1),R5:V56,3)/2 -> 6117.5 | K51: ft | R51: 450 | S51: 26 | T51: 8 | U51: 2230 | V51: 11170 | Y51: 470 | Z51: 10 | AA51: 5 | AB51: 2110 | AC51: 11560 | AD51: 5.478672986
B52: 26 | C52: 26" ID | D52: =D38*($F$45-3)/2+($F$45-3)/2*(75+50) -> 11390 | E52: =D39*($F$45-3)/2+($F$45-3)/2*(75+50) -> 9426 | F52: =D40*($F$45-3)/2+($F$45-3)/2*(75+50) -> 5650 | I52: 10-acre | J52: =D39*(VLOOKUP(ROUND(D35,-1),Y5:AC54,3)-1)/VLOOKUP(ROUND(D35,-1),Y5:AC54,3)+E39*VLOOKUP(ROUND(D35,-1),Y5:AC54,3)/2 -> 3364 | K52: ft | R52: 460 | S52: 23 | T52: 9 | U52: 1990 | V52: 12570 | Y52: 480 | Z52: 10 | AA52: 5 | AB52: 2110 | AC52: 11560 | AD52: 5.478672986
B53: 20 | C53: 20" ID | D53: =D38*($F$45-3)/2+($F$45-3)/2*(75+50+250) -> 11890 | E53: =D39*($F$45-3)/2+($F$45-3)/2*(75+50+250) -> 9926 | F53: =D40*($F$45-3)/2+($F$45-3)/2*(75+50+300) -> 6250 | I53: 50-acre | J53: =D40*(VLOOKUP(ROUND(D35,-1),AF5:AJ14,3)-1)/VLOOKUP(ROUND(D35,-1),AF5:AJ14,3)+E40*IF(VLOOKUP(ROUND(D35,-1),AF5:AJ14,3)/2<1,VLOOKUP(ROUND(D35,-1),AF5:AJ14,3)/2,0) -> 1350 | K53: ft | R53: 470 | S53: 24 | T53: 9 | U53: 2060 | V53: 12570 | Y53: 490 | Z53: 10 | AA53: 5 | AB53: 2110 | AC53: 11560 | AD53: 5.478672986
B54: 16 | C54: 16"ID | D54: =ROUNDUP($F$45/2,0)*(($E$45-2)/3)*($E$38+100) -> 8560 | E54: =ROUNDUP($F$45/2,0)*(($E$45-2)/3)*($E$39+100) -> 9360 | F54: =ROUNDUP($F$45/2,0)*(($E$45-2)/3)*($E$40+100) -> 20096 | R54: 480 | S54: 24 | T54: 9 | U54: 2060 | V54: 12570 | Y54: 500 | Z54: 10 | AA54: 5 | AB54: 2110 | AC54: 11560 | AD54: 5.478672986
B55: 14 | C55: 14"ID | D55: =ROUNDUP($F$45/2,0)*(($E$45-2)/3)*($E$38+100) -> 8560 | E55: =ROUNDUP($F$45/2,0)*(($E$45-2)/3)*($E$39+100) -> 9360 | F55: =ROUNDUP($F$45/2,0)*(($E$45-2)/3)*($E$40+100) -> 20096 | R55: 490 | S55: 25 | T55: 9 | U55: 2160 | V55: 12570
B56: 12 | C56: 12"ID | D56: 8560 | E56: 9360 | F56: 20096 | R56: 500 | S56: 25 | T56: 9 | U56: 2160 | V56: 12570

Sheet Quick Access Charts
O1: Cost Indices
R2: LOOKUP strings
R3: Data Set | S3: Lookup String
O4: Plant Cost Indices | R4: Index-Capital | S4: INDICES!b15:e41
A5: CO2 Consumed | B5: =INPUT!F56*-1 -> -620 | C5: mol CO2 per mol of algae produced | O5: Year | P5: Index Used | R5: Index-Chemical | S5: INDICES!b58:e93
A6: DAP Consumed | B6: =INPUT!F61*-1 -> -1 | C6: mol of DAP per mol of algae produced | O6: 1990 | P6: 357.6 | R6: Index-Labor | S6: INDICES!b114:e149
A7: NH3 Consumed | B7: =(INPUT!F59-INPUT!F61*2)*-1 -> -16 | C7: mol of NH3 per mol of algae produced | O7: 1991 | P7: 361.3
A8: H2O Consumed | B8: =(INPUT!F57+B6*9+B7*3)/2*-1 -> -530 | C8: mol of H2O per mol of algae produced | O8: 1992 | P8: 358.2
A9: O2 Produced | B9: =((-2*B5-B6*4-B8-INPUT!F58))/2 -> 734 | C9: mol of O2 produced per mol of algae produced | O9: 1993 | P9: 359.2
O10: 1994 | P10: 368.1
A11: Ponds - Component Rates | O11: 1995 | P11: 381.1
B12: Units | C12: Summer | D12: Fall | E12: Winter | F12: Spring | G12: Yearly Average | O12: 1996 | P12: 381.7
A13: Total Algae Produced in Ponds (AFDW) | B13: kg/hr | C13: =INPUT!B46*4046.86*INPUT!$B$10/1000/24 -> 29508.35417 | D13: =INPUT!C46*4046.86*INPUT!$B$10/1000/24 -> 20993.08625 | E13: =INPUT!D46*4046.86*INPUT!$B$10/1000/24 -> 9864.22125 | F13: =INPUT!E46*4046.86*INPUT!$B$10/1000/24 -> 24028.23125 | G13: =AVERAGE(C13:F13) -> 21098.47323 | O13: 1997 | P13: 386.5
A14: Total Algae Produced in Ponds (AFDW) | B14: kmol/hr | C14: =C13/INPUT!$B$66 -> 2.145841491 | D14: =D13/INPUT!$B$66 -> 1.526612947 | E14: =E13/INPUT!$B$66 -> 0.7173241556 | F14: =F13/INPUT!$B$66 -> 1.747328071 | G14: 1.534276666 | O14: 1998 | P14: 389.5
A15: Required NH3 for Producton Ponds | B15: kmol/hr | C15: =C14*$B$7*-1 -> 34.33346386 | D15: =D14*$B$7*-1 -> 24.42580715 | E15: =E14*$B$7*-1 -> 11.47718649 | F15: =F14*$B$7*-1 -> 27.95724914 | G15: 24.54842666 | O15: 1999 | P15: 390.6
A16: Required DAP for Producton Ponds | B16: kmol/hr | C16: =C14*$B$6*-1 -> 2.145841491 | D16: =D14*$B$6*-1 -> 1.526612947 | E16: =E14*$B$6*-1 -> 0.7173241556 | F16: =F14*$B$6*-1 -> 1.747328071 | G16: 1.534276666 | O16: 2000 | P16: 394.1
A17: Required CO2 for Producton Ponds | B17: kmol/hr | C17: =C14*$B$5*-1 -> 1330.421725 | D17: =D14*$B$5*-1 -> 946.5000269 | E17: =E14*$B$5*-1 -> 444.7409765 | F17: =F14*$B$5*-1 -> 1083.343404 | G17: 951.2515331 | O17: 2001 | P17: 394.3
A18: Required H2O for Producton Ponds | B18: kmol/hr | C18: =C14*$B$8*-1 -> 1137.29599 | D18: =D14*$B$8*-1 -> 809.1048617 | E18: =E14*$B$8*-1 -> 380.1818025 | F18: =F14*$B$8*-1 -> 926.0838779 | G18: 813.1666331 | O18: 2002 | P18: 395.6
A19: Total O2 Produced in Ponds | B19: kmol/hr | C19: =C14*$B$9 -> 1575.047655 | D19: =D14*$B$9 -> 1120.533903 | E19: =E14*$B$9 -> 526.5159302 | F19: =F14*$B$9 -> 1282.538804 | G19: 1126.159073 | O19: 2003 | P19: 402
A20: Total algae Produced in Inoculum (AFDW) | B20: kg/day | C20: =B36*INPUT!B46/24*10000/1000 -> 843.0958333 | D20: =INPUT!C46*'Quick Access Charts'!B36*10000/1000/24 -> 599.8024643 | E20: =INPUT!D46*'Quick Access Charts'!B36*10000/1000/24 -> 281.8348929 | F20: =INPUT!E46*'Quick Access Charts'!B36*10000/1000/24 -> 686.5208929 | G20: 602.8135208 | O20: 2004 | P20: 444.2
O21: 2005 | P21: 468.2
O22: 2006 | P22: 499.6
O23: 2007 | P23: 525.4
O24: 2008 | P24: 575.4
A25: Components | B25: Component MW (g/mol) | O25: 2009 | P25: 521.9
A26: H2O | B26: 18.01528 | O26: 2010 | P26: 550.8
A27: O2 | B27: 31.9988 | O27: 2011 | P27: 585.7
A28: N2 | B28: 28.0134 | O28: 2012 | P28: 584.6
A29: CO2 | B29: 44.0095 | O29: 2013 | P29: 567.3
A30: DAP (NH2)2HPO4 | B30: 132.05622 | O30: 2014 | P30: 576.1
A31: NH3 | B31: 17.03052 | O31: 2015 | P31: 556.8
A32: NaCl | B32: 58.44 | O32: 2016 | P32: 541.7
A33: Algae | B33: =INPUT!B66 -> 13751.41374
O35: Inorganic Chemical Index
A36: Algae Inoculumn Area | B36: ='Mass Balance'!E90/INPUT!B46*24*1000/10000 -> 57.81228571 | C36: ha | O36: Year | P36: Index Used
A37: Lined Pond Area | B37: =(C20-C20*INPUT!B22/INPUT!B25)/INPUT!B46*24*1000/10000 -> 46.24982857 | C37: ha | O37: 1980 | P37: 89
A38: Covered Pond Area | B38: =(C20*INPUT!B22/INPUT!B25-C20*INPUT!B22/INPUT!B25*INPUT!B22/INPUT!B24)/INPUT!B46*24*1000/10000 -> 9.249965714 | C38: ha | O38: 1981 | P38: 98.4
A39: PBR Area | B39: =(C20*INPUT!B22/INPUT!B25*INPUT!B22/INPUT!B24-C20*INPUT!B22/INPUT!B25*INPUT!B22/INPUT!B24*INPUT!B22/INPUT!B23)/INPUT!B46*24*1000/10000 -> 2.158325333 | C39: ha | O39: 1982 | P39: 100
O40: 1983 | P40: 100.3
O41: 1984 | P41: 102.9
A42: Power for Paddlewheel Mixing Based on Pond Size | O42: 1985 | P42: 103.7
A43: 2-acre | B43: 75.5 | C43: kWh/ha/day | O43: 1986 | P43: 102.6
A44: 10-acre | B44: =AVERAGE(70,48,58.2,44) -> 55.05 | C44: kWh/ha/day | O44: 1987 | P44: 106.4
A45: 50-acre | B45: =AVERAGE(41.5,44) -> 42.75 | C45: kWh/ha/day | O45: 1988 | P45: 116.3
O46: 1989 | P46: 123
O47: 1990 | P47: 123.6
A48: Paddlewheel Mixing | B48: =IF(INPUT!B12="2-acre",'Quick Access Charts'!B43,IF(INPUT!B12="10-acre",'Quick Access Charts'!B44,IF(INPUT!B12="50-acre",'Quick Access Charts'!B45,0))) -> 55.05 | C48: kWh/ha/day | O48: 1991 | P48: 125.6
A49: Paddlewheel Mixing for 2-acre ponds (inoculum) | B49: =B43 -> 75.5 | C49: kWh/ha/day | O49: 1992 | P49: 125.9
O50: 1993 | P50: 128.2
O51: 1994 | P51: 132.1
O52: 1995 | P52: 139.5
O53: 1996 | P53: 142.1
O54: 1997 | P54: 147.1
O55: 1998 | P55: 148.7
O56: 1999 | P56: 149.7
O57: 2000 | P57: 156.7
O58: 2001 | P58: 158.4
O59: 2002 | P59: 157.3
O60: 2003 | P60: 164.6
O61: 2004 | P61: 172.8
O62: 2005 | P62: 187.3
O63: 2006 | P63: 196.8
O64: 2007 | P64: 203.3
O65: 2008 | P65: 228.2
O66: 2009 | P66: 224.7
O67: 2010 | P67: 233.7
O68: 2011 | P68: 252.1
O69: 2012 | P69: 260.3
O70: 2013 | P70: 263.9
O71: 2014 | P71: 269.2
O72: 2015 | P72: 264.8
O73: 2016 | P73: 267.1
O76: Labor Index
O77: Year | P77: Index Used
O78: 1990 | P78: 12.85
O79: 1991 | P79: 13.3
O80: 1992 | P80: 13.7
O81: 1993 | P81: 13.97
O82: 1994 | P82: 14.33
O83: 1995 | P83: 14.86
O84: 1996 | P84: 15.37
O85: 1997 | P85: 15.78
O86: 1998 | P86: 16.23
O87: 1999 | P87: 16.4
O88: 2000 | P88: 17.09
O89: 2001 | P89: 17.57
O90: 2002 | P90: 17.97
O91: 2003 | P91: 18.5
O92: 2004 | P92: 19.17
O93: 2005 | P93: 19.67
O94: 2006 | P94: 19.6
O95: 2007 | P95: 19.55
O96: 2008 | P96: 19.5
O97: 2009 | P97: 20.3
O98: 2010 | P98: 21.07
O99: 2011 | P99: 21.46
O100: 2012 | P100: 21.45
O101: 2013 | P101: 21.4
O102: 2014 | P102: 21.49
O103: 2015 | P103: 21.76
O104: 2016 | P104: 22.71
